Workbook

Sheet ETAPA 8
A1: Obs.: 1. Selecione o nome de um Piloto, 2. Com a tecla Ctrl pressionada, Selecione o seu nome e 3. Clique sobre o Gráfico (Habilite a macro) Para as demais comparações Selecione o nome do Piloto e Clique sobre o Gráfico | G1: PILOTO | H1: =L$48 -> Alan Silva | I1: =M$48 -> Leonardo Bastos | J1: =A2 -> Diego Silva | M1: 00:00:01
A2: Diego Silva | G2: MÉDIA | H2: =AVERAGE(L$49:L$105) -> 00:01:00.281 | I2: =AVERAGE(M$49:M$105) -> 00:01:00.522 | J2: =AVERAGE(N$49:N$105) -> 00:00:59.821 | M2: =M1 -> 00:00:01
A3: Alan Silva | G3: MAXIMA | H3: =LARGE(L$49:L$105,1) -> 00:01:03.571 | I3: =LARGE(M$49:M$105,1) -> 00:01:04.408 | J3: =LARGE(N$49:N$105,1) -> 00:01:02.862
A4: Leonardo Bastos | G4: MÍNIMA | H4: =SMALL(L$49:L$105,1) -> 00:00:59.822 | I4: =SMALL(M$49:M$105,1) -> 00:00:59.805 | J4: =SMALL(N$49:N$105,1) -> 00:00:59.316
A5: Rodrigo Mercadante | G5: Desvio Padrão | H5: =_xlfn.STDEV.S(L$50:L$130) -> 00:00:00.686 | I5: =_xlfn.STDEV.S(M$50:M$130) -> 00:00:00.918 | J5: =_xlfn.STDEV.S(N$50:N$130) -> 00:00:00.681
A6: Rafael Miranda | G6: TEMPO TOTAL | H6: =SUM(L$49:L$105,1) -> 1.020930891 | I6: =SUM(M$49:M$105,1) -> 1.021014479 | J6: =SUM(N$49:N$105,1) -> 1.020771319
A7: Leonardo Bosco
A8: Daniel Paranhos
A9: Marcelo Surerus
A10: Felipe Franca
A11: Daniel Nahum
A12: Wesley Bambirra
A13: Marcelo Campos | J13: =SMALL(H4:J4,1)-K13 -> 00:00:59.066 | K13: 00:00:00.250
A14: Marcelo Sant'anna | J14: =LARGE(H3:J3,1)+K13 -> 00:01:04.658
A15: Gabriel Veloso
A16: Guilherme Alves
A17: João Fiuza
A18: Marcelo Clemente
A19: Jean Paul
A20: Alexandre Melillo
A21: Marcelo Pereira
A22: Raphael Reis
A23: Pedro Mello
A24: Wesley Camargos
A25: Eduardo Henrique
A26: Rafael Alves
L48: Alan Silva | M48: Leonardo Bastos | N48: Diego Silva
K49: NÚMERO VOLTAS | L49: Alan Silva | M49: Leonardo Bastos | N49: Diego Silva
A50: ETAPA | B50: PILOTO | C50: NÚMERO VOLTAS | D50: KART | E50: Volta Tm | F50: velocidade Media | K50: 1 | L50: 00:01:03.571 | M50: 00:01:04.408 | N50: 00:01:02.862
A51: 8 | B51: Diego Silva | C51: 30 | D51: 133 | E51: 00:01:02.862 | F51: 61,96km/h | K51: 2 | L51: 00:01:01.371 | M51: 00:01:01.355 | N51: 00:01:01.217
A52: 8 | B52: Diego Silva | C52: 30 | D52: 133 | E52: 00:01:01.217 | F52: 63,63km/h | K52: 3 | L52: 00:01:00.619 | M52: 00:01:00.940 | N52: 00:01:00.414
A53: 8 | B53: Diego Silva | C53: 30 | D53: 133 | E53: 00:01:00.414 | F53: 64,48km/h | K53: 4 | L53: 00:00:59.840 | M53: 00:01:00.388 | N53: 00:00:59.447
A54: 8 | B54: Diego Silva | C54: 30 | D54: 133 | E54: 00:00:59.447 | F54: 65,52km/h | K54: 5 | L54: 00:01:00.378 | M54: 00:01:00.326 | N54: 00:01:00.106
A55: 8 | B55: Diego Silva | C55: 30 | D55: 133 | E55: 00:01:00.106 | F55: 64,81km/h | K55: 6 | L55: 00:01:00.040 | M55: 00:01:01.404 | N55: 00:01:00.012
A56: 8 | B56: Diego Silva | C56: 30 | D56: 133 | E56: 00:01:00.012 | F56: 64,91km/h | K56: 7 | L56: 00:00:59.987 | M56: 00:01:00.934 | N56: 00:00:59.955
A57: 8 | B57: Diego Silva | C57: 30 | D57: 133 | E57: 00:00:59.955 | F57: 64,97km/h | K57: 8 | L57: 00:01:00.162 | M57: 00:01:00.380 | N57: 00:00:59.738
A58: 8 | B58: Diego Silva | C58: 30 | D58: 133 | E58: 00:00:59.738 | F58: 65,2km/h | K58: 9 | L58: 00:00:59.885 | M58: 00:01:00.349 | N58: 00:00:59.573
A59: 8 | B59: Diego Silva | C59: 30 | D59: 133 | E59: 00:00:59.573 | F59: 65,39km/h | K59: 10 | L59: 00:01:00.132 | M59: 00:01:00.335 | N59: 00:00:59.676
A60: 8 | B60: Diego Silva | C60: 30 | D60: 133 | E60: 00:00:59.676 | F60: 65,27km/h | K60: 11 | L60: 00:01:00.237 | M60: 00:01:00.149 | N60: 00:00:59.463
A61: 8 | B61: Diego Silva | C61: 30 | D61: 133 | E61: 00:00:59.463 | F61: 65,51km/h | K61: 12 | L61: 00:01:00.371 | M61: 00:01:00.236 | N61: 00:00:59.626
A62: 8 | B62: Diego Silva | C62: 30 | D62: 133 | E62: 00:00:59.626 | F62: 65,33km/h | K62: 13 | L62: 00:01:00.136 | M62: 00:01:00.328 | N62: 00:00:59.559
A63: 8 | B63: Diego Silva | C63: 30 | D63: 133 | E63: 00:00:59.559 | F63: 65,4km/h | K63: 14 | L63: 00:00:59.915 | M63: 00:00:59.957 | N63: 00:00:59.598
A64: 8 | B64: Diego Silva | C64: 30 | D64: 133 | E64: 00:00:59.598 | F64: 65,36km/h | K64: 15 | L64: 00:01:00.012 | M64: 00:00:59.816 | N64: 00:00:59.667
A65: 8 | B65: Diego Silva | C65: 30 | D65: 133 | E65: 00:00:59.667 | F65: 65,28km/h | K65: 16 | L65: 00:01:00.095 | M65: 00:01:00.048 | N65: 00:00:59.316
A66: 8 | B66: Diego Silva | C66: 30 | D66: 133 | E66: 00:00:59.316 | F66: 65,67km/h | K66: 17 | L66: 00:01:00.017 | M66: 00:01:00.186 | N66: 00:00:59.721
A67: 8 | B67: Diego Silva | C67: 30 | D67: 133 | E67: 00:00:59.721 | F67: 65,22km/h | K67: 18 | L67: 00:01:00.401 | M67: 00:01:00.027 | N67: 00:00:59.776
A68: 8 | B68: Diego Silva | C68: 30 | D68: 133 | E68: 00:00:59.776 | F68: 65,16km/h | K68: 19 | L68: 00:01:00.319 | M68: 00:00:59.998 | N68: 00:00:59.451
A69: 8 | B69: Diego Silva | C69: 30 | D69: 133 | E69: 00:00:59.451 | F69: 65,52km/h | K69: 20 | L69: 00:00:59.910 | M69: 00:01:00.128 | N69: 00:00:59.687
A70: 8 | B70: Diego Silva | C70: 30 | D70: 133 | E70: 00:00:59.687 | F70: 65,26km/h | K70: 21 | L70: 00:00:59.957 | M70: 00:00:59.920 | N70: 00:00:59.709
A71: 8 | B71: Diego Silva | C71: 30 | D71: 133 | E71: 00:00:59.709 | F71: 65,24km/h | K71: 22 | L71: 00:01:00.224 | M71: 00:01:00.476 | N71: 00:00:59.598
A72: 8 | B72: Diego Silva | C72: 30 | D72: 133 | E72: 00:00:59.598 | F72: 65,36km/h | K72: 23 | L72: 00:01:00.123 | M72: 00:00:59.805 | N72: 00:00:59.547
A73: 8 | B73: Diego Silva | C73: 30 | D73: 133 | E73: 00:00:59.547 | F73: 65,41km/h | K73: 24 | L73: 00:01:00.250 | M73: 00:00:59.954 | N73: 00:00:59.441
A74: 8 | B74: Diego Silva | C74: 30 | D74: 133 | E74: 00:00:59.441 | F74: 65,53km/h | K74: 25 | L74: 00:00:59.822 | M74: 00:01:00.145 | N74: 00:00:59.704
A75: 8 | B75: Diego Silva | C75: 30 | D75: 133 | E75: 00:00:59.704 | F75: 65,24km/h | K75: 26 | L75: 00:01:00.261 | M75: 00:01:00.572 | N75: 00:00:59.407
A76: 8 | B76: Diego Silva | C76: 30 | D76: 133 | E76: 00:00:59.407 | F76: 65,57km/h | K76: 27 | L76: 00:01:00.161 | M76: 00:01:00.232 | N76: 00:00:59.492
A77: 8 | B77: Diego Silva | C77: 30 | D77: 133 | E77: 00:00:59.492 | F77: 65,47km/h | K77: 28 | L77: 00:01:00.013 | M77: 00:00:59.870 | N77: 00:00:59.369
A78: 8 | B78: Diego Silva | C78: 30 | D78: 133 | E78: 00:00:59.369 | F78: 65,61km/h | K78: 29 | L78: 00:01:00.050 | M78: 00:01:00.607 | N78: 00:00:59.690
A79: 8 | B79: Diego Silva | C79: 30 | D79: 133 | E79: 00:00:59.690 | F79: 65,26km/h | K79: 30 | L79: 00:01:00.170 | M79: 00:01:02.378 | N79: 00:00:59.821
A80: 8 | B80: Diego Silva | C80: 30 | D80: 133 | E80: 00:00:59.821 | F80: 65,11km/h | K80: 31
A81: 8 | B81: Alan Silva | C81: 30 | D81: 111 | E81: 00:01:03.571 | F81: 61,27km/h | K81: 32
A82: 8 | B82: Alan Silva | C82: 30 | D82: 111 | E82: 00:01:01.371 | F82: 63,47km/h | K82: 33
A83: 8 | B83: Alan Silva | C83: 30 | D83: 111 | E83: 00:01:00.619 | F83: 64,26km/h | K83: 34
A84: 8 | B84: Alan Silva | C84: 30 | D84: 111 | E84: 00:00:59.840 | F84: 65,09km/h | K84: 35
A85: 8 | B85: Alan Silva | C85: 30 | D85: 111 | E85: 00:01:00.378 | F85: 64,51km/h | K85: 36
A86: 8 | B86: Alan Silva | C86: 30 | D86: 111 | E86: 00:01:00.040 | F86: 64,88km/h | K86: 37
A87: 8 | B87: Alan Silva | C87: 30 | D87: 111 | E87: 00:00:59.987 | F87: 64,93km/h | K87: 38
A88: 8 | B88: Alan Silva | C88: 30 | D88: 111 | E88: 00:01:00.162 | F88: 64,75km/h | K88: 39
A89: 8 | B89: Alan Silva | C89: 30 | D89: 111 | E89: 00:00:59.885 | F89: 65,04km/h | K89: 40
A90: 8 | B90: Alan Silva | C90: 30 | D90: 111 | E90: 00:01:00.132 | F90: 64,78km/h | K90: 41
A91: 8 | B91: Alan Silva | C91: 30 | D91: 111 | E91: 00:01:00.237 | F91: 64,66km/h | K91: 42
A92: 8 | B92: Alan Silva | C92: 30 | D92: 111 | E92: 00:01:00.371 | F92: 64,52km/h | K92: 43
A93: 8 | B93: Alan Silva | C93: 30 | D93: 111 | E93: 00:01:00.136 | F93: 64,77km/h | K93: 44
A94: 8 | B94: Alan Silva | C94: 30 | D94: 111 | E94: 00:00:59.915 | F94: 65,01km/h | K94: 45
A95: 8 | B95: Alan Silva | C95: 30 | D95: 111 | E95: 00:01:00.012 | F95: 64,91km/h | K95: 46
A96: 8 | B96: Alan Silva | C96: 30 | D96: 111 | E96: 00:01:00.095 | F96: 64,82km/h | K96: 47
A97: 8 | B97: Alan Silva | C97: 30 | D97: 111 | E97: 00:01:00.017 | F97: 64,9km/h | K97: 48
A98: 8 | B98: Alan Silva | C98: 30 | D98: 111 | E98: 00:01:00.401 | F98: 64,49km/h | K98: 49
A99: 8 | B99: Alan Silva | C99: 30 | D99: 111 | E99: 00:01:00.319 | F99: 64,58km/h | K99: 50
A100: 8 | B100: Alan Silva | C100: 30 | D100: 111 | E100: 00:00:59.910 | F100: 65,02km/h | K100: 51
A101: 8 | B101: Alan Silva | C101: 30 | D101: 111 | E101: 00:00:59.957 | F101: 64,97km/h | K101: 52
A102: 8 | B102: Alan Silva | C102: 30 | D102: 111 | E102: 00:01:00.224 | F102: 64,68km/h | K102: 53
A103: 8 | B103: Alan Silva | C103: 30 | D103: 111 | E103: 00:01:00.123 | F103: 64,79km/h | K103: 54
A104: 8 | B104: Alan Silva | C104: 30 | D104: 111 | E104: 00:01:00.250 | F104: 64,65km/h | K104: 55
A105: 8 | B105: Alan Silva | C105: 30 | D105: 111 | E105: 00:00:59.822 | F105: 65,11km/h | K105: 56
A106: 8 | B106: Alan Silva | C106: 30 | D106: 111 | E106: 00:01:00.261 | F106: 64,64km/h | K106: 57
A107: 8 | B107: Alan Silva | C107: 30 | D107: 111 | E107: 00:01:00.161 | F107: 64,75km/h | K107: 58
A108: 8 | B108: Alan Silva | C108: 30 | D108: 111 | E108: 00:01:00.013 | F108: 64,91km/h | K108: 59
A109: 8 | B109: Alan Silva | C109: 30 | D109: 111 | E109: 00:01:00.050 | F109: 64,87km/h | K109: 60
A110: 8 | B110: Alan Silva | C110: 30 | D110: 111 | E110: 00:01:00.170 | F110: 64,74km/h | K110: 61
A111: 8 | B111: Leonardo Bastos | C111: 30 | D111: 139 | E111: 00:01:04.408 | F111: 60,48km/h | K111: 62
A112: 8 | B112: Leonardo Bastos | C112: 30 | D112: 139 | E112: 00:01:01.355 | F112: 63,49km/h | K112: 63
A113: 8 | B113: Leonardo Bastos | C113: 30 | D113: 139 | E113: 00:01:00.940 | F113: 63,92km/h
A114: 8 | B114: Leonardo Bastos | C114: 30 | D114: 139 | E114: 00:01:00.388 | F114: 64,5km/h
A115: 8 | B115: Leonardo Bastos | C115: 30 | D115: 139 | E115: 00:01:00.326 | F115: 64,57km/h
A116: 8 | B116: Leonardo Bastos | C116: 30 | D116: 139 | E116: 00:01:01.404 | F116: 63,44km/h
A117: 8 | B117: Leonardo Bastos | C117: 30 | D117: 139 | E117: 00:01:00.934 | F117: 63,92km/h
A118: 8 | B118: Leonardo Bastos | C118: 30 | D118: 139 | E118: 00:01:00.380 | F118: 64,51km/h
A119: 8 | B119: Leonardo Bastos | C119: 30 | D119: 139 | E119: 00:01:00.349 | F119: 64,54km/h
A120: 8 | B120: Leonardo Bastos | C120: 30 | D120: 139 | E120: 00:01:00.335 | F120: 64,56km/h
A121: 8 | B121: Leonardo Bastos | C121: 30 | D121: 139 | E121: 00:01:00.149 | F121: 64,76km/h
A122: 8 | B122: Leonardo Bastos | C122: 30 | D122: 139 | E122: 00:01:00.236 | F122: 64,67km/h
A123: 8 | B123: Leonardo Bastos | C123: 30 | D123: 139 | E123: 00:01:00.328 | F123: 64,57km/h
A124: 8 | B124: Leonardo Bastos | C124: 30 | D124: 139 | E124: 00:00:59.957 | F124: 64,97km/h
A125: 8 | B125: Leonardo Bastos | C125: 30 | D125: 139 | E125: 00:00:59.816 | F125: 65,12km/h
A126: 8 | B126: Leonardo Bastos | C126: 30 | D126: 139 | E126: 00:01:00.048 | F126: 64,87km/h
A127: 8 | B127: Leonardo Bastos | C127: 30 | D127: 139 | E127: 00:01:00.186 | F127: 64,72km/h
A128: 8 | B128: Leonardo Bastos | C128: 30 | D128: 139 | E128: 00:01:00.027 | F128: 64,89km/h
A129: 8 | B129: Leonardo Bastos | C129: 30 | D129: 139 | E129: 00:00:59.998 | F129: 64,92km/h
A130: 8 | B130: Leonardo Bastos | C130: 30 | D130: 139 | E130: 00:01:00.128 | F130: 64,78km/h
A131: 8 | B131: Leonardo Bastos | C131: 30 | D131: 139 | E131: 00:00:59.920 | F131: 65,01km/h
A132: 8 | B132: Leonardo Bastos | C132: 30 | D132: 139 | E132: 00:01:00.476 | F132: 64,41km/h
A133: 8 | B133: Leonardo Bastos | C133: 30 | D133: 139 | E133: 00:00:59.805 | F133: 65,13km/h
A134: 8 | B134: Leonardo Bastos | C134: 30 | D134: 139 | E134: 00:00:59.954 | F134: 64,97km/h
A135: 8 | B135: Leonardo Bastos | C135: 30 | D135: 139 | E135: 00:01:00.145 | F135: 64,76km/h
A136: 8 | B136: Leonardo Bastos | C136: 30 | D136: 139 | E136: 00:01:00.572 | F136: 64,31km/h
A137: 8 | B137: Leonardo Bastos | C137: 30 | D137: 139 | E137: 00:01:00.232 | F137: 64,67km/h
A138: 8 | B138: Leonardo Bastos | C138: 30 | D138: 139 | E138: 00:00:59.870 | F138: 65,06km/h
A139: 8 | B139: Leonardo Bastos | C139: 30 | D139: 139 | E139: 00:01:00.607 | F139: 64,27km/h
A140: 8 | B140: Leonardo Bastos | C140: 30 | D140: 139 | E140: 00:01:02.378 | F140: 62,45km/h
A141: 8 | B141: Rodrigo Mercadante | C141: 30 | D141: 118 | E141: 00:01:10.939 | F141: 54,91km/h
A142: 8 | B142: Rodrigo Mercadante | C142: 30 | D142: 118 | E142: 00:01:00.472 | F142: 64,41km/h
A143: 8 | B143: Rodrigo Mercadante | C143: 30 | D143: 118 | E143: 00:00:59.905 | F143: 65,02km/h
A144: 8 | B144: Rodrigo Mercadante | C144: 30 | D144: 118 | E144: 00:01:00.935 | F144: 63,92km/h
A145: 8 | B145: Rodrigo Mercadante | C145: 30 | D145: 118 | E145: 00:01:01.598 | F145: 63,24km/h
A146: 8 | B146: Rodrigo Mercadante | C146: 30 | D146: 118 | E146: 00:01:01.400 | F146: 63,44km/h
A147: 8 | B147: Rodrigo Mercadante | C147: 30 | D147: 118 | E147: 00:01:01.324 | F147: 63,52km/h
A148: 8 | B148: Rodrigo Mercadante | C148: 30 | D148: 118 | E148: 00:01:00.194 | F148: 64,71km/h
A149: 8 | B149: Rodrigo Mercadante | C149: 30 | D149: 118 | E149: 00:01:00.298 | F149: 64,6km/h
A150: 8 | B150: Rodrigo Mercadante | C150: 30 | D150: 118 | E150: 00:00:59.715 | F150: 65,23km/h
A151: 8 | B151: Rodrigo Mercadante | C151: 30 | D151: 118 | E151: 00:00:59.676 | F151: 65,27km/h
A152: 8 | B152: Rodrigo Mercadante | C152: 30 | D152: 118 | E152: 00:01:00.278 | F152: 64,62km/h
A153: 8 | B153: Rodrigo Mercadante | C153: 30 | D153: 118 | E153: 00:01:00.304 | F153: 64,59km/h
A154: 8 | B154: Rodrigo Mercadante | C154: 30 | D154: 118 | E154: 00:00:59.962 | F154: 64,96km/h
A155: 8 | B155: Rodrigo Mercadante | C155: 30 | D155: 118 | E155: 00:00:59.422 | F155: 65,55km/h
A156: 8 | B156: Rodrigo Mercadante | C156: 30 | D156: 118 | E156: 00:01:00.084 | F156: 64,83km/h
A157: 8 | B157: Rodrigo Mercadante | C157: 30 | D157: 118 | E157: 00:00:59.803 | F157: 65,13km/h
A158: 8 | B158: Rodrigo Mercadante | C158: 30 | D158: 118 | E158: 00:00:59.771 | F158: 65,17km/h
A159: 8 | B159: Rodrigo Mercadante | C159: 30 | D159: 118 | E159: 00:00:59.655 | F159: 65,3km/h
A160: 8 | B160: Rodrigo Mercadante | C160: 30 | D160: 118 | E160: 00:00:59.875 | F160: 65,06km/h
A161: 8 | B161: Rodrigo Mercadante | C161: 30 | D161: 118 | E161: 00:00:59.729 | F161: 65,21km/h
A162: 8 | B162: Rodrigo Mercadante | C162: 30 | D162: 118 | E162: 00:00:59.769 | F162: 65,17km/h
A163: 8 | B163: Rodrigo Mercadante | C163: 30 | D163: 118 | E163: 00:00:59.691 | F163: 65,26km/h
A164: 8 | B164: Rodrigo Mercadante | C164: 30 | D164: 118 | E164: 00:00:59.788 | F164: 65,15km/h
A165: 8 | B165: Rodrigo Mercadante | C165: 30 | D165: 118 | E165: 00:00:59.655 | F165: 65,3km/h
A166: 8 | B166: Rodrigo Mercadante | C166: 30 | D166: 118 | E166: 00:00:59.557 | F166: 65,4km/h
A167: 8 | B167: Rodrigo Mercadante | C167: 30 | D167: 118 | E167: 00:00:59.943 | F167: 64,98km/h
A168: 8 | B168: Rodrigo Mercadante | C168: 30 | D168: 118 | E168: 00:01:00.087 | F168: 64,83km/h
A169: 8 | B169: Rodrigo Mercadante | C169: 30 | D169: 118 | E169: 00:01:00.776 | F169: 64,09km/h
A170: 8 | B170: Rodrigo Mercadante | C170: 30 | D170: 118 | E170: 00:01:02.078 | F170: 62,75km/h
A171: 8 | B171: Rafael Miranda | C171: 30 | D171: 116 | E171: 00:01:03.979 | F171: 60,88km/h
A172: 8 | B172: Rafael Miranda | C172: 30 | D172: 116 | E172: 00:01:01.553 | F172: 63,28km/h
A173: 8 | B173: Rafael Miranda | C173: 30 | D173: 116 | E173: 00:01:00.467 | F173: 64,42km/h
A174: 8 | B174: Rafael Miranda | C174: 30 | D174: 116 | E174: 00:01:00.494 | F174: 64,39km/h
A175: 8 | B175: Rafael Miranda | C175: 30 | D175: 116 | E175: 00:01:00.302 | F175: 64,59km/h
A176: 8 | B176: Rafael Miranda | C176: 30 | D176: 116 | E176: 00:01:01.151 | F176: 63,7km/h
A177: 8 | B177: Rafael Miranda | C177: 30 | D177: 116 | E177: 00:01:01.318 | F177: 63,52km/h
A178: 8 | B178: Rafael Miranda | C178: 30 | D178: 116 | E178: 00:01:00.092 | F178: 64,82km/h
A179: 8 | B179: Rafael Miranda | C179: 30 | D179: 116 | E179: 00:01:00.422 | F179: 64,47km/h
A180: 8 | B180: Rafael Miranda | C180: 30 | D180: 116 | E180: 00:01:00.810 | F180: 64,06km/h
A181: 8 | B181: Rafael Miranda | C181: 30 | D181: 116 | E181: 00:00:59.707 | F181: 65,24km/h
A182: 8 | B182: Rafael Miranda | C182: 30 | D182: 116 | E182: 00:00:59.985 | F182: 64,94km/h
A183: 8 | B183: Rafael Miranda | C183: 30 | D183: 116 | E183: 00:01:00.038 | F183: 64,88km/h
A184: 8 | B184: Rafael Miranda | C184: 30 | D184: 116 | E184: 00:01:00.093 | F184: 64,82km/h
A185: 8 | B185: Rafael Miranda | C185: 30 | D185: 116 | E185: 00:00:59.698 | F185: 65,25km/h
A186: 8 | B186: Rafael Miranda | C186: 30 | D186: 116 | E186: 00:01:00.054 | F186: 64,86km/h
A187: 8 | B187: Rafael Miranda | C187: 30 | D187: 116 | E187: 00:01:00.146 | F187: 64,76km/h
A188: 8 | B188: Rafael Miranda | C188: 30 | D188: 116 | E188: 00:01:00.077 | F188: 64,84km/h
A189: 8 | B189: Rafael Miranda | C189: 30 | D189: 116 | E189: 00:00:59.922 | F189: 65km/h
A190: 8 | B190: Rafael Miranda | C190: 30 | D190: 116 | E190: 00:01:00.191 | F190: 64,71km/h
A191: 8 | B191: Rafael Miranda | C191: 30 | D191: 116 | E191: 00:00:59.918 | F191: 65,01km/h
A192: 8 | B192: Rafael Miranda | C192: 30 | D192: 116 | E192: 00:01:00.188 | F192: 64,72km/h
A193: 8 | B193: Rafael Miranda | C193: 30 | D193: 116 | E193: 00:01:00.030 | F193: 64,89km/h
A194: 8 | B194: Rafael Miranda | C194: 30 | D194: 116 | E194: 00:01:00.090 | F194: 64,82km/h
A195: 8 | B195: Rafael Miranda | C195: 30 | D195: 116 | E195: 00:01:00.033 | F195: 64,88km/h
A196: 8 | B196: Rafael Miranda | C196: 30 | D196: 116 | E196: 00:01:00.085 | F196: 64,83km/h
A197: 8 | B197: Rafael Miranda | C197: 30 | D197: 116 | E197: 00:01:00.382 | F197: 64,51km/h
A198: 8 | B198: Rafael Miranda | C198: 30 | D198: 116 | E198: 00:00:59.964 | F198: 64,96km/h
A199: 8 | B199: Rafael Miranda | C199: 30 | D199: 116 | E199: 00:01:00.615 | F199: 64,26km/h
A200: 8 | B200: Rafael Miranda | C200: 30 | D200: 116 | E200: 00:01:03.534 | F200: 61,31km/h
A201: 8 | B201: Leonardo Bosco | C201: 30 | D201: 115 | E201: 00:01:02.284 | F201: 62,54km/h
A202: 8 | B202: Leonardo Bosco | C202: 30 | D202: 115 | E202: 00:01:01.418 | F202: 63,42km/h
A203: 8 | B203: Leonardo Bosco | C203: 30 | D203: 115 | E203: 00:01:00.624 | F203: 64,25km/h
A204: 8 | B204: Leonardo Bosco | C204: 30 | D204: 115 | E204: 00:01:00.518 | F204: 64,36km/h
A205: 8 | B205: Leonardo Bosco | C205: 30 | D205: 115 | E205: 00:01:00.505 | F205: 64,38km/h
A206: 8 | B206: Leonardo Bosco | C206: 30 | D206: 115 | E206: 00:01:00.998 | F206: 63,86km/h
A207: 8 | B207: Leonardo Bosco | C207: 30 | D207: 115 | E207: 00:01:00.841 | F207: 64,02km/h
A208: 8 | B208: Leonardo Bosco | C208: 30 | D208: 115 | E208: 00:01:00.044 | F208: 64,87km/h
A209: 8 | B209: Leonardo Bosco | C209: 30 | D209: 115 | E209: 00:01:00.454 | F209: 64,43km/h
A210: 8 | B210: Leonardo Bosco | C210: 30 | D210: 115 | E210: 00:01:00.629 | F210: 64,25km/h
A211: 8 | B211: Leonardo Bosco | C211: 30 | D211: 115 | E211: 00:00:59.937 | F211: 64,99km/h
A212: 8 | B212: Leonardo Bosco | C212: 30 | D212: 115 | E212: 00:00:59.743 | F212: 65,2km/h
A213: 8 | B213: Leonardo Bosco | C213: 30 | D213: 115 | E213: 00:01:00.087 | F213: 64,83km/h
A214: 8 | B214: Leonardo Bosco | C214: 30 | D214: 115 | E214: 00:01:00.007 | F214: 64,91km/h
A215: 8 | B215: Leonardo Bosco | C215: 30 | D215: 115 | E215: 00:00:59.763 | F215: 65,18km/h
A216: 8 | B216: Leonardo Bosco | C216: 30 | D216: 115 | E216: 00:01:00.049 | F216: 64,87km/h
A217: 8 | B217: Leonardo Bosco | C217: 30 | D217: 115 | E217: 00:01:00.237 | F217: 64,66km/h
A218: 8 | B218: Leonardo Bosco | C218: 30 | D218: 115 | E218: 00:00:59.999 | F218: 64,92km/h
A219: 8 | B219: Leonardo Bosco | C219: 30 | D219: 115 | E219: 00:01:00.024 | F219: 64,89km/h
A220: 8 | B220: Leonardo Bosco | C220: 30 | D220: 115 | E220: 00:01:00.108 | F220: 64,8km/h
A221: 8 | B221: Leonardo Bosco | C221: 30 | D221: 115 | E221: 00:00:59.857 | F221: 65,08km/h
... 611 more rows

Sheet ETAPA 7
A1: Obs.: 1. Selecione o nome de um Piloto, 2. Com a tecla Ctrl pressionada, Selecione o seu nome e 3. Clique sobre o Gráfico (Habilite a macro) Para as demais comparações Selecione o nome do Piloto e Clique sobre o Gráfico | G1: PILOTO | H1: =L$48 -> Victor Silva | I1: =M$48 -> Marcelo Sant'anna | J1: =A2 -> Marcelo Campos | M1: 00:00:01
A2: Marcelo Campos | G2: MÉDIA | H2: =AVERAGE(L$49:L$105) -> 00:01:10.437 | I2: =AVERAGE(M$49:M$105) -> 00:01:10.405 | J2: =AVERAGE(N$49:N$105) -> 00:01:10.212 | M2: =M1 -> 00:00:01
A3: Victor Silva | G3: MAXIMA | H3: =LARGE(L$49:L$105,1) -> 00:01:17.355 | I3: =LARGE(M$49:M$105,1) -> 00:01:16.661 | J3: =LARGE(N$49:N$105,1) -> 00:01:16.431
A4: Marcelo Sant'anna | G4: MÍNIMA | H4: =SMALL(L$49:L$105,1) -> 00:01:09.679 | I4: =SMALL(M$49:M$105,1) -> 00:01:09.528 | J4: =SMALL(N$49:N$105,1) -> 00:01:09.172
A5: Rodrigo Mercadante | G5: Desvio Padrão | H5: =_xlfn.STDEV.S(L$50:L$130) -> 00:00:01.489 | I5: =_xlfn.STDEV.S(M$50:M$130) -> 00:00:01.385 | J5: =_xlfn.STDEV.S(N$50:N$130) -> 00:00:01.435
A6: Gabriel Veloso | G6: TEMPO TOTAL | H6: =SUM(L$49:L$105,1) -> 1.021196308 | I6: =SUM(M$49:M$105,1) -> 1.021186574 | J6: =SUM(N$49:N$105,1) -> 1.021128542
A7: Guilherme Alves
A8: Alan Silva
A9: Rafael Cantoni
A10: Wesley Canuto
A11: Alexandre Melillo
A12: Léo Oliveira
A13: Marcelo Surerus | J13: =SMALL(H4:J4,1)-K13 -> 00:01:08.922 | K13: 00:00:00.250
A14: Daniel Nahum | J14: =LARGE(H3:J3,1)+K13 -> 00:01:17.605
A15: Leonardo Bastos
A16: Felipe Franca
A17: Rafael Alves
A18: Jarbas Reis
A19: Jean Paul
A20: Pedro Mello
A21: Saulo Chagas
A22: Neylon Silva
A23: Rafael Miranda
A24: Eduardo Henrique
L48: Victor Silva | M48: Marcelo Sant'anna | N48: Marcelo Campos
K49: NÚMERO VOLTAS | L49: Victor Silva | M49: Marcelo Sant'anna | N49: Marcelo Campos
A50: ETAPA | B50: PILOTO | C50: NÚMERO VOLTAS | D50: KART | E50: Volta Tm | F50: velocidade Media | K50: 1 | L50: 00:01:17.355 | M50: 00:01:16.661 | N50: 00:01:16.431
A51: 7 | B51: Marcelo Campos | C51: 26 | D51: 134 | E51: 00:01:16.431 | F51: 56,52km/h | K51: 2 | L51: 00:01:11.655 | M51: 00:01:11.542 | N51: 00:01:12.485
A52: 7 | B52: Marcelo Campos | C52: 26 | D52: 134 | E52: 00:01:12.485 | F52: 59,6km/h | K52: 3 | L52: 00:01:10.869 | M52: 00:01:11.209 | N52: 00:01:11.128
A53: 7 | B53: Marcelo Campos | C53: 26 | D53: 134 | E53: 00:01:11.128 | F53: 60,74km/h | K53: 4 | L53: 00:01:10.583 | M53: 00:01:10.905 | N53: 00:01:10.908
A54: 7 | B54: Marcelo Campos | C54: 26 | D54: 134 | E54: 00:01:10.908 | F54: 60,92km/h | K54: 5 | L54: 00:01:10.082 | M54: 00:01:11.005 | N54: 00:01:09.955
A55: 7 | B55: Marcelo Campos | C55: 26 | D55: 134 | E55: 00:01:09.955 | F55: 61,75km/h | K55: 6 | L55: 00:01:09.790 | M55: 00:01:10.034 | N55: 00:01:10.361
A56: 7 | B56: Marcelo Campos | C56: 26 | D56: 134 | E56: 00:01:10.361 | F56: 61,4km/h | K56: 7 | L56: 00:01:10 | M56: 00:01:09.725 | N56: 00:01:09.844
A57: 7 | B57: Marcelo Campos | C57: 26 | D57: 134 | E57: 00:01:09.844 | F57: 61,85km/h | K57: 8 | L57: 00:01:09.762 | M57: 00:01:09.658 | N57: 00:01:09.657
A58: 7 | B58: Marcelo Campos | C58: 26 | D58: 134 | E58: 00:01:09.657 | F58: 62,02km/h | K58: 9 | L58: 00:01:09.754 | M58: 00:01:09.619 | N58: 00:01:09.863
A59: 7 | B59: Marcelo Campos | C59: 26 | D59: 134 | E59: 00:01:09.863 | F59: 61,84km/h | K59: 10 | L59: 00:01:10.275 | M59: 00:01:09.902 | N59: 00:01:09.498
A60: 7 | B60: Marcelo Campos | C60: 26 | D60: 134 | E60: 00:01:09.498 | F60: 62,16km/h | K60: 11 | L60: 00:01:09.907 | M60: 00:01:09.805 | N60: 00:01:09.730
A61: 7 | B61: Marcelo Campos | C61: 26 | D61: 134 | E61: 00:01:09.730 | F61: 61,95km/h | K61: 12 | L61: 00:01:10.229 | M61: 00:01:10.056 | N61: 00:01:09.480
A62: 7 | B62: Marcelo Campos | C62: 26 | D62: 134 | E62: 00:01:09.480 | F62: 62,18km/h | K62: 13 | L62: 00:01:10.035 | M62: 00:01:09.823 | N62: 00:01:09.631
A63: 7 | B63: Marcelo Campos | C63: 26 | D63: 134 | E63: 00:01:09.631 | F63: 62,04km/h | K63: 14 | L63: 00:01:10.151 | M63: 00:01:09.611 | N63: 00:01:09.172
A64: 7 | B64: Marcelo Campos | C64: 26 | D64: 134 | E64: 00:01:09.172 | F64: 62,45km/h | K64: 15 | L64: 00:01:09.920 | M64: 00:01:09.924 | N64: 00:01:09.693
A65: 7 | B65: Marcelo Campos | C65: 26 | D65: 134 | E65: 00:01:09.693 | F65: 61,99km/h | K65: 16 | L65: 00:01:10.670 | M65: 00:01:10.779 | N65: 00:01:10.319
A66: 7 | B66: Marcelo Campos | C66: 26 | D66: 134 | E66: 00:01:10.319 | F66: 61,43km/h | K66: 17 | L66: 00:01:10.311 | M66: 00:01:10.119 | N66: 00:01:09.823
A67: 7 | B67: Marcelo Campos | C67: 26 | D67: 134 | E67: 00:01:09.823 | F67: 61,87km/h | K67: 18 | L67: 00:01:10.140 | M67: 00:01:10.754 | N67: 00:01:09.802
A68: 7 | B68: Marcelo Campos | C68: 26 | D68: 134 | E68: 00:01:09.802 | F68: 61,89km/h | K68: 19 | L68: 00:01:09.808 | M68: 00:01:10.269 | N68: 00:01:09.538
A69: 7 | B69: Marcelo Campos | C69: 26 | D69: 134 | E69: 00:01:09.538 | F69: 62,12km/h | K69: 20 | L69: 00:01:09.852 | M69: 00:01:09.783 | N69: 00:01:09.674
A70: 7 | B70: Marcelo Campos | C70: 26 | D70: 134 | E70: 00:01:09.674 | F70: 62km/h | K70: 21 | L70: 00:01:09.679 | M70: 00:01:10.017 | N70: 00:01:09.239
A71: 7 | B71: Marcelo Campos | C71: 26 | D71: 134 | E71: 00:01:09.239 | F71: 62,39km/h | K71: 22 | L71: 00:01:09.737 | M71: 00:01:09.824 | N71: 00:01:09.734
A72: 7 | B72: Marcelo Campos | C72: 26 | D72: 134 | E72: 00:01:09.734 | F72: 61,95km/h | K72: 23 | L72: 00:01:11.120 | M72: 00:01:10.047 | N72: 00:01:09.954
A73: 7 | B73: Marcelo Campos | C73: 26 | D73: 134 | E73: 00:01:09.954 | F73: 61,75km/h | K73: 24 | L73: 00:01:09.756 | M73: 00:01:09.848 | N73: 00:01:09.982
A74: 7 | B74: Marcelo Campos | C74: 26 | D74: 134 | E74: 00:01:09.982 | F74: 61,73km/h | K74: 25 | L74: 00:01:09.834 | M74: 00:01:09.528 | N74: 00:01:09.909
A75: 7 | B75: Marcelo Campos | C75: 26 | D75: 134 | E75: 00:01:09.909 | F75: 61,79km/h | K75: 26 | L75: 00:01:10.087 | M75: 00:01:10.073 | N75: 00:01:09.696
A76: 7 | B76: Marcelo Campos | C76: 26 | D76: 134 | E76: 00:01:09.696 | F76: 61,98km/h | K76: 27
A77: 7 | B77: Victor Silva | C77: 26 | D77: 130 | E77: 00:01:17.355 | F77: 55,85km/h | K77: 28
A78: 7 | B78: Victor Silva | C78: 26 | D78: 130 | E78: 00:01:11.655 | F78: 60,29km/h | K78: 29
A79: 7 | B79: Victor Silva | C79: 26 | D79: 130 | E79: 00:01:10.869 | F79: 60,96km/h | K79: 30
A80: 7 | B80: Victor Silva | C80: 26 | D80: 130 | E80: 00:01:10.583 | F80: 61,2km/h | K80: 31
A81: 7 | B81: Victor Silva | C81: 26 | D81: 130 | E81: 00:01:10.082 | F81: 61,64km/h | K81: 32
A82: 7 | B82: Victor Silva | C82: 26 | D82: 130 | E82: 00:01:09.790 | F82: 61,9km/h | K82: 33
A83: 7 | B83: Victor Silva | C83: 26 | D83: 130 | E83: 00:01:10 | F83: 61,71km/h | K83: 34
A84: 7 | B84: Victor Silva | C84: 26 | D84: 130 | E84: 00:01:09.762 | F84: 61,92km/h | K84: 35
A85: 7 | B85: Victor Silva | C85: 26 | D85: 130 | E85: 00:01:09.754 | F85: 61,93km/h | K85: 36
A86: 7 | B86: Victor Silva | C86: 26 | D86: 130 | E86: 00:01:10.275 | F86: 61,47km/h | K86: 37
A87: 7 | B87: Victor Silva | C87: 26 | D87: 130 | E87: 00:01:09.907 | F87: 61,8km/h | K87: 38
A88: 7 | B88: Victor Silva | C88: 26 | D88: 130 | E88: 00:01:10.229 | F88: 61,51km/h | K88: 39
A89: 7 | B89: Victor Silva | C89: 26 | D89: 130 | E89: 00:01:10.035 | F89: 61,68km/h | K89: 40
A90: 7 | B90: Victor Silva | C90: 26 | D90: 130 | E90: 00:01:10.151 | F90: 61,58km/h | K90: 41
A91: 7 | B91: Victor Silva | C91: 26 | D91: 130 | E91: 00:01:09.920 | F91: 61,78km/h | K91: 42
A92: 7 | B92: Victor Silva | C92: 26 | D92: 130 | E92: 00:01:10.670 | F92: 61,13km/h | K92: 43
A93: 7 | B93: Victor Silva | C93: 26 | D93: 130 | E93: 00:01:10.311 | F93: 61,44km/h | K93: 44
A94: 7 | B94: Victor Silva | C94: 26 | D94: 130 | E94: 00:01:10.140 | F94: 61,59km/h | K94: 45
A95: 7 | B95: Victor Silva | C95: 26 | D95: 130 | E95: 00:01:09.808 | F95: 61,88km/h | K95: 46
A96: 7 | B96: Victor Silva | C96: 26 | D96: 130 | E96: 00:01:09.852 | F96: 61,85km/h | K96: 47
A97: 7 | B97: Victor Silva | C97: 26 | D97: 130 | E97: 00:01:09.679 | F97: 62km/h | K97: 48
A98: 7 | B98: Victor Silva | C98: 26 | D98: 130 | E98: 00:01:09.737 | F98: 61,95km/h | K98: 49
A99: 7 | B99: Victor Silva | C99: 26 | D99: 130 | E99: 00:01:11.120 | F99: 60,74km/h | K99: 50
A100: 7 | B100: Victor Silva | C100: 26 | D100: 130 | E100: 00:01:09.756 | F100: 61,93km/h | K100: 51
A101: 7 | B101: Victor Silva | C101: 26 | D101: 130 | E101: 00:01:09.834 | F101: 61,86km/h | K101: 52
A102: 7 | B102: Victor Silva | C102: 26 | D102: 130 | E102: 00:01:10.087 | F102: 61,64km/h | K102: 53
A103: 7 | B103: Marcelo Sant'anna | C103: 26 | D103: 131 | E103: 00:01:16.661 | F103: 56,35km/h | K103: 54
A104: 7 | B104: Marcelo Sant'anna | C104: 26 | D104: 131 | E104: 00:01:11.542 | F104: 60,38km/h | K104: 55
A105: 7 | B105: Marcelo Sant'anna | C105: 26 | D105: 131 | E105: 00:01:11.209 | F105: 60,67km/h | K105: 56
A106: 7 | B106: Marcelo Sant'anna | C106: 26 | D106: 131 | E106: 00:01:10.905 | F106: 60,93km/h | K106: 57
A107: 7 | B107: Marcelo Sant'anna | C107: 26 | D107: 131 | E107: 00:01:11.005 | F107: 60,84km/h | K107: 58
A108: 7 | B108: Marcelo Sant'anna | C108: 26 | D108: 131 | E108: 00:01:10.034 | F108: 61,68km/h | K108: 59
A109: 7 | B109: Marcelo Sant'anna | C109: 26 | D109: 131 | E109: 00:01:09.725 | F109: 61,96km/h | K109: 60
A110: 7 | B110: Marcelo Sant'anna | C110: 26 | D110: 131 | E110: 00:01:09.658 | F110: 62,02km/h | K110: 61
A111: 7 | B111: Marcelo Sant'anna | C111: 26 | D111: 131 | E111: 00:01:09.619 | F111: 62,05km/h | K111: 62
A112: 7 | B112: Marcelo Sant'anna | C112: 26 | D112: 131 | E112: 00:01:09.902 | F112: 61,8km/h | K112: 63
A113: 7 | B113: Marcelo Sant'anna | C113: 26 | D113: 131 | E113: 00:01:09.805 | F113: 61,89km/h
A114: 7 | B114: Marcelo Sant'anna | C114: 26 | D114: 131 | E114: 00:01:10.056 | F114: 61,66km/h
A115: 7 | B115: Marcelo Sant'anna | C115: 26 | D115: 131 | E115: 00:01:09.823 | F115: 61,87km/h
A116: 7 | B116: Marcelo Sant'anna | C116: 26 | D116: 131 | E116: 00:01:09.611 | F116: 62,06km/h
A117: 7 | B117: Marcelo Sant'anna | C117: 26 | D117: 131 | E117: 00:01:09.924 | F117: 61,78km/h
A118: 7 | B118: Marcelo Sant'anna | C118: 26 | D118: 131 | E118: 00:01:10.779 | F118: 61,04km/h
A119: 7 | B119: Marcelo Sant'anna | C119: 26 | D119: 131 | E119: 00:01:10.119 | F119: 61,61km/h
A120: 7 | B120: Marcelo Sant'anna | C120: 26 | D120: 131 | E120: 00:01:10.754 | F120: 61,06km/h
A121: 7 | B121: Marcelo Sant'anna | C121: 26 | D121: 131 | E121: 00:01:10.269 | F121: 61,48km/h
A122: 7 | B122: Marcelo Sant'anna | C122: 26 | D122: 131 | E122: 00:01:09.783 | F122: 61,91km/h
A123: 7 | B123: Marcelo Sant'anna | C123: 26 | D123: 131 | E123: 00:01:10.017 | F123: 61,7km/h
A124: 7 | B124: Marcelo Sant'anna | C124: 26 | D124: 131 | E124: 00:01:09.824 | F124: 61,87km/h
A125: 7 | B125: Marcelo Sant'anna | C125: 26 | D125: 131 | E125: 00:01:10.047 | F125: 61,67km/h
A126: 7 | B126: Marcelo Sant'anna | C126: 26 | D126: 131 | E126: 00:01:09.848 | F126: 61,85km/h
A127: 7 | B127: Marcelo Sant'anna | C127: 26 | D127: 131 | E127: 00:01:09.528 | F127: 62,13km/h
A128: 7 | B128: Marcelo Sant'anna | C128: 26 | D128: 131 | E128: 00:01:10.073 | F128: 61,65km/h
A129: 7 | B129: Rodrigo Mercadante | C129: 26 | D129: 107 | E129: 00:01:18.158 | F129: 55,27km/h
A130: 7 | B130: Rodrigo Mercadante | C130: 26 | D130: 107 | E130: 00:01:11.393 | F130: 60,51km/h
A131: 7 | B131: Rodrigo Mercadante | C131: 26 | D131: 107 | E131: 00:01:10.611 | F131: 61,18km/h
A132: 7 | B132: Rodrigo Mercadante | C132: 26 | D132: 107 | E132: 00:01:10.058 | F132: 61,66km/h
A133: 7 | B133: Rodrigo Mercadante | C133: 26 | D133: 107 | E133: 00:01:09.949 | F133: 61,76km/h
A134: 7 | B134: Rodrigo Mercadante | C134: 26 | D134: 107 | E134: 00:01:09.972 | F134: 61,74km/h
A135: 7 | B135: Rodrigo Mercadante | C135: 26 | D135: 107 | E135: 00:01:10.153 | F135: 61,58km/h
A136: 7 | B136: Rodrigo Mercadante | C136: 26 | D136: 107 | E136: 00:01:10.031 | F136: 61,69km/h
A137: 7 | B137: Rodrigo Mercadante | C137: 26 | D137: 107 | E137: 00:01:10.255 | F137: 61,49km/h
A138: 7 | B138: Rodrigo Mercadante | C138: 26 | D138: 107 | E138: 00:01:10.285 | F138: 61,46km/h
A139: 7 | B139: Rodrigo Mercadante | C139: 26 | D139: 107 | E139: 00:01:09.913 | F139: 61,79km/h
A140: 7 | B140: Rodrigo Mercadante | C140: 26 | D140: 107 | E140: 00:01:10.175 | F140: 61,56km/h
A141: 7 | B141: Rodrigo Mercadante | C141: 26 | D141: 107 | E141: 00:01:10.167 | F141: 61,57km/h
A142: 7 | B142: Rodrigo Mercadante | C142: 26 | D142: 107 | E142: 00:01:09.988 | F142: 61,72km/h
A143: 7 | B143: Rodrigo Mercadante | C143: 26 | D143: 107 | E143: 00:01:09.950 | F143: 61,76km/h
A144: 7 | B144: Rodrigo Mercadante | C144: 26 | D144: 107 | E144: 00:01:10.099 | F144: 61,63km/h
A145: 7 | B145: Rodrigo Mercadante | C145: 26 | D145: 107 | E145: 00:01:10.153 | F145: 61,58km/h
A146: 7 | B146: Rodrigo Mercadante | C146: 26 | D146: 107 | E146: 00:01:09.857 | F146: 61,84km/h
A147: 7 | B147: Rodrigo Mercadante | C147: 26 | D147: 107 | E147: 00:01:09.988 | F147: 61,72km/h
A148: 7 | B148: Rodrigo Mercadante | C148: 26 | D148: 107 | E148: 00:01:09.977 | F148: 61,73km/h
A149: 7 | B149: Rodrigo Mercadante | C149: 26 | D149: 107 | E149: 00:01:09.810 | F149: 61,88km/h
A150: 7 | B150: Rodrigo Mercadante | C150: 26 | D150: 107 | E150: 00:01:10.088 | F150: 61,64km/h
A151: 7 | B151: Rodrigo Mercadante | C151: 26 | D151: 107 | E151: 00:01:09.710 | F151: 61,97km/h
A152: 7 | B152: Rodrigo Mercadante | C152: 26 | D152: 107 | E152: 00:01:13.099 | F152: 59,1km/h
A153: 7 | B153: Rodrigo Mercadante | C153: 26 | D153: 107 | E153: 00:01:10.155 | F153: 61,58km/h
A154: 7 | B154: Rodrigo Mercadante | C154: 26 | D154: 107 | E154: 00:01:09.856 | F154: 61,84km/h
A155: 7 | B155: Gabriel Veloso | C155: 26 | D155: 101 | E155: 00:01:14.080 | F155: 58,32km/h
A156: 7 | B156: Gabriel Veloso | C156: 26 | D156: 101 | E156: 00:01:20.650 | F156: 53,56km/h
A157: 7 | B157: Gabriel Veloso | C157: 26 | D157: 101 | E157: 00:01:10.390 | F157: 61,37km/h
A158: 7 | B158: Gabriel Veloso | C158: 26 | D158: 101 | E158: 00:01:09.798 | F158: 61,89km/h
A159: 7 | B159: Gabriel Veloso | C159: 26 | D159: 101 | E159: 00:01:10.310 | F159: 61,44km/h
A160: 7 | B160: Gabriel Veloso | C160: 26 | D160: 101 | E160: 00:01:09.921 | F160: 61,78km/h
A161: 7 | B161: Gabriel Veloso | C161: 26 | D161: 101 | E161: 00:01:10.125 | F161: 61,6km/h
A162: 7 | B162: Gabriel Veloso | C162: 26 | D162: 101 | E162: 00:01:10.207 | F162: 61,53km/h
A163: 7 | B163: Gabriel Veloso | C163: 26 | D163: 101 | E163: 00:01:09.720 | F163: 61,96km/h
A164: 7 | B164: Gabriel Veloso | C164: 26 | D164: 101 | E164: 00:01:10.119 | F164: 61,61km/h
A165: 7 | B165: Gabriel Veloso | C165: 26 | D165: 101 | E165: 00:01:09.906 | F165: 61,8km/h
A166: 7 | B166: Gabriel Veloso | C166: 26 | D166: 101 | E166: 00:01:10.057 | F166: 61,66km/h
A167: 7 | B167: Gabriel Veloso | C167: 26 | D167: 101 | E167: 00:01:09.658 | F167: 62,02km/h
A168: 7 | B168: Gabriel Veloso | C168: 26 | D168: 101 | E168: 00:01:09.295 | F168: 62,34km/h
A169: 7 | B169: Gabriel Veloso | C169: 26 | D169: 101 | E169: 00:01:09.400 | F169: 62,25km/h
A170: 7 | B170: Gabriel Veloso | C170: 26 | D170: 101 | E170: 00:01:09.583 | F170: 62,08km/h
A171: 7 | B171: Gabriel Veloso | C171: 26 | D171: 101 | E171: 00:01:09.632 | F171: 62,04km/h
A172: 7 | B172: Gabriel Veloso | C172: 26 | D172: 101 | E172: 00:01:09.690 | F172: 61,99km/h
A173: 7 | B173: Gabriel Veloso | C173: 26 | D173: 101 | E173: 00:01:09.494 | F173: 62,16km/h
A174: 7 | B174: Gabriel Veloso | C174: 26 | D174: 101 | E174: 00:01:09.256 | F174: 62,38km/h
A175: 7 | B175: Gabriel Veloso | C175: 26 | D175: 101 | E175: 00:01:09.770 | F175: 61,92km/h
A176: 7 | B176: Gabriel Veloso | C176: 26 | D176: 101 | E176: 00:01:09.402 | F176: 62,25km/h
A177: 7 | B177: Gabriel Veloso | C177: 26 | D177: 101 | E177: 00:01:09.202 | F177: 62,43km/h
A178: 7 | B178: Gabriel Veloso | C178: 26 | D178: 101 | E178: 00:01:09.540 | F178: 62,12km/h
A179: 7 | B179: Gabriel Veloso | C179: 26 | D179: 101 | E179: 00:01:09.210 | F179: 62,42km/h
A180: 7 | B180: Gabriel Veloso | C180: 26 | D180: 101 | E180: 00:01:10.705 | F180: 61,1km/h
A181: 7 | B181: Guilherme Alves | C181: 26 | D181: 147 | E181: 00:01:16.622 | F181: 56,38km/h
A182: 7 | B182: Guilherme Alves | C182: 26 | D182: 147 | E182: 00:01:11.443 | F182: 60,47km/h
A183: 7 | B183: Guilherme Alves | C183: 26 | D183: 147 | E183: 00:01:11.083 | F183: 60,77km/h
A184: 7 | B184: Guilherme Alves | C184: 26 | D184: 147 | E184: 00:01:10.745 | F184: 61,06km/h
A185: 7 | B185: Guilherme Alves | C185: 26 | D185: 147 | E185: 00:01:10.502 | F185: 61,27km/h
A186: 7 | B186: Guilherme Alves | C186: 26 | D186: 147 | E186: 00:01:09.928 | F186: 61,78km/h
A187: 7 | B187: Guilherme Alves | C187: 26 | D187: 147 | E187: 00:01:09.841 | F187: 61,85km/h
A188: 7 | B188: Guilherme Alves | C188: 26 | D188: 147 | E188: 00:01:09.735 | F188: 61,95km/h
A189: 7 | B189: Guilherme Alves | C189: 26 | D189: 147 | E189: 00:01:09.854 | F189: 61,84km/h
A190: 7 | B190: Guilherme Alves | C190: 26 | D190: 147 | E190: 00:01:10.513 | F190: 61,27km/h
A191: 7 | B191: Guilherme Alves | C191: 26 | D191: 147 | E191: 00:01:09.999 | F191: 61,72km/h
A192: 7 | B192: Guilherme Alves | C192: 26 | D192: 147 | E192: 00:01:09.798 | F192: 61,89km/h
A193: 7 | B193: Guilherme Alves | C193: 26 | D193: 147 | E193: 00:01:09.742 | F193: 61,94km/h
A194: 7 | B194: Guilherme Alves | C194: 26 | D194: 147 | E194: 00:01:09.728 | F194: 61,96km/h
A195: 7 | B195: Guilherme Alves | C195: 26 | D195: 147 | E195: 00:01:10.214 | F195: 61,53km/h
A196: 7 | B196: Guilherme Alves | C196: 26 | D196: 147 | E196: 00:01:10.334 | F196: 61,42km/h
A197: 7 | B197: Guilherme Alves | C197: 26 | D197: 147 | E197: 00:01:10.143 | F197: 61,59km/h
A198: 7 | B198: Guilherme Alves | C198: 26 | D198: 147 | E198: 00:01:10.791 | F198: 61,02km/h
A199: 7 | B199: Guilherme Alves | C199: 26 | D199: 147 | E199: 00:01:10.273 | F199: 61,47km/h
A200: 7 | B200: Guilherme Alves | C200: 26 | D200: 147 | E200: 00:01:09.930 | F200: 61,78km/h
A201: 7 | B201: Guilherme Alves | C201: 26 | D201: 147 | E201: 00:01:10.236 | F201: 61,51km/h
A202: 7 | B202: Guilherme Alves | C202: 26 | D202: 147 | E202: 00:01:09.778 | F202: 61,91km/h
A203: 7 | B203: Guilherme Alves | C203: 26 | D203: 147 | E203: 00:01:09.800 | F203: 61,89km/h
A204: 7 | B204: Guilherme Alves | C204: 26 | D204: 147 | E204: 00:01:10.654 | F204: 61,14km/h
A205: 7 | B205: Guilherme Alves | C205: 26 | D205: 147 | E205: 00:01:10.798 | F205: 61,02km/h
A206: 7 | B206: Guilherme Alves | C206: 26 | D206: 147 | E206: 00:01:11.007 | F206: 60,84km/h
A207: 7 | B207: Alan Silva | C207: 26 | D207: 127 | E207: 00:01:17.187 | F207: 55,97km/h
A208: 7 | B208: Alan Silva | C208: 26 | D208: 127 | E208: 00:01:11.398 | F208: 60,51km/h
A209: 7 | B209: Alan Silva | C209: 26 | D209: 127 | E209: 00:01:10.978 | F209: 60,86km/h
A210: 7 | B210: Alan Silva | C210: 26 | D210: 127 | E210: 00:01:10.394 | F210: 61,37km/h
A211: 7 | B211: Alan Silva | C211: 26 | D211: 127 | E211: 00:01:10.396 | F211: 61,37km/h
A212: 7 | B212: Alan Silva | C212: 26 | D212: 127 | E212: 00:01:10.926 | F212: 60,91km/h
A213: 7 | B213: Alan Silva | C213: 26 | D213: 127 | E213: 00:01:10.116 | F213: 61,61km/h
A214: 7 | B214: Alan Silva | C214: 26 | D214: 127 | E214: 00:01:10.007 | F214: 61,71km/h
A215: 7 | B215: Alan Silva | C215: 26 | D215: 127 | E215: 00:01:10.358 | F215: 61,4km/h
A216: 7 | B216: Alan Silva | C216: 26 | D216: 127 | E216: 00:01:09.969 | F216: 61,74km/h
A217: 7 | B217: Alan Silva | C217: 26 | D217: 127 | E217: 00:01:10.133 | F217: 61,6km/h
A218: 7 | B218: Alan Silva | C218: 26 | D218: 127 | E218: 00:01:10.145 | F218: 61,59km/h
A219: 7 | B219: Alan Silva | C219: 26 | D219: 127 | E219: 00:01:10.141 | F219: 61,59km/h
A220: 7 | B220: Alan Silva | C220: 26 | D220: 127 | E220: 00:01:10.009 | F220: 61,71km/h
A221: 7 | B221: Alan Silva | C221: 26 | D221: 127 | E221: 00:01:10.170 | F221: 61,56km/h
A222: 7 | B222: Alan Silva | C222: 26 | D222: 127 | E222: 00:01:10.096 | F222: 61,63km/h
A223: 7 | B223: Alan Silva | C223: 26 | D223: 127 | E223: 00:01:10.449 | F223: 61,32km/h
... 480 more rows

Sheet ETAPA 6
A1: Obs.: 1. Selecione o nome de um Piloto, 2. Com a tecla Ctrl pressionada, Selecione o seu nome e 3. Clique sobre o Gráfico (Habilite a macro) Para as demais comparações Selecione o nome do Piloto e Clique sobre o Gráfico | G1: PILOTO | H1: =L$48 -> Victor Silva | I1: =M$48 -> Felipe Franca | J1: =A2 -> Rafael Miranda | M1: 00:00:01
A2: Rafael Miranda | G2: MÉDIA | H2: =AVERAGE(L$49:L$105) -> 00:00:49.728 | I2: =AVERAGE(M$49:M$105) -> 00:00:49.747 | J2: =AVERAGE(N$49:N$105) -> 00:00:49.652 | M2: =M1 -> 00:00:01
A3: Victor Silva | G3: MAXIMA | H3: =LARGE(L$49:L$105,1) -> 00:00:55.043 | I3: =LARGE(M$49:M$105,1) -> 00:00:57.832 | J3: =LARGE(N$49:N$105,1) -> 00:00:53.682
A4: Felipe Franca | G4: MÍNIMA | H4: =SMALL(L$49:L$105,1) -> 00:00:49.142 | I4: =SMALL(M$49:M$105,1) -> 00:00:48.871 | J4: =SMALL(N$49:N$105,1) -> 00:00:49.130
A5: Gabriel Veloso | G5: Desvio Padrão | H5: =_xlfn.STDEV.S(L$50:L$130) -> 00:00:00.983 | I5: =_xlfn.STDEV.S(M$50:M$130) -> 00:00:01.437 | J5: =_xlfn.STDEV.S(N$50:N$130) -> 00:00:00.742
A6: Marcelo Campos | G6: TEMPO TOTAL | H6: =SUM(L$49:L$105,1) -> 1.021295741 | I6: =SUM(M$49:M$105,1) -> 1.021303565 | J6: =SUM(N$49:N$105,1) -> 1.021262813
A7: Marcelo Sant'anna
A8: Marcelo Surerus
A9: Alexandre Melillo
A10: Rodrigo Mercadante
A11: Marcelo Clemente
A12: Jarbas Reis
A13: Cláudio Dumont | J13: =SMALL(H4:J4,1)-K13 -> 00:00:48.621 | K13: 00:00:00.250
A14: Wesley Canuto | J14: =LARGE(H3:J3,1)+K13 -> 00:00:58.082
A15: Rafael Alves
A16: Alan Silva
A17: Marcelo Pereira
A18: Neylon Silva
A19: Guilherme Alves
A20: Leonardo Bastos
A21: Daniel Paranhos
A22: Jean Paul
A23: Diego Silva
A24: Raphael Reis
L48: Victor Silva | M48: Felipe Franca | N48: Rafael Miranda
K49: NÚMERO VOLTAS | L49: Victor Silva | M49: Felipe Franca | N49: Rafael Miranda
A50: ETAPA | B50: PILOTO | C50: NÚMERO VOLTAS | D50: KART | E50: Volta Tm | F50: velocidade Media | K50: 1 | L50: 00:00:55.043 | M50: 00:00:57.832 | N50: 00:00:53.682
A51: 6 | B51: Rafael Miranda | C51: 37 | D51: 113 | E51: 00:00:53.682 | F51: 52,91km/h | K51: 2 | L51: 00:00:51.113 | M51: 00:00:51.488 | N51: 00:00:50.481
A52: 6 | B52: Rafael Miranda | C52: 37 | D52: 113 | E52: 00:00:50.481 | F52: 56,27km/h | K52: 3 | L52: 00:00:50.316 | M52: 00:00:50.125 | N52: 00:00:49.760
A53: 6 | B53: Rafael Miranda | C53: 37 | D53: 113 | E53: 00:00:49.760 | F53: 57,08km/h | K53: 4 | L53: 00:00:49.795 | M53: 00:00:49.538 | N53: 00:00:50.029
A54: 6 | B54: Rafael Miranda | C54: 37 | D54: 113 | E54: 00:00:50.029 | F54: 56,78km/h | K54: 5 | L54: 00:00:50.435 | M54: 00:00:49.332 | N54: 00:00:50.467
A55: 6 | B55: Rafael Miranda | C55: 37 | D55: 113 | E55: 00:00:50.467 | F55: 56,28km/h | K55: 6 | L55: 00:00:49.874 | M55: 00:00:50.050 | N55: 00:00:49.603
A56: 6 | B56: Rafael Miranda | C56: 37 | D56: 113 | E56: 00:00:49.603 | F56: 57,26km/h | K56: 7 | L56: 00:00:49.816 | M56: 00:00:49.538 | N56: 00:00:49.806
A57: 6 | B57: Rafael Miranda | C57: 37 | D57: 113 | E57: 00:00:49.806 | F57: 57,03km/h | K57: 8 | L57: 00:00:49.461 | M57: 00:00:49.328 | N57: 00:00:49.572
A58: 6 | B58: Rafael Miranda | C58: 37 | D58: 113 | E58: 00:00:49.572 | F58: 57,3km/h | K58: 9 | L58: 00:00:49.456 | M58: 00:00:49.147 | N58: 00:00:49.378
A59: 6 | B59: Rafael Miranda | C59: 37 | D59: 113 | E59: 00:00:49.378 | F59: 57,52km/h | K59: 10 | L59: 00:00:49.892 | M59: 00:00:49.537 | N59: 00:00:49.659
A60: 6 | B60: Rafael Miranda | C60: 37 | D60: 113 | E60: 00:00:49.659 | F60: 57,2km/h | K60: 11 | L60: 00:00:50.193 | M60: 00:00:50.214 | N60: 00:00:49.752
A61: 6 | B61: Rafael Miranda | C61: 37 | D61: 113 | E61: 00:00:49.752 | F61: 57,09km/h | K61: 12 | L61: 00:00:49.509 | M61: 00:00:49.468 | N61: 00:00:49.523
A62: 6 | B62: Rafael Miranda | C62: 37 | D62: 113 | E62: 00:00:49.523 | F62: 57,36km/h | K62: 13 | L62: 00:00:49.215 | M62: 00:00:49.370 | N62: 00:00:49.409
A63: 6 | B63: Rafael Miranda | C63: 37 | D63: 113 | E63: 00:00:49.409 | F63: 57,49km/h | K63: 14 | L63: 00:00:49.536 | M63: 00:00:49.401 | N63: 00:00:49.752
A64: 6 | B64: Rafael Miranda | C64: 37 | D64: 113 | E64: 00:00:49.752 | F64: 57,09km/h | K64: 15 | L64: 00:00:49.476 | M64: 00:00:49.633 | N64: 00:00:49.445
A65: 6 | B65: Rafael Miranda | C65: 37 | D65: 113 | E65: 00:00:49.445 | F65: 57,45km/h | K65: 16 | L65: 00:00:49.492 | M65: 00:00:49.391 | N65: 00:00:49.491
A66: 6 | B66: Rafael Miranda | C66: 37 | D66: 113 | E66: 00:00:49.491 | F66: 57,39km/h | K66: 17 | L66: 00:00:49.377 | M66: 00:00:49.381 | N66: 00:00:49.401
A67: 6 | B67: Rafael Miranda | C67: 37 | D67: 113 | E67: 00:00:49.401 | F67: 57,5km/h | K67: 18 | L67: 00:00:49.413 | M67: 00:00:49.540 | N67: 00:00:49.435
A68: 6 | B68: Rafael Miranda | C68: 37 | D68: 113 | E68: 00:00:49.435 | F68: 57,46km/h | K68: 19 | L68: 00:00:49.463 | M68: 00:00:49.806 | N68: 00:00:49.432
A69: 6 | B69: Rafael Miranda | C69: 37 | D69: 113 | E69: 00:00:49.432 | F69: 57,46km/h | K69: 20 | L69: 00:00:49.441 | M69: 00:00:49.425 | N69: 00:00:49.476
A70: 6 | B70: Rafael Miranda | C70: 37 | D70: 113 | E70: 00:00:49.476 | F70: 57,41km/h | K70: 21 | L70: 00:00:49.216 | M70: 00:00:49.280 | N70: 00:00:49.155
A71: 6 | B71: Rafael Miranda | C71: 37 | D71: 113 | E71: 00:00:49.155 | F71: 57,78km/h | K71: 22 | L71: 00:00:49.177 | M71: 00:00:49.222 | N71: 00:00:49.232
A72: 6 | B72: Rafael Miranda | C72: 37 | D72: 113 | E72: 00:00:49.232 | F72: 57,69km/h | K72: 23 | L72: 00:00:49.444 | M72: 00:00:48.871 | N72: 00:00:49.368
A73: 6 | B73: Rafael Miranda | C73: 37 | D73: 113 | E73: 00:00:49.368 | F73: 57,54km/h | K73: 24 | L73: 00:00:49.353 | M73: 00:00:49.339 | N73: 00:00:49.430
A74: 6 | B74: Rafael Miranda | C74: 37 | D74: 113 | E74: 00:00:49.430 | F74: 57,46km/h | K74: 25 | L74: 00:00:49.666 | M74: 00:00:49.675 | N74: 00:00:49.339
A75: 6 | B75: Rafael Miranda | C75: 37 | D75: 113 | E75: 00:00:49.339 | F75: 57,57km/h | K75: 26 | L75: 00:00:49.239 | M75: 00:00:49.172 | N75: 00:00:49.368
A76: 6 | B76: Rafael Miranda | C76: 37 | D76: 113 | E76: 00:00:49.368 | F76: 57,54km/h | K76: 27 | L76: 00:00:49.155 | M76: 00:00:49.343 | N76: 00:00:49.347
A77: 6 | B77: Rafael Miranda | C77: 37 | D77: 113 | E77: 00:00:49.347 | F77: 57,56km/h | K77: 28 | L77: 00:00:49.142 | M77: 00:00:49.208 | N77: 00:00:49.130
A78: 6 | B78: Rafael Miranda | C78: 37 | D78: 113 | E78: 00:00:49.130 | F78: 57,81km/h | K78: 29 | L78: 00:00:49.511 | M78: 00:00:49.515 | N78: 00:00:49.476
A79: 6 | B79: Rafael Miranda | C79: 37 | D79: 113 | E79: 00:00:49.476 | F79: 57,41km/h | K79: 30 | L79: 00:00:49.362 | M79: 00:00:49.216 | N79: 00:00:49.410
A80: 6 | B80: Rafael Miranda | C80: 37 | D80: 113 | E80: 00:00:49.410 | F80: 57,49km/h | K80: 31 | L80: 00:00:49.312 | M80: 00:00:49.351 | N80: 00:00:49.321
A81: 6 | B81: Rafael Miranda | C81: 37 | D81: 113 | E81: 00:00:49.321 | F81: 57,59km/h | K81: 32 | L81: 00:00:49.477 | M81: 00:00:49.454 | N81: 00:00:49.425
A82: 6 | B82: Rafael Miranda | C82: 37 | D82: 113 | E82: 00:00:49.425 | F82: 57,47km/h | K82: 33 | L82: 00:00:49.397 | M82: 00:00:49.583 | N82: 00:00:49.379
A83: 6 | B83: Rafael Miranda | C83: 37 | D83: 113 | E83: 00:00:49.379 | F83: 57,52km/h | K83: 34 | L83: 00:00:49.398 | M83: 00:00:49.112 | N83: 00:00:49.433
A84: 6 | B84: Rafael Miranda | C84: 37 | D84: 113 | E84: 00:00:49.433 | F84: 57,46km/h | K84: 35 | L84: 00:00:49.474 | M84: 00:00:49.926 | N84: 00:00:49.468
A85: 6 | B85: Rafael Miranda | C85: 37 | D85: 113 | E85: 00:00:49.468 | F85: 57,42km/h | K85: 36 | L85: 00:00:49.443 | M85: 00:00:48.949 | N85: 00:00:49.413
A86: 6 | B86: Rafael Miranda | C86: 37 | D86: 113 | E86: 00:00:49.413 | F86: 57,48km/h | K86: 37 | L86: 00:00:49.870 | M86: 00:00:49.868 | N86: 00:00:49.860
A87: 6 | B87: Rafael Miranda | C87: 37 | D87: 113 | E87: 00:00:49.860 | F87: 56,97km/h | K87: 38
A88: 6 | B88: Victor Silva | C88: 37 | D88: 111 | E88: 00:00:55.043 | F88: 51,6km/h | K88: 39
A89: 6 | B89: Victor Silva | C89: 37 | D89: 111 | E89: 00:00:51.113 | F89: 55,57km/h | K89: 40
A90: 6 | B90: Victor Silva | C90: 37 | D90: 111 | E90: 00:00:50.316 | F90: 56,45km/h | K90: 41
A91: 6 | B91: Victor Silva | C91: 37 | D91: 111 | E91: 00:00:49.795 | F91: 57,04km/h | K91: 42
A92: 6 | B92: Victor Silva | C92: 37 | D92: 111 | E92: 00:00:50.435 | F92: 56,32km/h | K92: 43
A93: 6 | B93: Victor Silva | C93: 37 | D93: 111 | E93: 00:00:49.874 | F93: 56,95km/h | K93: 44
A94: 6 | B94: Victor Silva | C94: 37 | D94: 111 | E94: 00:00:49.816 | F94: 57,02km/h | K94: 45
A95: 6 | B95: Victor Silva | C95: 37 | D95: 111 | E95: 00:00:49.461 | F95: 57,43km/h | K95: 46
A96: 6 | B96: Victor Silva | C96: 37 | D96: 111 | E96: 00:00:49.456 | F96: 57,43km/h | K96: 47
A97: 6 | B97: Victor Silva | C97: 37 | D97: 111 | E97: 00:00:49.892 | F97: 56,93km/h | K97: 48
A98: 6 | B98: Victor Silva | C98: 37 | D98: 111 | E98: 00:00:50.193 | F98: 56,59km/h | K98: 49
A99: 6 | B99: Victor Silva | C99: 37 | D99: 111 | E99: 00:00:49.509 | F99: 57,37km/h | K99: 50
A100: 6 | B100: Victor Silva | C100: 37 | D100: 111 | E100: 00:00:49.215 | F100: 57,71km/h | K100: 51
A101: 6 | B101: Victor Silva | C101: 37 | D101: 111 | E101: 00:00:49.536 | F101: 57,34km/h | K101: 52
A102: 6 | B102: Victor Silva | C102: 37 | D102: 111 | E102: 00:00:49.476 | F102: 57,41km/h | K102: 53
A103: 6 | B103: Victor Silva | C103: 37 | D103: 111 | E103: 00:00:49.492 | F103: 57,39km/h | K103: 54
A104: 6 | B104: Victor Silva | C104: 37 | D104: 111 | E104: 00:00:49.377 | F104: 57,52km/h | K104: 55
A105: 6 | B105: Victor Silva | C105: 37 | D105: 111 | E105: 00:00:49.413 | F105: 57,48km/h | K105: 56
A106: 6 | B106: Victor Silva | C106: 37 | D106: 111 | E106: 00:00:49.463 | F106: 57,42km/h | K106: 57
A107: 6 | B107: Victor Silva | C107: 37 | D107: 111 | E107: 00:00:49.441 | F107: 57,45km/h | K107: 58
A108: 6 | B108: Victor Silva | C108: 37 | D108: 111 | E108: 00:00:49.216 | F108: 57,71km/h | K108: 59
A109: 6 | B109: Victor Silva | C109: 37 | D109: 111 | E109: 00:00:49.177 | F109: 57,76km/h | K109: 60
A110: 6 | B110: Victor Silva | C110: 37 | D110: 111 | E110: 00:00:49.444 | F110: 57,45km/h | K110: 61
A111: 6 | B111: Victor Silva | C111: 37 | D111: 111 | E111: 00:00:49.353 | F111: 57,55km/h | K111: 62
A112: 6 | B112: Victor Silva | C112: 37 | D112: 111 | E112: 00:00:49.666 | F112: 57,19km/h | K112: 63
A113: 6 | B113: Victor Silva | C113: 37 | D113: 111 | E113: 00:00:49.239 | F113: 57,69km/h
A114: 6 | B114: Victor Silva | C114: 37 | D114: 111 | E114: 00:00:49.155 | F114: 57,78km/h
A115: 6 | B115: Victor Silva | C115: 37 | D115: 111 | E115: 00:00:49.142 | F115: 57,8km/h
A116: 6 | B116: Victor Silva | C116: 37 | D116: 111 | E116: 00:00:49.511 | F116: 57,37km/h
A117: 6 | B117: Victor Silva | C117: 37 | D117: 111 | E117: 00:00:49.362 | F117: 57,54km/h
A118: 6 | B118: Victor Silva | C118: 37 | D118: 111 | E118: 00:00:49.312 | F118: 57,6km/h
A119: 6 | B119: Victor Silva | C119: 37 | D119: 111 | E119: 00:00:49.477 | F119: 57,41km/h
A120: 6 | B120: Victor Silva | C120: 37 | D120: 111 | E120: 00:00:49.397 | F120: 57,5km/h
A121: 6 | B121: Victor Silva | C121: 37 | D121: 111 | E121: 00:00:49.398 | F121: 57,5km/h
A122: 6 | B122: Victor Silva | C122: 37 | D122: 111 | E122: 00:00:49.474 | F122: 57,41km/h
A123: 6 | B123: Victor Silva | C123: 37 | D123: 111 | E123: 00:00:49.443 | F123: 57,45km/h
A124: 6 | B124: Victor Silva | C124: 37 | D124: 111 | E124: 00:00:49.870 | F124: 56,96km/h
A125: 6 | B125: Felipe Franca | C125: 37 | D125: 132 | E125: 00:00:57.832 | F125: 49,11km/h
A126: 6 | B126: Felipe Franca | C126: 37 | D126: 132 | E126: 00:00:51.488 | F126: 55,17km/h
A127: 6 | B127: Felipe Franca | C127: 37 | D127: 132 | E127: 00:00:50.125 | F127: 56,67km/h
A128: 6 | B128: Felipe Franca | C128: 37 | D128: 132 | E128: 00:00:49.538 | F128: 57,34km/h
A129: 6 | B129: Felipe Franca | C129: 37 | D129: 132 | E129: 00:00:49.332 | F129: 57,58km/h
A130: 6 | B130: Felipe Franca | C130: 37 | D130: 132 | E130: 00:00:50.050 | F130: 56,75km/h
A131: 6 | B131: Felipe Franca | C131: 37 | D131: 132 | E131: 00:00:49.538 | F131: 57,34km/h
A132: 6 | B132: Felipe Franca | C132: 37 | D132: 132 | E132: 00:00:49.328 | F132: 57,58km/h
A133: 6 | B133: Felipe Franca | C133: 37 | D133: 132 | E133: 00:00:49.147 | F133: 57,79km/h
A134: 6 | B134: Felipe Franca | C134: 37 | D134: 132 | E134: 00:00:49.537 | F134: 57,34km/h
A135: 6 | B135: Felipe Franca | C135: 37 | D135: 132 | E135: 00:00:50.214 | F135: 56,57km/h
A136: 6 | B136: Felipe Franca | C136: 37 | D136: 132 | E136: 00:00:49.468 | F136: 57,42km/h
A137: 6 | B137: Felipe Franca | C137: 37 | D137: 132 | E137: 00:00:49.370 | F137: 57,53km/h
A138: 6 | B138: Felipe Franca | C138: 37 | D138: 132 | E138: 00:00:49.401 | F138: 57,5km/h
A139: 6 | B139: Felipe Franca | C139: 37 | D139: 132 | E139: 00:00:49.633 | F139: 57,23km/h
A140: 6 | B140: Felipe Franca | C140: 37 | D140: 132 | E140: 00:00:49.391 | F140: 57,51km/h
A141: 6 | B141: Felipe Franca | C141: 37 | D141: 132 | E141: 00:00:49.381 | F141: 57,52km/h
A142: 6 | B142: Felipe Franca | C142: 37 | D142: 132 | E142: 00:00:49.540 | F142: 57,34km/h
A143: 6 | B143: Felipe Franca | C143: 37 | D143: 132 | E143: 00:00:49.806 | F143: 57,03km/h
A144: 6 | B144: Felipe Franca | C144: 37 | D144: 132 | E144: 00:00:49.425 | F144: 57,47km/h
A145: 6 | B145: Felipe Franca | C145: 37 | D145: 132 | E145: 00:00:49.280 | F145: 57,64km/h
A146: 6 | B146: Felipe Franca | C146: 37 | D146: 132 | E146: 00:00:49.222 | F146: 57,71km/h
A147: 6 | B147: Felipe Franca | C147: 37 | D147: 132 | E147: 00:00:48.871 | F147: 58,12km/h
A148: 6 | B148: Felipe Franca | C148: 37 | D148: 132 | E148: 00:00:49.339 | F148: 57,57km/h
A149: 6 | B149: Felipe Franca | C149: 37 | D149: 132 | E149: 00:00:49.675 | F149: 57,18km/h
A150: 6 | B150: Felipe Franca | C150: 37 | D150: 132 | E150: 00:00:49.172 | F150: 57,76km/h
A151: 6 | B151: Felipe Franca | C151: 37 | D151: 132 | E151: 00:00:49.343 | F151: 57,56km/h
A152: 6 | B152: Felipe Franca | C152: 37 | D152: 132 | E152: 00:00:49.208 | F152: 57,72km/h
A153: 6 | B153: Felipe Franca | C153: 37 | D153: 132 | E153: 00:00:49.515 | F153: 57,36km/h
A154: 6 | B154: Felipe Franca | C154: 37 | D154: 132 | E154: 00:00:49.216 | F154: 57,71km/h
A155: 6 | B155: Felipe Franca | C155: 37 | D155: 132 | E155: 00:00:49.351 | F155: 57,56km/h
A156: 6 | B156: Felipe Franca | C156: 37 | D156: 132 | E156: 00:00:49.454 | F156: 57,44km/h
A157: 6 | B157: Felipe Franca | C157: 37 | D157: 132 | E157: 00:00:49.583 | F157: 57,29km/h
A158: 6 | B158: Felipe Franca | C158: 37 | D158: 132 | E158: 00:00:49.112 | F158: 57,84km/h
A159: 6 | B159: Felipe Franca | C159: 37 | D159: 132 | E159: 00:00:49.926 | F159: 56,89km/h
A160: 6 | B160: Felipe Franca | C160: 37 | D160: 132 | E160: 00:00:48.949 | F160: 58,03km/h
A161: 6 | B161: Felipe Franca | C161: 37 | D161: 132 | E161: 00:00:49.868 | F161: 56,96km/h
A162: 6 | B162: Gabriel Veloso | C162: 37 | D162: 131 | E162: 00:00:53.838 | F162: 52,76km/h
A163: 6 | B163: Gabriel Veloso | C163: 37 | D163: 131 | E163: 00:00:52.153 | F163: 54,46km/h
A164: 6 | B164: Gabriel Veloso | C164: 37 | D164: 131 | E164: 00:00:51.256 | F164: 55,42km/h
A165: 6 | B165: Gabriel Veloso | C165: 37 | D165: 131 | E165: 00:00:49.915 | F165: 56,9km/h
A166: 6 | B166: Gabriel Veloso | C166: 37 | D166: 131 | E166: 00:00:50.201 | F166: 56,58km/h
A167: 6 | B167: Gabriel Veloso | C167: 37 | D167: 131 | E167: 00:00:49.769 | F167: 57,07km/h
A168: 6 | B168: Gabriel Veloso | C168: 37 | D168: 131 | E168: 00:00:49.973 | F168: 56,84km/h
A169: 6 | B169: Gabriel Veloso | C169: 37 | D169: 131 | E169: 00:00:50.005 | F169: 56,8km/h
A170: 6 | B170: Gabriel Veloso | C170: 37 | D170: 131 | E170: 00:00:49.445 | F170: 57,45km/h
A171: 6 | B171: Gabriel Veloso | C171: 37 | D171: 131 | E171: 00:00:50.459 | F171: 56,29km/h
A172: 6 | B172: Gabriel Veloso | C172: 37 | D172: 131 | E172: 00:00:49.614 | F172: 57,25km/h
A173: 6 | B173: Gabriel Veloso | C173: 37 | D173: 131 | E173: 00:00:50.454 | F173: 56,3km/h
A174: 6 | B174: Gabriel Veloso | C174: 37 | D174: 131 | E174: 00:00:49.550 | F174: 57,32km/h
A175: 6 | B175: Gabriel Veloso | C175: 37 | D175: 131 | E175: 00:00:49.395 | F175: 57,5km/h
A176: 6 | B176: Gabriel Veloso | C176: 37 | D176: 131 | E176: 00:00:49.495 | F176: 57,39km/h
A177: 6 | B177: Gabriel Veloso | C177: 37 | D177: 131 | E177: 00:00:49.415 | F177: 57,48km/h
A178: 6 | B178: Gabriel Veloso | C178: 37 | D178: 131 | E178: 00:00:49.505 | F178: 57,38km/h
A179: 6 | B179: Gabriel Veloso | C179: 37 | D179: 131 | E179: 00:00:49.180 | F179: 57,76km/h
A180: 6 | B180: Gabriel Veloso | C180: 37 | D180: 131 | E180: 00:00:49.040 | F180: 57,92km/h
A181: 6 | B181: Gabriel Veloso | C181: 37 | D181: 131 | E181: 00:00:49.018 | F181: 57,95km/h
A182: 6 | B182: Gabriel Veloso | C182: 37 | D182: 131 | E182: 00:00:49.206 | F182: 57,72km/h
A183: 6 | B183: Gabriel Veloso | C183: 37 | D183: 131 | E183: 00:00:49.138 | F183: 57,8km/h
A184: 6 | B184: Gabriel Veloso | C184: 37 | D184: 131 | E184: 00:00:49.128 | F184: 57,82km/h
A185: 6 | B185: Gabriel Veloso | C185: 37 | D185: 131 | E185: 00:00:48.942 | F185: 58,04km/h
A186: 6 | B186: Gabriel Veloso | C186: 37 | D186: 131 | E186: 00:00:49.141 | F186: 57,8km/h
A187: 6 | B187: Gabriel Veloso | C187: 37 | D187: 131 | E187: 00:00:48.900 | F187: 58,09km/h
A188: 6 | B188: Gabriel Veloso | C188: 37 | D188: 131 | E188: 00:00:49.221 | F188: 57,71km/h
A189: 6 | B189: Gabriel Veloso | C189: 37 | D189: 131 | E189: 00:00:49.353 | F189: 57,55km/h
A190: 6 | B190: Gabriel Veloso | C190: 37 | D190: 131 | E190: 00:00:49.206 | F190: 57,72km/h
A191: 6 | B191: Gabriel Veloso | C191: 37 | D191: 131 | E191: 00:00:49.177 | F191: 57,76km/h
A192: 6 | B192: Gabriel Veloso | C192: 37 | D192: 131 | E192: 00:00:49.051 | F192: 57,91km/h
A193: 6 | B193: Gabriel Veloso | C193: 37 | D193: 131 | E193: 00:00:49.042 | F193: 57,92km/h
A194: 6 | B194: Gabriel Veloso | C194: 37 | D194: 131 | E194: 00:00:49.490 | F194: 57,39km/h
A195: 6 | B195: Gabriel Veloso | C195: 37 | D195: 131 | E195: 00:00:49.178 | F195: 57,76km/h
A196: 6 | B196: Gabriel Veloso | C196: 37 | D196: 131 | E196: 00:00:49.017 | F196: 57,95km/h
A197: 6 | B197: Gabriel Veloso | C197: 37 | D197: 131 | E197: 00:00:49.011 | F197: 57,95km/h
A198: 6 | B198: Gabriel Veloso | C198: 37 | D198: 131 | E198: 00:00:49.829 | F198: 57km/h
A199: 6 | B199: Marcelo Campos | C199: 37 | D199: 116 | E199: 00:00:53.752 | F199: 52,84km/h
A200: 6 | B200: Marcelo Campos | C200: 37 | D200: 116 | E200: 00:00:51.919 | F200: 54,71km/h
A201: 6 | B201: Marcelo Campos | C201: 37 | D201: 116 | E201: 00:00:50.805 | F201: 55,91km/h
A202: 6 | B202: Marcelo Campos | C202: 37 | D202: 116 | E202: 00:00:49.705 | F202: 57,15km/h
A203: 6 | B203: Marcelo Campos | C203: 37 | D203: 116 | E203: 00:00:50.214 | F203: 56,57km/h
A204: 6 | B204: Marcelo Campos | C204: 37 | D204: 116 | E204: 00:00:50.054 | F204: 56,75km/h
A205: 6 | B205: Marcelo Campos | C205: 37 | D205: 116 | E205: 00:00:49.872 | F205: 56,95km/h
A206: 6 | B206: Marcelo Campos | C206: 37 | D206: 116 | E206: 00:00:49.744 | F206: 57,1km/h
A207: 6 | B207: Marcelo Campos | C207: 37 | D207: 116 | E207: 00:00:49.838 | F207: 56,99km/h
A208: 6 | B208: Marcelo Campos | C208: 37 | D208: 116 | E208: 00:00:49.716 | F208: 57,13km/h
A209: 6 | B209: Marcelo Campos | C209: 37 | D209: 116 | E209: 00:00:49.345 | F209: 57,56km/h
A210: 6 | B210: Marcelo Campos | C210: 37 | D210: 116 | E210: 00:00:49.255 | F210: 57,67km/h
A211: 6 | B211: Marcelo Campos | C211: 37 | D211: 116 | E211: 00:00:49.080 | F211: 57,87km/h
A212: 6 | B212: Marcelo Campos | C212: 37 | D212: 116 | E212: 00:00:49.442 | F212: 57,45km/h
A213: 6 | B213: Marcelo Campos | C213: 37 | D213: 116 | E213: 00:00:49.412 | F213: 57,48km/h
A214: 6 | B214: Marcelo Campos | C214: 37 | D214: 116 | E214: 00:00:49.338 | F214: 57,57km/h
A215: 6 | B215: Marcelo Campos | C215: 37 | D215: 116 | E215: 00:00:49.915 | F215: 56,9km/h
A216: 6 | B216: Marcelo Campos | C216: 37 | D216: 116 | E216: 00:00:49.455 | F216: 57,43km/h
A217: 6 | B217: Marcelo Campos | C217: 37 | D217: 116 | E217: 00:00:49.379 | F217: 57,52km/h
A218: 6 | B218: Marcelo Campos | C218: 37 | D218: 116 | E218: 00:00:49.273 | F218: 57,65km/h
A219: 6 | B219: Marcelo Campos | C219: 37 | D219: 116 | E219: 00:00:49.395 | F219: 57,5km/h
A220: 6 | B220: Marcelo Campos | C220: 37 | D220: 116 | E220: 00:00:49.314 | F220: 57,6km/h
A221: 6 | B221: Marcelo Campos | C221: 37 | D221: 116 | E221: 00:00:49.527 | F221: 57,35km/h
A222: 6 | B222: Marcelo Campos | C222: 37 | D222: 116 | E222: 00:00:49.455 | F222: 57,43km/h
A223: 6 | B223: Marcelo Campos | C223: 37 | D223: 116 | E223: 00:00:49.309 | F223: 57,6km/h
... 698 more rows

Sheet ETAPA 5
A1: Obs.: 1. Selecione o nome de um Piloto, 2. Com a tecla Ctrl pressionada, Selecione o seu nome e 3. Clique sobre o Gráfico (Habilite a macro) Para as demais comparações Selecione o nome do Piloto e Clique sobre o Gráfico | G1: PILOTO | H1: =L$48 -> Leonardo Bastos | I1: =M$48 -> Leonardo Bastos | J1: =A2 -> Gabriel Veloso | M1: 00:00:01
A2: Gabriel Veloso | G2: MÉDIA | H2: =AVERAGE(L$49:L$105) -> 00:00:56.551 | I2: =AVERAGE(M$49:M$105) -> 00:00:56.551 | J2: =AVERAGE(N$49:N$105) -> 00:00:56.525 | M2: =M1 -> 00:00:01
A3: Rodrigo Mercadante | G3: MAXIMA | H3: =LARGE(L$49:L$105,1) -> 00:00:59.463 | I3: =LARGE(M$49:M$105,1) -> 00:00:59.463 | J3: =LARGE(N$49:N$105,1) -> 00:00:59.365
A4: Leonardo Bastos | G4: MÍNIMA | H4: =SMALL(L$49:L$105,1) -> 00:00:55.913 | I4: =SMALL(M$49:M$105,1) -> 00:00:55.913 | J4: =SMALL(N$49:N$105,1) -> 00:00:55.896
A5: Marcelo Surerus | G5: Desvio Padrão | H5: =_xlfn.STDEV.S(L$50:L$130) -> 00:00:00.775 | I5: =_xlfn.STDEV.S(M$50:M$130) -> 00:00:00.775 | J5: =_xlfn.STDEV.S(N$50:N$130) -> 00:00:00.762
A6: Cláudio Dumont | G6: TEMPO TOTAL | H6: =SUM(L$49:L$105,1) -> 1.021599433 | I6: =SUM(M$49:M$105,1) -> 1.021599433 | J6: =SUM(N$49:N$105,1) -> 1.021589282
A7: Guilherme Alves
A8: Rafael Miranda
A9: Marcelo Campos
A10: Daniel Nahum
A11: Marcelo Sant'anna
A12: Rafael Cantoni
A13: Marcelo Clemente | J13: =SMALL(H4:J4,1)-K13 -> 00:00:55.646 | K13: 00:00:00.250
A14: Leonardo Bosco | J14: =LARGE(H3:J3,1)+K13 -> 00:00:59.713
A15: Rafael Alves
A16: Diego Silva
A17: Eduardo Dias
A18: Daniel Paranhos
A19: Jarbas Reis
A20: Felipe Franca
A21: Saulo Chagas
A22: Alexandre Melillo
A23: Luis Almeida
A24: Neylon Silva
A25: Jean Paul
A26: Hugo Bambirra
A27: Wesley Camargos
A28: Eduardo Henrique
A29: Wesley Bambirra
A30: Victor Silva
A31: Alan Silva
A32: Renato Cardoso
L48: Leonardo Bastos | M48: Leonardo Bastos | N48: Gabriel Veloso
K49: NÚMERO VOLTAS | L49: Leonardo Bastos | M49: Leonardo Bastos | N49: Gabriel Veloso
A50: ETAPA | B50: PILOTO | C50: NÚMERO VOLTAS | D50: KART | E50: Volta Tm | F50: velocidade Media | K50: 1 | L50: 00:00:59.463 | M50: 00:00:59.463 | N50: 00:00:59.104
A51: 5 | B51: Gabriel Veloso | C51: 33 | D51: 137 | E51: 00:00:59.104 | F51: 59,63km/h | K51: 2 | L51: 00:00:58.755 | M51: 00:00:58.755 | N51: 00:00:59.365
A52: 5 | B52: Gabriel Veloso | C52: 33 | D52: 137 | E52: 00:00:59.365 | F52: 59,37km/h | K52: 3 | L52: 00:00:57.555 | M52: 00:00:57.555 | N52: 00:00:57.592
A53: 5 | B53: Gabriel Veloso | C53: 33 | D53: 137 | E53: 00:00:57.592 | F53: 61,2km/h | K53: 4 | L53: 00:00:57.198 | M53: 00:00:57.198 | N53: 00:00:56.878
A54: 5 | B54: Gabriel Veloso | C54: 33 | D54: 137 | E54: 00:00:56.878 | F54: 61,96km/h | K54: 5 | L54: 00:00:56.173 | M54: 00:00:56.173 | N54: 00:00:56.144
A55: 5 | B55: Gabriel Veloso | C55: 33 | D55: 137 | E55: 00:00:56.144 | F55: 62,77km/h | K55: 6 | L55: 00:00:57.612 | M55: 00:00:57.612 | N55: 00:00:56.517
A56: 5 | B56: Gabriel Veloso | C56: 33 | D56: 137 | E56: 00:00:56.517 | F56: 62,36km/h | K56: 7 | L56: 00:00:56.482 | M56: 00:00:56.482 | N56: 00:00:56.308
A57: 5 | B57: Gabriel Veloso | C57: 33 | D57: 137 | E57: 00:00:56.308 | F57: 62,59km/h | K57: 8 | L57: 00:00:56.608 | M57: 00:00:56.608 | N57: 00:00:56.496
A58: 5 | B58: Gabriel Veloso | C58: 33 | D58: 137 | E58: 00:00:56.496 | F58: 62,38km/h | K58: 9 | L58: 00:00:56.777 | M58: 00:00:56.777 | N58: 00:00:56.531
A59: 5 | B59: Gabriel Veloso | C59: 33 | D59: 137 | E59: 00:00:56.531 | F59: 62,34km/h | K59: 10 | L59: 00:00:56.305 | M59: 00:00:56.305 | N59: 00:00:56.519
A60: 5 | B60: Gabriel Veloso | C60: 33 | D60: 137 | E60: 00:00:56.519 | F60: 62,36km/h | K60: 11 | L60: 00:00:56.305 | M60: 00:00:56.305 | N60: 00:00:56.302
A61: 5 | B61: Gabriel Veloso | C61: 33 | D61: 137 | E61: 00:00:56.302 | F61: 62,6km/h | K61: 12 | L61: 00:00:56.500 | M61: 00:00:56.500 | N61: 00:00:56.409
A62: 5 | B62: Gabriel Veloso | C62: 33 | D62: 137 | E62: 00:00:56.409 | F62: 62,48km/h | K62: 13 | L62: 00:00:56.291 | M62: 00:00:56.291 | N62: 00:00:56.206
A63: 5 | B63: Gabriel Veloso | C63: 33 | D63: 137 | E63: 00:00:56.206 | F63: 62,71km/h | K63: 14 | L63: 00:00:56.418 | M63: 00:00:56.418 | N63: 00:00:56.324
A64: 5 | B64: Gabriel Veloso | C64: 33 | D64: 137 | E64: 00:00:56.324 | F64: 62,57km/h | K64: 15 | L64: 00:00:56.186 | M64: 00:00:56.186 | N64: 00:00:56.412
A65: 5 | B65: Gabriel Veloso | C65: 33 | D65: 137 | E65: 00:00:56.412 | F65: 62,48km/h | K65: 16 | L65: 00:00:56.123 | M65: 00:00:56.123 | N65: 00:00:56.396
A66: 5 | B66: Gabriel Veloso | C66: 33 | D66: 137 | E66: 00:00:56.396 | F66: 62,49km/h | K66: 17 | L66: 00:00:56.301 | M66: 00:00:56.301 | N66: 00:00:56.153
A67: 5 | B67: Gabriel Veloso | C67: 33 | D67: 137 | E67: 00:00:56.153 | F67: 62,76km/h | K67: 18 | L67: 00:00:56.225 | M67: 00:00:56.225 | N67: 00:00:56.057
A68: 5 | B68: Gabriel Veloso | C68: 33 | D68: 137 | E68: 00:00:56.057 | F68: 62,87km/h | K68: 19 | L68: 00:00:56.082 | M68: 00:00:56.082 | N68: 00:00:56.101
A69: 5 | B69: Gabriel Veloso | C69: 33 | D69: 137 | E69: 00:00:56.101 | F69: 62,82km/h | K69: 20 | L69: 00:00:56.268 | M69: 00:00:56.268 | N69: 00:00:56.095
A70: 5 | B70: Gabriel Veloso | C70: 33 | D70: 137 | E70: 00:00:56.095 | F70: 62,83km/h | K70: 21 | L70: 00:00:56.250 | M70: 00:00:56.250 | N70: 00:00:56.252
A71: 5 | B71: Gabriel Veloso | C71: 33 | D71: 137 | E71: 00:00:56.252 | F71: 62,65km/h | K71: 22 | L71: 00:00:56.100 | M71: 00:00:56.100 | N71: 00:00:56.237
A72: 5 | B72: Gabriel Veloso | C72: 33 | D72: 137 | E72: 00:00:56.237 | F72: 62,67km/h | K72: 23 | L72: 00:00:56.277 | M72: 00:00:56.277 | N72: 00:00:56.320
A73: 5 | B73: Gabriel Veloso | C73: 33 | D73: 137 | E73: 00:00:56.320 | F73: 62,58km/h | K73: 24 | L73: 00:00:56.240 | M73: 00:00:56.240 | N73: 00:00:56.085
A74: 5 | B74: Gabriel Veloso | C74: 33 | D74: 137 | E74: 00:00:56.085 | F74: 62,84km/h | K74: 25 | L74: 00:00:56.044 | M74: 00:00:56.044 | N74: 00:00:56.152
A75: 5 | B75: Gabriel Veloso | C75: 33 | D75: 137 | E75: 00:00:56.152 | F75: 62,77km/h | K75: 26 | L75: 00:00:56.278 | M75: 00:00:56.278 | N75: 00:00:55.896
A76: 5 | B76: Gabriel Veloso | C76: 33 | D76: 137 | E76: 00:00:55.896 | F76: 63,05km/h | K76: 27 | L76: 00:00:56.216 | M76: 00:00:56.216 | N76: 00:00:56.151
A77: 5 | B77: Gabriel Veloso | C77: 33 | D77: 137 | E77: 00:00:56.151 | F77: 62,77km/h | K77: 28 | L77: 00:00:56.332 | M77: 00:00:56.332 | N77: 00:00:56.334
A78: 5 | B78: Gabriel Veloso | C78: 33 | D78: 137 | E78: 00:00:56.334 | F78: 62,56km/h | K78: 29 | L78: 00:00:56.147 | M78: 00:00:56.147 | N78: 00:00:56.663
A79: 5 | B79: Gabriel Veloso | C79: 33 | D79: 137 | E79: 00:00:56.663 | F79: 62,2km/h | K79: 30 | L79: 00:00:56.041 | M79: 00:00:56.041 | N79: 00:00:56.212
A80: 5 | B80: Gabriel Veloso | C80: 33 | D80: 137 | E80: 00:00:56.212 | F80: 62,7km/h | K80: 31 | L80: 00:00:55.991 | M80: 00:00:55.991 | N80: 00:00:56.068
A81: 5 | B81: Gabriel Veloso | C81: 33 | D81: 137 | E81: 00:00:56.068 | F81: 62,86km/h | K81: 32 | L81: 00:00:55.913 | M81: 00:00:55.913 | N81: 00:00:56.387
A82: 5 | B82: Gabriel Veloso | C82: 33 | D82: 137 | E82: 00:00:56.387 | F82: 62,5km/h | K82: 33 | L82: 00:00:56.735 | M82: 00:00:56.735 | N82: 00:00:56.648
A83: 5 | B83: Gabriel Veloso | C83: 33 | D83: 137 | E83: 00:00:56.648 | F83: 62,22km/h | K83: 34
A84: 5 | B84: Rodrigo Mercadante | C84: 33 | D84: 127 | E84: 00:00:59.425 | F84: 59,31km/h | K84: 35
A85: 5 | B85: Rodrigo Mercadante | C85: 33 | D85: 127 | E85: 00:00:56.938 | F85: 61,9km/h | K85: 36
A86: 5 | B86: Rodrigo Mercadante | C86: 33 | D86: 127 | E86: 00:00:56.819 | F86: 62,03km/h | K86: 37
A87: 5 | B87: Rodrigo Mercadante | C87: 33 | D87: 127 | E87: 00:00:56.817 | F87: 62,03km/h | K87: 38
A88: 5 | B88: Rodrigo Mercadante | C88: 33 | D88: 127 | E88: 00:00:56.664 | F88: 62,2km/h | K88: 39
A89: 5 | B89: Rodrigo Mercadante | C89: 33 | D89: 127 | E89: 00:00:56.691 | F89: 62,17km/h | K89: 40
A90: 5 | B90: Rodrigo Mercadante | C90: 33 | D90: 127 | E90: 00:00:56.542 | F90: 62,33km/h | K90: 41
A91: 5 | B91: Rodrigo Mercadante | C91: 33 | D91: 127 | E91: 00:00:56.826 | F91: 62,02km/h | K91: 42
A92: 5 | B92: Rodrigo Mercadante | C92: 33 | D92: 127 | E92: 00:00:56.838 | F92: 62,01km/h | K92: 43
A93: 5 | B93: Rodrigo Mercadante | C93: 33 | D93: 127 | E93: 00:00:56.645 | F93: 62,22km/h | K93: 44
A94: 5 | B94: Rodrigo Mercadante | C94: 33 | D94: 127 | E94: 00:00:56.646 | F94: 62,22km/h | K94: 45
A95: 5 | B95: Rodrigo Mercadante | C95: 33 | D95: 127 | E95: 00:00:56.666 | F95: 62,2km/h | K95: 46
A96: 5 | B96: Rodrigo Mercadante | C96: 33 | D96: 127 | E96: 00:00:56.403 | F96: 62,49km/h | K96: 47
A97: 5 | B97: Rodrigo Mercadante | C97: 33 | D97: 127 | E97: 00:00:56.676 | F97: 62,19km/h | K97: 48
A98: 5 | B98: Rodrigo Mercadante | C98: 33 | D98: 127 | E98: 00:00:56.586 | F98: 62,28km/h | K98: 49
A99: 5 | B99: Rodrigo Mercadante | C99: 33 | D99: 127 | E99: 00:00:56.563 | F99: 62,31km/h | K99: 50
A100: 5 | B100: Rodrigo Mercadante | C100: 33 | D100: 127 | E100: 00:00:56.546 | F100: 62,33km/h | K100: 51
A101: 5 | B101: Rodrigo Mercadante | C101: 33 | D101: 127 | E101: 00:00:56.623 | F101: 62,24km/h | K101: 52
A102: 5 | B102: Rodrigo Mercadante | C102: 33 | D102: 127 | E102: 00:00:56.726 | F102: 62,13km/h | K102: 53
A103: 5 | B103: Rodrigo Mercadante | C103: 33 | D103: 127 | E103: 00:00:56.368 | F103: 62,52km/h | K103: 54
A104: 5 | B104: Rodrigo Mercadante | C104: 33 | D104: 127 | E104: 00:00:56.614 | F104: 62,25km/h | K104: 55
A105: 5 | B105: Rodrigo Mercadante | C105: 33 | D105: 127 | E105: 00:00:56.403 | F105: 62,49km/h | K105: 56
A106: 5 | B106: Rodrigo Mercadante | C106: 33 | D106: 127 | E106: 00:00:56.437 | F106: 62,45km/h | K106: 57
A107: 5 | B107: Rodrigo Mercadante | C107: 33 | D107: 127 | E107: 00:00:56.409 | F107: 62,48km/h | K107: 58
A108: 5 | B108: Rodrigo Mercadante | C108: 33 | D108: 127 | E108: 00:00:56.207 | F108: 62,7km/h | K108: 59
A109: 5 | B109: Rodrigo Mercadante | C109: 33 | D109: 127 | E109: 00:00:56.694 | F109: 62,17km/h | K109: 60
A110: 5 | B110: Rodrigo Mercadante | C110: 33 | D110: 127 | E110: 00:00:56.513 | F110: 62,36km/h | K110: 61
A111: 5 | B111: Rodrigo Mercadante | C111: 33 | D111: 127 | E111: 00:00:56.663 | F111: 62,2km/h | K111: 62
A112: 5 | B112: Rodrigo Mercadante | C112: 33 | D112: 127 | E112: 00:00:57.144 | F112: 61,68km/h | K112: 63
A113: 5 | B113: Rodrigo Mercadante | C113: 33 | D113: 127 | E113: 00:00:56.319 | F113: 62,58km/h
A114: 5 | B114: Rodrigo Mercadante | C114: 33 | D114: 127 | E114: 00:00:56.313 | F114: 62,59km/h
A115: 5 | B115: Rodrigo Mercadante | C115: 33 | D115: 127 | E115: 00:00:55.880 | F115: 63,07km/h
A116: 5 | B116: Rodrigo Mercadante | C116: 33 | D116: 127 | E116: 00:00:56.766 | F116: 62,09km/h
A117: 5 | B117: Leonardo Bastos | C117: 33 | D117: 123 | E117: 00:00:59.463 | F117: 59,27km/h
A118: 5 | B118: Leonardo Bastos | C118: 33 | D118: 123 | E118: 00:00:58.755 | F118: 59,98km/h
A119: 5 | B119: Leonardo Bastos | C119: 33 | D119: 123 | E119: 00:00:57.555 | F119: 61,24km/h
A120: 5 | B120: Leonardo Bastos | C120: 33 | D120: 123 | E120: 00:00:57.198 | F120: 61,62km/h
A121: 5 | B121: Leonardo Bastos | C121: 33 | D121: 123 | E121: 00:00:56.173 | F121: 62,74km/h
A122: 5 | B122: Leonardo Bastos | C122: 33 | D122: 123 | E122: 00:00:57.612 | F122: 61,17km/h
A123: 5 | B123: Leonardo Bastos | C123: 33 | D123: 123 | E123: 00:00:56.482 | F123: 62,4km/h
A124: 5 | B124: Leonardo Bastos | C124: 33 | D124: 123 | E124: 00:00:56.608 | F124: 62,26km/h
A125: 5 | B125: Leonardo Bastos | C125: 33 | D125: 123 | E125: 00:00:56.777 | F125: 62,07km/h
A126: 5 | B126: Leonardo Bastos | C126: 33 | D126: 123 | E126: 00:00:56.305 | F126: 62,59km/h
A127: 5 | B127: Leonardo Bastos | C127: 33 | D127: 123 | E127: 00:00:56.305 | F127: 62,59km/h
A128: 5 | B128: Leonardo Bastos | C128: 33 | D128: 123 | E128: 00:00:56.500 | F128: 62,38km/h
A129: 5 | B129: Leonardo Bastos | C129: 33 | D129: 123 | E129: 00:00:56.291 | F129: 62,61km/h
A130: 5 | B130: Leonardo Bastos | C130: 33 | D130: 123 | E130: 00:00:56.418 | F130: 62,47km/h
A131: 5 | B131: Leonardo Bastos | C131: 33 | D131: 123 | E131: 00:00:56.186 | F131: 62,73km/h
A132: 5 | B132: Leonardo Bastos | C132: 33 | D132: 123 | E132: 00:00:56.123 | F132: 62,8km/h
A133: 5 | B133: Leonardo Bastos | C133: 33 | D133: 123 | E133: 00:00:56.301 | F133: 62,6km/h
A134: 5 | B134: Leonardo Bastos | C134: 33 | D134: 123 | E134: 00:00:56.225 | F134: 62,68km/h
A135: 5 | B135: Leonardo Bastos | C135: 33 | D135: 123 | E135: 00:00:56.082 | F135: 62,84km/h
A136: 5 | B136: Leonardo Bastos | C136: 33 | D136: 123 | E136: 00:00:56.268 | F136: 62,64km/h
A137: 5 | B137: Leonardo Bastos | C137: 33 | D137: 123 | E137: 00:00:56.250 | F137: 62,66km/h
A138: 5 | B138: Leonardo Bastos | C138: 33 | D138: 123 | E138: 00:00:56.100 | F138: 62,82km/h
A139: 5 | B139: Leonardo Bastos | C139: 33 | D139: 123 | E139: 00:00:56.277 | F139: 62,63km/h
A140: 5 | B140: Leonardo Bastos | C140: 33 | D140: 123 | E140: 00:00:56.240 | F140: 62,67km/h
A141: 5 | B141: Leonardo Bastos | C141: 33 | D141: 123 | E141: 00:00:56.044 | F141: 62,89km/h
A142: 5 | B142: Leonardo Bastos | C142: 33 | D142: 123 | E142: 00:00:56.278 | F142: 62,62km/h
A143: 5 | B143: Leonardo Bastos | C143: 33 | D143: 123 | E143: 00:00:56.216 | F143: 62,69km/h
A144: 5 | B144: Leonardo Bastos | C144: 33 | D144: 123 | E144: 00:00:56.332 | F144: 62,56km/h
A145: 5 | B145: Leonardo Bastos | C145: 33 | D145: 123 | E145: 00:00:56.147 | F145: 62,77km/h
A146: 5 | B146: Leonardo Bastos | C146: 33 | D146: 123 | E146: 00:00:56.041 | F146: 62,89km/h
A147: 5 | B147: Leonardo Bastos | C147: 33 | D147: 123 | E147: 00:00:55.991 | F147: 62,95km/h
A148: 5 | B148: Leonardo Bastos | C148: 33 | D148: 123 | E148: 00:00:55.913 | F148: 63,03km/h
A149: 5 | B149: Leonardo Bastos | C149: 33 | D149: 123 | E149: 00:00:56.735 | F149: 62,12km/h
A150: 5 | B150: Marcelo Surerus | C150: 33 | D150: 136 | E150: 00:01:00.289 | F150: 58,46km/h
A151: 5 | B151: Marcelo Surerus | C151: 33 | D151: 136 | E151: 00:00:58.524 | F151: 60,22km/h
A152: 5 | B152: Marcelo Surerus | C152: 33 | D152: 136 | E152: 00:00:57.253 | F152: 61,56km/h
A153: 5 | B153: Marcelo Surerus | C153: 33 | D153: 136 | E153: 00:00:56.789 | F153: 62,06km/h
A154: 5 | B154: Marcelo Surerus | C154: 33 | D154: 136 | E154: 00:00:57.016 | F154: 61,81km/h
A155: 5 | B155: Marcelo Surerus | C155: 33 | D155: 136 | E155: 00:00:56.975 | F155: 61,86km/h
A156: 5 | B156: Marcelo Surerus | C156: 33 | D156: 136 | E156: 00:00:56.948 | F156: 61,89km/h
A157: 5 | B157: Marcelo Surerus | C157: 33 | D157: 136 | E157: 00:00:56.810 | F157: 62,04km/h
A158: 5 | B158: Marcelo Surerus | C158: 33 | D158: 136 | E158: 00:00:57.158 | F158: 61,66km/h
A159: 5 | B159: Marcelo Surerus | C159: 33 | D159: 136 | E159: 00:00:56.620 | F159: 62,25km/h
A160: 5 | B160: Marcelo Surerus | C160: 33 | D160: 136 | E160: 00:00:56.665 | F160: 62,2km/h
A161: 5 | B161: Marcelo Surerus | C161: 33 | D161: 136 | E161: 00:00:56.805 | F161: 62,04km/h
A162: 5 | B162: Marcelo Surerus | C162: 33 | D162: 136 | E162: 00:00:56.540 | F162: 62,33km/h
A163: 5 | B163: Marcelo Surerus | C163: 33 | D163: 136 | E163: 00:00:56.977 | F163: 61,86km/h
A164: 5 | B164: Marcelo Surerus | C164: 33 | D164: 136 | E164: 00:00:56.415 | F164: 62,47km/h
A165: 5 | B165: Marcelo Surerus | C165: 33 | D165: 136 | E165: 00:00:56.489 | F165: 62,39km/h
A166: 5 | B166: Marcelo Surerus | C166: 33 | D166: 136 | E166: 00:00:56.463 | F166: 62,42km/h
A167: 5 | B167: Marcelo Surerus | C167: 33 | D167: 136 | E167: 00:00:56.701 | F167: 62,16km/h
A168: 5 | B168: Marcelo Surerus | C168: 33 | D168: 136 | E168: 00:00:56.743 | F168: 62,11km/h
A169: 5 | B169: Marcelo Surerus | C169: 33 | D169: 136 | E169: 00:00:56.570 | F169: 62,3km/h
A170: 5 | B170: Marcelo Surerus | C170: 33 | D170: 136 | E170: 00:00:56.537 | F170: 62,34km/h
A171: 5 | B171: Marcelo Surerus | C171: 33 | D171: 136 | E171: 00:00:56.784 | F171: 62,07km/h
A172: 5 | B172: Marcelo Surerus | C172: 33 | D172: 136 | E172: 00:00:56.509 | F172: 62,37km/h
A173: 5 | B173: Marcelo Surerus | C173: 33 | D173: 136 | E173: 00:00:56.638 | F173: 62,23km/h
A174: 5 | B174: Marcelo Surerus | C174: 33 | D174: 136 | E174: 00:00:56.446 | F174: 62,44km/h
A175: 5 | B175: Marcelo Surerus | C175: 33 | D175: 136 | E175: 00:00:56.584 | F175: 62,29km/h
A176: 5 | B176: Marcelo Surerus | C176: 33 | D176: 136 | E176: 00:00:56.695 | F176: 62,16km/h
A177: 5 | B177: Marcelo Surerus | C177: 33 | D177: 136 | E177: 00:00:56.478 | F177: 62,4km/h
A178: 5 | B178: Marcelo Surerus | C178: 33 | D178: 136 | E178: 00:00:56.281 | F178: 62,62km/h
A179: 5 | B179: Marcelo Surerus | C179: 33 | D179: 136 | E179: 00:00:56.743 | F179: 62,11km/h
A180: 5 | B180: Marcelo Surerus | C180: 33 | D180: 136 | E180: 00:00:56.499 | F180: 62,38km/h
A181: 5 | B181: Marcelo Surerus | C181: 33 | D181: 136 | E181: 00:00:56.557 | F181: 62,32km/h
A182: 5 | B182: Marcelo Surerus | C182: 33 | D182: 136 | E182: 00:00:56.581 | F182: 62,29km/h
A183: 5 | B183: Cláudio Dumont | C183: 33 | D183: 105 | E183: 00:00:57.938 | F183: 60,83km/h
A184: 5 | B184: Cláudio Dumont | C184: 33 | D184: 105 | E184: 00:00:58.480 | F184: 60,27km/h
A185: 5 | B185: Cláudio Dumont | C185: 33 | D185: 105 | E185: 00:00:59.006 | F185: 59,73km/h
A186: 5 | B186: Cláudio Dumont | C186: 33 | D186: 105 | E186: 00:00:57.171 | F186: 61,65km/h
A187: 5 | B187: Cláudio Dumont | C187: 33 | D187: 105 | E187: 00:00:56.455 | F187: 62,43km/h
A188: 5 | B188: Cláudio Dumont | C188: 33 | D188: 105 | E188: 00:00:56.293 | F188: 62,61km/h
A189: 5 | B189: Cláudio Dumont | C189: 33 | D189: 105 | E189: 00:00:56.949 | F189: 61,89km/h
A190: 5 | B190: Cláudio Dumont | C190: 33 | D190: 105 | E190: 00:00:58.014 | F190: 60,75km/h
A191: 5 | B191: Cláudio Dumont | C191: 33 | D191: 105 | E191: 00:00:56.510 | F191: 62,37km/h
A192: 5 | B192: Cláudio Dumont | C192: 33 | D192: 105 | E192: 00:00:57.199 | F192: 61,62km/h
A193: 5 | B193: Cláudio Dumont | C193: 33 | D193: 105 | E193: 00:00:56.691 | F193: 62,17km/h
A194: 5 | B194: Cláudio Dumont | C194: 33 | D194: 105 | E194: 00:00:57.166 | F194: 61,65km/h
A195: 5 | B195: Cláudio Dumont | C195: 33 | D195: 105 | E195: 00:00:57.747 | F195: 61,03km/h
A196: 5 | B196: Cláudio Dumont | C196: 33 | D196: 105 | E196: 00:00:56.308 | F196: 62,59km/h
A197: 5 | B197: Cláudio Dumont | C197: 33 | D197: 105 | E197: 00:00:56.451 | F197: 62,43km/h
A198: 5 | B198: Cláudio Dumont | C198: 33 | D198: 105 | E198: 00:00:56.384 | F198: 62,51km/h
A199: 5 | B199: Cláudio Dumont | C199: 33 | D199: 105 | E199: 00:00:56.489 | F199: 62,39km/h
A200: 5 | B200: Cláudio Dumont | C200: 33 | D200: 105 | E200: 00:00:56.247 | F200: 62,66km/h
A201: 5 | B201: Cláudio Dumont | C201: 33 | D201: 105 | E201: 00:00:56.914 | F201: 61,93km/h
A202: 5 | B202: Cláudio Dumont | C202: 33 | D202: 105 | E202: 00:00:56.864 | F202: 61,98km/h
A203: 5 | B203: Cláudio Dumont | C203: 33 | D203: 105 | E203: 00:00:56.212 | F203: 62,7km/h
A204: 5 | B204: Cláudio Dumont | C204: 33 | D204: 105 | E204: 00:00:56.424 | F204: 62,46km/h
A205: 5 | B205: Cláudio Dumont | C205: 33 | D205: 105 | E205: 00:00:56.424 | F205: 62,46km/h
A206: 5 | B206: Cláudio Dumont | C206: 33 | D206: 105 | E206: 00:00:56.184 | F206: 62,73km/h
A207: 5 | B207: Cláudio Dumont | C207: 33 | D207: 105 | E207: 00:00:56.218 | F207: 62,69km/h
A208: 5 | B208: Cláudio Dumont | C208: 33 | D208: 105 | E208: 00:00:56.074 | F208: 62,85km/h
A209: 5 | B209: Cláudio Dumont | C209: 33 | D209: 105 | E209: 00:00:56.230 | F209: 62,68km/h
A210: 5 | B210: Cláudio Dumont | C210: 33 | D210: 105 | E210: 00:00:55.999 | F210: 62,94km/h
A211: 5 | B211: Cláudio Dumont | C211: 33 | D211: 105 | E211: 00:00:56.276 | F211: 62,63km/h
A212: 5 | B212: Cláudio Dumont | C212: 33 | D212: 105 | E212: 00:00:56.396 | F212: 62,49km/h
A213: 5 | B213: Cláudio Dumont | C213: 33 | D213: 105 | E213: 00:00:55.982 | F213: 62,96km/h
A214: 5 | B214: Cláudio Dumont | C214: 33 | D214: 105 | E214: 00:00:55.982 | F214: 62,96km/h
A215: 5 | B215: Cláudio Dumont | C215: 33 | D215: 105 | E215: 00:00:56.569 | F215: 62,3km/h
... 852 more rows

Sheet ETAPA 4
A1: Obs.: 1. Selecione o nome de um Piloto, 2. Com a tecla Ctrl pressionada, Selecione o seu nome e 3. Clique sobre o Gráfico (Habilite a macro) Para as demais comparações Selecione o nome do Piloto e Clique sobre o Gráfico | G1: PILOTO | H1: =L$48 -> Diego Silva | I1: =M$48 -> Marcelo Surerus | J1: =A2 -> Cláudio Dumont | M1: 00:00:01
A2: Cláudio Dumont | G2: MÉDIA | H2: =AVERAGE(L$49:L$105) -> 00:00:56.267 | I2: =AVERAGE(M$49:M$105) -> 00:00:56.333 | J2: =AVERAGE(N$49:N$105) -> 00:00:55.927 | M2: =M1 -> 00:00:01
A3: Roberto Muzzi | G3: MAXIMA | H3: =LARGE(L$49:L$105,1) -> 00:01:00.271 | I3: =LARGE(M$49:M$105,1) -> 00:01:01.479 | J3: =LARGE(N$49:N$105,1) -> 00:00:59.109
A4: Marcelo Surerus | G4: MÍNIMA | H4: =SMALL(L$49:L$105,1) -> 00:00:55.383 | I4: =SMALL(M$49:M$105,1) -> 00:00:55.648 | J4: =SMALL(N$49:N$105,1) -> 00:00:55.262
A5: Diego Silva | G5: Desvio Padrão | H5: =_xlfn.STDEV.S(L$50:L$130) -> 00:00:00.998 | I5: =_xlfn.STDEV.S(M$50:M$130) -> 00:00:01.073 | J5: =_xlfn.STDEV.S(N$50:N$130) -> 00:00:01.011
A6: Léo Oliveira | G6: TEMPO TOTAL | H6: =SUM(L$49:L$105,1) -> 1.020839699 | I6: =SUM(M$49:M$105,1) -> 1.020864039 | J6: =SUM(N$49:N$105,1) -> 1.020713866
A7: Jarbas Reis
A8: Marcelo Campos
A9: Wesley Canuto
A10: Eduardo Henrique
A11: Gabriel Veloso
A12: Rodrigo Mercadante
A13: Guilherme Alves | J13: =SMALL(H4:J4,1)-K13 -> 00:00:55.012 | K13: 00:00:00.250
A14: Marcelo Pereira | J14: =LARGE(H3:J3,1)+K13 -> 00:01:01.729
A15: Rafael Miranda
A16: Alan Silva
A17: Daniel Nahum
A18: Felipe Franca
A19: Alexandre Melillo
A20: Marcelo Clemente
A21: João Fiuza
A22: Rafael Alves
A23: Marcelo Sant'anna
A24: Daniel Paranhos
A25: Luis Almeida
A26: Leonardo Bastos
A27: Eduardo Dias
A28: Pedro Mello
A29: Jean Paul
A30: Leonardo Bosco
A31: Renato Cardoso
A32: Rafael Cantoni
A33: Victor Silva
A34: Saulo Chagas
A35: Fernando Medeiros
L48: Diego Silva | M48: Marcelo Surerus | N48: Cláudio Dumont
K49: NÚMERO VOLTAS | L49: Diego Silva | M49: Marcelo Surerus | N49: Cláudio Dumont
A50: ETAPA | B50: PILOTO | C50: NÚMERO VOLTAS | D50: KART | E50: Volta Tm | F50: velocidade Media | K50: 1 | L50: 00:01:00.271 | M50: 00:01:01.479 | N50: 00:00:59.109
A51: 4 | B51: Cláudio Dumont | C51: 32 | D51: 134 | E51: 00:00:59.109 | F51: 60,05km/h | K51: 2 | L51: 00:00:57.945 | M51: 00:00:58.406 | N51: 00:00:58.264
A52: 4 | B52: Cláudio Dumont | C52: 32 | D52: 134 | E52: 00:00:58.264 | F52: 60,92km/h | K52: 3 | L52: 00:00:58.652 | M52: 00:00:57.118 | N52: 00:00:57.396
A53: 4 | B53: Cláudio Dumont | C53: 32 | D53: 134 | E53: 00:00:57.396 | F53: 61,84km/h | K53: 4 | L53: 00:00:56.930 | M53: 00:00:56.273 | N53: 00:00:58.717
A54: 4 | B54: Cláudio Dumont | C54: 32 | D54: 134 | E54: 00:00:58.717 | F54: 60,45km/h | K54: 5 | L54: 00:00:56.720 | M54: 00:00:56.110 | N54: 00:00:56.420
A55: 4 | B55: Cláudio Dumont | C55: 32 | D55: 134 | E55: 00:00:56.420 | F55: 62,91km/h | K55: 6 | L55: 00:00:56.646 | M55: 00:00:56.025 | N55: 00:00:55.695
A56: 4 | B56: Cláudio Dumont | C56: 32 | D56: 134 | E56: 00:00:55.695 | F56: 63,73km/h | K56: 7 | L56: 00:00:56.407 | M56: 00:00:55.947 | N56: 00:00:55.837
A57: 4 | B57: Cláudio Dumont | C57: 32 | D57: 134 | E57: 00:00:55.837 | F57: 63,57km/h | K57: 8 | L57: 00:00:55.958 | M57: 00:00:56.157 | N57: 00:00:56.208
A58: 4 | B58: Cláudio Dumont | C58: 32 | D58: 134 | E58: 00:00:56.208 | F58: 63,15km/h | K58: 9 | L58: 00:00:55.863 | M58: 00:00:56.365 | N58: 00:00:56.006
A59: 4 | B59: Cláudio Dumont | C59: 32 | D59: 134 | E59: 00:00:56.006 | F59: 63,38km/h | K59: 10 | L59: 00:00:56.373 | M59: 00:00:56.024 | N59: 00:00:55.445
A60: 4 | B60: Cláudio Dumont | C60: 32 | D60: 134 | E60: 00:00:55.445 | F60: 64,02km/h | K60: 11 | L60: 00:00:55.681 | M60: 00:00:56.155 | N60: 00:00:55.345
A61: 4 | B61: Cláudio Dumont | C61: 32 | D61: 134 | E61: 00:00:55.345 | F61: 64,14km/h | K61: 12 | L61: 00:00:55.583 | M61: 00:00:56.456 | N61: 00:00:55.440
A62: 4 | B62: Cláudio Dumont | C62: 32 | D62: 134 | E62: 00:00:55.440 | F62: 64,03km/h | K62: 13 | L62: 00:00:55.817 | M62: 00:00:56.102 | N62: 00:00:55.393
A63: 4 | B63: Cláudio Dumont | C63: 32 | D63: 134 | E63: 00:00:55.393 | F63: 64,08km/h | K63: 14 | L63: 00:00:55.557 | M63: 00:00:55.925 | N63: 00:00:55.262
A64: 4 | B64: Cláudio Dumont | C64: 32 | D64: 134 | E64: 00:00:55.262 | F64: 64,23km/h | K64: 15 | L64: 00:00:55.990 | M64: 00:00:56.073 | N64: 00:00:55.275
A65: 4 | B65: Cláudio Dumont | C65: 32 | D65: 134 | E65: 00:00:55.275 | F65: 64,22km/h | K65: 16 | L65: 00:00:55.977 | M65: 00:00:56.036 | N65: 00:00:55.277
A66: 4 | B66: Cláudio Dumont | C66: 32 | D66: 134 | E66: 00:00:55.277 | F66: 64,21km/h | K66: 17 | L66: 00:00:56.130 | M66: 00:00:56.299 | N66: 00:00:55.652
A67: 4 | B67: Cláudio Dumont | C67: 32 | D67: 134 | E67: 00:00:55.652 | F67: 63,78km/h | K67: 18 | L67: 00:00:56.304 | M67: 00:00:56.338 | N67: 00:00:55.402
A68: 4 | B68: Cláudio Dumont | C68: 32 | D68: 134 | E68: 00:00:55.402 | F68: 64,07km/h | K68: 19 | L68: 00:00:55.967 | M68: 00:00:55.890 | N68: 00:00:55.384
A69: 4 | B69: Cláudio Dumont | C69: 32 | D69: 134 | E69: 00:00:55.384 | F69: 64,09km/h | K69: 20 | L69: 00:00:56.249 | M69: 00:00:55.810 | N69: 00:00:55.604
A70: 4 | B70: Cláudio Dumont | C70: 32 | D70: 134 | E70: 00:00:55.604 | F70: 63,84km/h | K70: 21 | L70: 00:00:55.902 | M70: 00:00:56.174 | N70: 00:00:55.401
A71: 4 | B71: Cláudio Dumont | C71: 32 | D71: 134 | E71: 00:00:55.401 | F71: 64,07km/h | K71: 22 | L71: 00:00:56.247 | M71: 00:00:55.707 | N71: 00:00:55.406
A72: 4 | B72: Cláudio Dumont | C72: 32 | D72: 134 | E72: 00:00:55.406 | F72: 64,07km/h | K72: 23 | L72: 00:00:55.532 | M72: 00:00:56.198 | N72: 00:00:55.614
A73: 4 | B73: Cláudio Dumont | C73: 32 | D73: 134 | E73: 00:00:55.614 | F73: 63,83km/h | K73: 24 | L73: 00:00:55.937 | M73: 00:00:55.671 | N73: 00:00:55.460
A74: 4 | B74: Cláudio Dumont | C74: 32 | D74: 134 | E74: 00:00:55.460 | F74: 64km/h | K74: 25 | L74: 00:00:55.785 | M74: 00:00:55.725 | N74: 00:00:55.371
A75: 4 | B75: Cláudio Dumont | C75: 32 | D75: 134 | E75: 00:00:55.371 | F75: 64,11km/h | K75: 26 | L75: 00:00:56.044 | M75: 00:00:55.997 | N75: 00:00:55.482
A76: 4 | B76: Cláudio Dumont | C76: 32 | D76: 134 | E76: 00:00:55.482 | F76: 63,98km/h | K76: 27 | L76: 00:00:56.080 | M76: 00:00:55.893 | N76: 00:00:55.369
A77: 4 | B77: Cláudio Dumont | C77: 32 | D77: 134 | E77: 00:00:55.369 | F77: 64,11km/h | K77: 28 | L77: 00:00:55.816 | M77: 00:00:55.972 | N77: 00:00:55.688
A78: 4 | B78: Cláudio Dumont | C78: 32 | D78: 134 | E78: 00:00:55.688 | F78: 63,74km/h | K78: 29 | L78: 00:00:55.390 | M78: 00:00:55.648 | N78: 00:00:55.483
A79: 4 | B79: Cláudio Dumont | C79: 32 | D79: 134 | E79: 00:00:55.483 | F79: 63,98km/h | K79: 30 | L79: 00:00:55.664 | M79: 00:00:55.980 | N79: 00:00:55.428
A80: 4 | B80: Cláudio Dumont | C80: 32 | D80: 134 | E80: 00:00:55.428 | F80: 64,04km/h | K80: 31 | L80: 00:00:55.383 | M80: 00:00:55.768 | N80: 00:00:55.454
A81: 4 | B81: Cláudio Dumont | C81: 32 | D81: 134 | E81: 00:00:55.454 | F81: 64,01km/h | K81: 32 | L81: 00:00:55.750 | M81: 00:00:56.932 | N81: 00:00:56.391
A82: 4 | B82: Cláudio Dumont | C82: 32 | D82: 134 | E82: 00:00:56.391 | F82: 62,95km/h | K82: 33
A83: 4 | B83: Roberto Muzzi | C83: 32 | D83: 111 | E83: 00:01:01.270 | F83: 57,93km/h | K83: 34
A84: 4 | B84: Roberto Muzzi | C84: 32 | D84: 111 | E84: 00:00:58.688 | F84: 60,48km/h | K84: 35
A85: 4 | B85: Roberto Muzzi | C85: 32 | D85: 111 | E85: 00:00:56.936 | F85: 62,34km/h | K85: 36
A86: 4 | B86: Roberto Muzzi | C86: 32 | D86: 111 | E86: 00:00:56.188 | F86: 63,17km/h | K86: 37
A87: 4 | B87: Roberto Muzzi | C87: 32 | D87: 111 | E87: 00:00:56.316 | F87: 63,03km/h | K87: 38
A88: 4 | B88: Roberto Muzzi | C88: 32 | D88: 111 | E88: 00:00:56 | F88: 63,39km/h | K88: 39
A89: 4 | B89: Roberto Muzzi | C89: 32 | D89: 111 | E89: 00:00:55.753 | F89: 63,67km/h | K89: 40
A90: 4 | B90: Roberto Muzzi | C90: 32 | D90: 111 | E90: 00:00:56.088 | F90: 63,29km/h | K90: 41
A91: 4 | B91: Roberto Muzzi | C91: 32 | D91: 111 | E91: 00:00:56.477 | F91: 62,85km/h | K91: 42
A92: 4 | B92: Roberto Muzzi | C92: 32 | D92: 111 | E92: 00:00:56.090 | F92: 63,28km/h | K92: 43
A93: 4 | B93: Roberto Muzzi | C93: 32 | D93: 111 | E93: 00:00:56.083 | F93: 63,29km/h | K93: 44
A94: 4 | B94: Roberto Muzzi | C94: 32 | D94: 111 | E94: 00:00:56.148 | F94: 63,22km/h | K94: 45
A95: 4 | B95: Roberto Muzzi | C95: 32 | D95: 111 | E95: 00:00:56.103 | F95: 63,27km/h | K95: 46
A96: 4 | B96: Roberto Muzzi | C96: 32 | D96: 111 | E96: 00:00:55.926 | F96: 63,47km/h | K96: 47
A97: 4 | B97: Roberto Muzzi | C97: 32 | D97: 111 | E97: 00:00:56.068 | F97: 63,31km/h | K97: 48
A98: 4 | B98: Roberto Muzzi | C98: 32 | D98: 111 | E98: 00:00:55.962 | F98: 63,43km/h | K98: 49
A99: 4 | B99: Roberto Muzzi | C99: 32 | D99: 111 | E99: 00:00:56.281 | F99: 63,07km/h | K99: 50
A100: 4 | B100: Roberto Muzzi | C100: 32 | D100: 111 | E100: 00:00:56.751 | F100: 62,55km/h | K100: 51
A101: 4 | B101: Roberto Muzzi | C101: 32 | D101: 111 | E101: 00:00:55.859 | F101: 63,55km/h | K101: 52
A102: 4 | B102: Roberto Muzzi | C102: 32 | D102: 111 | E102: 00:00:55.845 | F102: 63,56km/h | K102: 53
A103: 4 | B103: Roberto Muzzi | C103: 32 | D103: 111 | E103: 00:00:56.042 | F103: 63,34km/h | K103: 54
A104: 4 | B104: Roberto Muzzi | C104: 32 | D104: 111 | E104: 00:00:55.916 | F104: 63,48km/h | K104: 55
A105: 4 | B105: Roberto Muzzi | C105: 32 | D105: 111 | E105: 00:00:55.802 | F105: 63,61km/h | K105: 56
A106: 4 | B106: Roberto Muzzi | C106: 32 | D106: 111 | E106: 00:00:55.669 | F106: 63,76km/h | K106: 57
A107: 4 | B107: Roberto Muzzi | C107: 32 | D107: 111 | E107: 00:00:55.699 | F107: 63,73km/h | K107: 58
A108: 4 | B108: Roberto Muzzi | C108: 32 | D108: 111 | E108: 00:00:55.999 | F108: 63,39km/h | K108: 59
A109: 4 | B109: Roberto Muzzi | C109: 32 | D109: 111 | E109: 00:00:55.909 | F109: 63,49km/h | K109: 60
A110: 4 | B110: Roberto Muzzi | C110: 32 | D110: 111 | E110: 00:00:55.972 | F110: 63,42km/h | K110: 61
A111: 4 | B111: Roberto Muzzi | C111: 32 | D111: 111 | E111: 00:00:55.659 | F111: 63,77km/h | K111: 62
A112: 4 | B112: Roberto Muzzi | C112: 32 | D112: 111 | E112: 00:00:55.938 | F112: 63,46km/h | K112: 63
A113: 4 | B113: Roberto Muzzi | C113: 32 | D113: 111 | E113: 00:00:55.809 | F113: 63,6km/h
A114: 4 | B114: Roberto Muzzi | C114: 32 | D114: 111 | E114: 00:00:56.940 | F114: 62,34km/h
A115: 4 | B115: Marcelo Surerus | C115: 32 | D115: 145 | E115: 00:01:01.479 | F115: 57,74km/h
A116: 4 | B116: Marcelo Surerus | C116: 32 | D116: 145 | E116: 00:00:58.406 | F116: 60,77km/h
A117: 4 | B117: Marcelo Surerus | C117: 32 | D117: 145 | E117: 00:00:57.118 | F117: 62,15km/h
A118: 4 | B118: Marcelo Surerus | C118: 32 | D118: 145 | E118: 00:00:56.273 | F118: 63,08km/h
A119: 4 | B119: Marcelo Surerus | C119: 32 | D119: 145 | E119: 00:00:56.110 | F119: 63,26km/h
A120: 4 | B120: Marcelo Surerus | C120: 32 | D120: 145 | E120: 00:00:56.025 | F120: 63,36km/h
A121: 4 | B121: Marcelo Surerus | C121: 32 | D121: 145 | E121: 00:00:55.947 | F121: 63,45km/h
A122: 4 | B122: Marcelo Surerus | C122: 32 | D122: 145 | E122: 00:00:56.157 | F122: 63,21km/h
A123: 4 | B123: Marcelo Surerus | C123: 32 | D123: 145 | E123: 00:00:56.365 | F123: 62,98km/h
A124: 4 | B124: Marcelo Surerus | C124: 32 | D124: 145 | E124: 00:00:56.024 | F124: 63,36km/h
A125: 4 | B125: Marcelo Surerus | C125: 32 | D125: 145 | E125: 00:00:56.155 | F125: 63,21km/h
A126: 4 | B126: Marcelo Surerus | C126: 32 | D126: 145 | E126: 00:00:56.456 | F126: 62,87km/h
A127: 4 | B127: Marcelo Surerus | C127: 32 | D127: 145 | E127: 00:00:56.102 | F127: 63,27km/h
A128: 4 | B128: Marcelo Surerus | C128: 32 | D128: 145 | E128: 00:00:55.925 | F128: 63,47km/h
A129: 4 | B129: Marcelo Surerus | C129: 32 | D129: 145 | E129: 00:00:56.073 | F129: 63,3km/h
A130: 4 | B130: Marcelo Surerus | C130: 32 | D130: 145 | E130: 00:00:56.036 | F130: 63,34km/h
A131: 4 | B131: Marcelo Surerus | C131: 32 | D131: 145 | E131: 00:00:56.299 | F131: 63,05km/h
A132: 4 | B132: Marcelo Surerus | C132: 32 | D132: 145 | E132: 00:00:56.338 | F132: 63,01km/h
A133: 4 | B133: Marcelo Surerus | C133: 32 | D133: 145 | E133: 00:00:55.890 | F133: 63,51km/h
A134: 4 | B134: Marcelo Surerus | C134: 32 | D134: 145 | E134: 00:00:55.810 | F134: 63,6km/h
A135: 4 | B135: Marcelo Surerus | C135: 32 | D135: 145 | E135: 00:00:56.174 | F135: 63,19km/h
A136: 4 | B136: Marcelo Surerus | C136: 32 | D136: 145 | E136: 00:00:55.707 | F136: 63,72km/h
A137: 4 | B137: Marcelo Surerus | C137: 32 | D137: 145 | E137: 00:00:56.198 | F137: 63,16km/h
A138: 4 | B138: Marcelo Surerus | C138: 32 | D138: 145 | E138: 00:00:55.671 | F138: 63,76km/h
A139: 4 | B139: Marcelo Surerus | C139: 32 | D139: 145 | E139: 00:00:55.725 | F139: 63,7km/h
A140: 4 | B140: Marcelo Surerus | C140: 32 | D140: 145 | E140: 00:00:55.997 | F140: 63,39km/h
A141: 4 | B141: Marcelo Surerus | C141: 32 | D141: 145 | E141: 00:00:55.893 | F141: 63,51km/h
A142: 4 | B142: Marcelo Surerus | C142: 32 | D142: 145 | E142: 00:00:55.972 | F142: 63,42km/h
A143: 4 | B143: Marcelo Surerus | C143: 32 | D143: 145 | E143: 00:00:55.648 | F143: 63,79km/h
A144: 4 | B144: Marcelo Surerus | C144: 32 | D144: 145 | E144: 00:00:55.980 | F144: 63,41km/h
A145: 4 | B145: Marcelo Surerus | C145: 32 | D145: 145 | E145: 00:00:55.768 | F145: 63,65km/h
A146: 4 | B146: Marcelo Surerus | C146: 32 | D146: 145 | E146: 00:00:56.932 | F146: 62,35km/h
A147: 4 | B147: Diego Silva | C147: 32 | D147: 109 | E147: 00:01:00.271 | F147: 58,89km/h
A148: 4 | B148: Diego Silva | C148: 32 | D148: 109 | E148: 00:00:57.945 | F148: 61,26km/h
A149: 4 | B149: Diego Silva | C149: 32 | D149: 109 | E149: 00:00:58.652 | F149: 60,52km/h
A150: 4 | B150: Diego Silva | C150: 32 | D150: 109 | E150: 00:00:56.930 | F150: 62,35km/h
A151: 4 | B151: Diego Silva | C151: 32 | D151: 109 | E151: 00:00:56.720 | F151: 62,58km/h
A152: 4 | B152: Diego Silva | C152: 32 | D152: 109 | E152: 00:00:56.646 | F152: 62,66km/h
A153: 4 | B153: Diego Silva | C153: 32 | D153: 109 | E153: 00:00:56.407 | F153: 62,93km/h
A154: 4 | B154: Diego Silva | C154: 32 | D154: 109 | E154: 00:00:55.958 | F154: 63,43km/h
A155: 4 | B155: Diego Silva | C155: 32 | D155: 109 | E155: 00:00:55.863 | F155: 63,54km/h
A156: 4 | B156: Diego Silva | C156: 32 | D156: 109 | E156: 00:00:56.373 | F156: 62,97km/h
A157: 4 | B157: Diego Silva | C157: 32 | D157: 109 | E157: 00:00:55.681 | F157: 63,75km/h
A158: 4 | B158: Diego Silva | C158: 32 | D158: 109 | E158: 00:00:55.583 | F158: 63,86km/h
A159: 4 | B159: Diego Silva | C159: 32 | D159: 109 | E159: 00:00:55.817 | F159: 63,59km/h
A160: 4 | B160: Diego Silva | C160: 32 | D160: 109 | E160: 00:00:55.557 | F160: 63,89km/h
A161: 4 | B161: Diego Silva | C161: 32 | D161: 109 | E161: 00:00:55.990 | F161: 63,4km/h
A162: 4 | B162: Diego Silva | C162: 32 | D162: 109 | E162: 00:00:55.977 | F162: 63,41km/h
A163: 4 | B163: Diego Silva | C163: 32 | D163: 109 | E163: 00:00:56.130 | F163: 63,24km/h
A164: 4 | B164: Diego Silva | C164: 32 | D164: 109 | E164: 00:00:56.304 | F164: 63,04km/h
A165: 4 | B165: Diego Silva | C165: 32 | D165: 109 | E165: 00:00:55.967 | F165: 63,42km/h
A166: 4 | B166: Diego Silva | C166: 32 | D166: 109 | E166: 00:00:56.249 | F166: 63,11km/h
A167: 4 | B167: Diego Silva | C167: 32 | D167: 109 | E167: 00:00:55.902 | F167: 63,5km/h
A168: 4 | B168: Diego Silva | C168: 32 | D168: 109 | E168: 00:00:56.247 | F168: 63,11km/h
A169: 4 | B169: Diego Silva | C169: 32 | D169: 109 | E169: 00:00:55.532 | F169: 63,92km/h
A170: 4 | B170: Diego Silva | C170: 32 | D170: 109 | E170: 00:00:55.937 | F170: 63,46km/h
A171: 4 | B171: Diego Silva | C171: 32 | D171: 109 | E171: 00:00:55.785 | F171: 63,63km/h
A172: 4 | B172: Diego Silva | C172: 32 | D172: 109 | E172: 00:00:56.044 | F172: 63,34km/h
A173: 4 | B173: Diego Silva | C173: 32 | D173: 109 | E173: 00:00:56.080 | F173: 63,3km/h
A174: 4 | B174: Diego Silva | C174: 32 | D174: 109 | E174: 00:00:55.816 | F174: 63,59km/h
A175: 4 | B175: Diego Silva | C175: 32 | D175: 109 | E175: 00:00:55.390 | F175: 64,08km/h
A176: 4 | B176: Diego Silva | C176: 32 | D176: 109 | E176: 00:00:55.664 | F176: 63,77km/h
A177: 4 | B177: Diego Silva | C177: 32 | D177: 109 | E177: 00:00:55.383 | F177: 64,09km/h
A178: 4 | B178: Diego Silva | C178: 32 | D178: 109 | E178: 00:00:55.750 | F178: 63,67km/h
A179: 4 | B179: Léo Oliveira | C179: 32 | D179: 131 | E179: 00:00:59.203 | F179: 59,96km/h
A180: 4 | B180: Léo Oliveira | C180: 32 | D180: 131 | E180: 00:00:57.980 | F180: 61,22km/h
A181: 4 | B181: Léo Oliveira | C181: 32 | D181: 131 | E181: 00:00:57.223 | F181: 62,03km/h
A182: 4 | B182: Léo Oliveira | C182: 32 | D182: 131 | E182: 00:00:58.680 | F182: 60,49km/h
A183: 4 | B183: Léo Oliveira | C183: 32 | D183: 131 | E183: 00:00:56.922 | F183: 62,36km/h
A184: 4 | B184: Léo Oliveira | C184: 32 | D184: 131 | E184: 00:00:55.889 | F184: 63,51km/h
A185: 4 | B185: Léo Oliveira | C185: 32 | D185: 131 | E185: 00:00:55.955 | F185: 63,44km/h
A186: 4 | B186: Léo Oliveira | C186: 32 | D186: 131 | E186: 00:00:56.443 | F186: 62,89km/h
A187: 4 | B187: Léo Oliveira | C187: 32 | D187: 131 | E187: 00:00:55.528 | F187: 63,92km/h
A188: 4 | B188: Léo Oliveira | C188: 32 | D188: 131 | E188: 00:00:55.790 | F188: 63,62km/h
A189: 4 | B189: Léo Oliveira | C189: 32 | D189: 131 | E189: 00:00:55.949 | F189: 63,44km/h
A190: 4 | B190: Léo Oliveira | C190: 32 | D190: 131 | E190: 00:00:56.265 | F190: 63,09km/h
A191: 4 | B191: Léo Oliveira | C191: 32 | D191: 131 | E191: 00:00:55.694 | F191: 63,73km/h
A192: 4 | B192: Léo Oliveira | C192: 32 | D192: 131 | E192: 00:00:55.966 | F192: 63,42km/h
A193: 4 | B193: Léo Oliveira | C193: 32 | D193: 131 | E193: 00:00:55.973 | F193: 63,42km/h
A194: 4 | B194: Léo Oliveira | C194: 32 | D194: 131 | E194: 00:00:55.986 | F194: 63,4km/h
A195: 4 | B195: Léo Oliveira | C195: 32 | D195: 131 | E195: 00:00:55.951 | F195: 63,44km/h
A196: 4 | B196: Léo Oliveira | C196: 32 | D196: 131 | E196: 00:00:55.746 | F196: 63,67km/h
A197: 4 | B197: Léo Oliveira | C197: 32 | D197: 131 | E197: 00:00:55.720 | F197: 63,7km/h
A198: 4 | B198: Léo Oliveira | C198: 32 | D198: 131 | E198: 00:00:56.003 | F198: 63,38km/h
A199: 4 | B199: Léo Oliveira | C199: 32 | D199: 131 | E199: 00:00:56.968 | F199: 62,31km/h
A200: 4 | B200: Léo Oliveira | C200: 32 | D200: 131 | E200: 00:00:55.633 | F200: 63,8km/h
A201: 4 | B201: Léo Oliveira | C201: 32 | D201: 131 | E201: 00:00:55.767 | F201: 63,65km/h
A202: 4 | B202: Léo Oliveira | C202: 32 | D202: 131 | E202: 00:00:55.769 | F202: 63,65km/h
A203: 4 | B203: Léo Oliveira | C203: 32 | D203: 131 | E203: 00:00:55.569 | F203: 63,88km/h
A204: 4 | B204: Léo Oliveira | C204: 32 | D204: 131 | E204: 00:00:55.725 | F204: 63,7km/h
A205: 4 | B205: Léo Oliveira | C205: 32 | D205: 131 | E205: 00:00:55.749 | F205: 63,67km/h
A206: 4 | B206: Léo Oliveira | C206: 32 | D206: 131 | E206: 00:00:55.941 | F206: 63,45km/h
A207: 4 | B207: Léo Oliveira | C207: 32 | D207: 131 | E207: 00:00:55.837 | F207: 63,57km/h
A208: 4 | B208: Léo Oliveira | C208: 32 | D208: 131 | E208: 00:00:55.766 | F208: 63,65km/h
A209: 4 | B209: Léo Oliveira | C209: 32 | D209: 131 | E209: 00:00:55.935 | F209: 63,46km/h
A210: 4 | B210: Léo Oliveira | C210: 32 | D210: 131 | E210: 00:00:55.844 | F210: 63,56km/h
A211: 4 | B211: Jarbas Reis | C211: 32 | D211: 143 | E211: 00:01:00.685 | F211: 58,49km/h
A212: 4 | B212: Jarbas Reis | C212: 32 | D212: 143 | E212: 00:00:58.750 | F212: 60,42km/h
... 850 more rows

Sheet ETAPA 3
A1: Obs.: 1. Selecione o nome de um Piloto, 2. Com a tecla Ctrl pressionada, Selecione o seu nome e 3. Clique sobre o Gráfico (Habilite a macro) Para as demais comparações Selecione o nome do Piloto e Clique sobre o Gráfico | G1: PILOTO | H1: =L$48 -> Marcelo Campos | I1: =M$48 -> Léo Oliveira | J1: =A2 -> Cláudio Dumont | M1: 00:00:01
A2: Cláudio Dumont | G2: MÉDIA | H2: =AVERAGE(L$49:L$105) -> 00:01:00.818 | I2: =AVERAGE(M$49:M$105) -> 00:01:00.774 | J2: =AVERAGE(N$49:N$105) -> 00:01:00.739 | M2: =M1 -> 00:00:01
A3: Marcelo Campos | G3: MAXIMA | H3: =LARGE(L$49:L$105,1) -> 00:01:04.610 | I3: =LARGE(M$49:M$105,1) -> 00:01:04.265 | J3: =LARGE(N$49:N$105,1) -> 00:01:03.772
A4: Léo Oliveira | G4: MÍNIMA | H4: =SMALL(L$49:L$105,1) -> 00:01:00.357 | I4: =SMALL(M$49:M$105,1) -> 00:01:00.235 | J4: =SMALL(N$49:N$105,1) -> 00:01:00.355
A5: Leonardo Bosco | G5: Desvio Padrão | H5: =_xlfn.STDEV.S(L$50:L$130) -> 00:00:00.808 | I5: =_xlfn.STDEV.S(M$50:M$130) -> 00:00:00.783 | J5: =_xlfn.STDEV.S(N$50:N$130) -> 00:00:00.616
A6: Jean Paul | G6: TEMPO TOTAL | H6: =SUM(L$49:L$105,1) -> 1.021117384 | I6: =SUM(M$49:M$105,1) -> 1.021102222 | J6: =SUM(N$49:N$105,1) -> 1.021089954
A7: Wesley Bambirra
A8: Fernando Medeiros
A9: Daniel Nahum
A10: Rafael Cantoni
A11: Alexandre Melillo
A12: Roberto Muzzi
A13: Wesley Canuto | J13: =SMALL(H4:J4,1)-K13 -> 00:00:59.985 | K13: 00:00:00.250
A14: Rafael Miranda | J14: =LARGE(H3:J3,1)+K13 -> 00:01:04.860
A15: Victor Silva
A16: Daniel Paranhos
A17: Leonardo Bastos
A18: Guilherme Alves
A19: Diego Silva
A20: Felipe Franca
A21: Rafael Alves
A22: Luis Almeida
A23: Jarbas Reis
A24: Marcelo Sant'anna
A25: Gabriel Veloso
A26: João Fiuza
A27: CARLOS SAMPAIO
A28: Marcelo Surerus
A29: Saulo Chagas
A30: Raphael Reis
A31: Hugo Bambirra
A32: Marcelo Pereira
L48: Marcelo Campos | M48: Léo Oliveira | N48: Cláudio Dumont
K49: NÚMERO VOLTAS | L49: Marcelo Campos | M49: Léo Oliveira | N49: Cláudio Dumont
A50: ETAPA | B50: PILOTO | C50: NÚMERO VOLTAS | D50: KART | E50: Volta Tm | F50: velocidade Media | K50: 1 | L50: 00:01:04.610 | M50: 00:01:04.265 | N50: 00:01:03.772
A51: 3 | B51: Cláudio Dumont | C51: 30 | D51: 143 | E51: 00:01:03.772 | F51: 61,08km/h | K51: 2 | L51: 00:01:02.233 | M51: 00:01:01.935 | N51: 00:01:01.469
A52: 3 | B52: Cláudio Dumont | C52: 30 | D52: 143 | E52: 00:01:01.469 | F52: 63,37km/h | K52: 3 | L52: 00:01:01.376 | M52: 00:01:01.564 | N52: 00:01:00.803
A53: 3 | B53: Cláudio Dumont | C53: 30 | D53: 143 | E53: 00:01:00.803 | F53: 64,06km/h | K53: 4 | L53: 00:01:00.910 | M53: 00:01:01.867 | N53: 00:01:01.216
A54: 3 | B54: Cláudio Dumont | C54: 30 | D54: 143 | E54: 00:01:01.216 | F54: 63,63km/h | K54: 5 | L54: 00:01:00.488 | M54: 00:01:00.743 | N54: 00:01:00.811
A55: 3 | B55: Cláudio Dumont | C55: 30 | D55: 143 | E55: 00:01:00.811 | F55: 64,05km/h | K55: 6 | L55: 00:01:00.410 | M55: 00:01:00.477 | N55: 00:01:00.853
A56: 3 | B56: Cláudio Dumont | C56: 30 | D56: 143 | E56: 00:01:00.853 | F56: 64,01km/h | K56: 7 | L56: 00:01:01.266 | M56: 00:01:00.826 | N56: 00:01:00.512
A57: 3 | B57: Cláudio Dumont | C57: 30 | D57: 143 | E57: 00:01:00.512 | F57: 64,37km/h | K57: 8 | L57: 00:01:00.961 | M57: 00:01:00.608 | N57: 00:01:00.445
A58: 3 | B58: Cláudio Dumont | C58: 30 | D58: 143 | E58: 00:01:00.445 | F58: 64,44km/h | K58: 9 | L58: 00:01:00.697 | M58: 00:01:00.723 | N58: 00:01:00.636
A59: 3 | B59: Cláudio Dumont | C59: 30 | D59: 143 | E59: 00:01:00.636 | F59: 64,24km/h | K59: 10 | L59: 00:01:00.662 | M59: 00:01:00.590 | N59: 00:01:00.708
A60: 3 | B60: Cláudio Dumont | C60: 30 | D60: 143 | E60: 00:01:00.708 | F60: 64,16km/h | K60: 11 | L60: 00:01:00.628 | M60: 00:01:00.542 | N60: 00:01:00.682
A61: 3 | B61: Cláudio Dumont | C61: 30 | D61: 143 | E61: 00:01:00.682 | F61: 64,19km/h | K61: 12 | L61: 00:01:00.519 | M61: 00:01:00.517 | N61: 00:01:00.677
A62: 3 | B62: Cláudio Dumont | C62: 30 | D62: 143 | E62: 00:01:00.677 | F62: 64,2km/h | K62: 13 | L62: 00:01:00.475 | M62: 00:01:00.443 | N62: 00:01:00.600
A63: 3 | B63: Cláudio Dumont | C63: 30 | D63: 143 | E63: 00:01:00.600 | F63: 64,28km/h | K63: 14 | L63: 00:01:00.543 | M63: 00:01:00.235 | N63: 00:01:00.538
A64: 3 | B64: Cláudio Dumont | C64: 30 | D64: 143 | E64: 00:01:00.538 | F64: 64,34km/h | K64: 15 | L64: 00:01:00.357 | M64: 00:01:00.834 | N64: 00:01:00.414
A65: 3 | B65: Cláudio Dumont | C65: 30 | D65: 143 | E65: 00:01:00.414 | F65: 64,48km/h | K65: 16 | L65: 00:01:00.375 | M65: 00:01:00.247 | N65: 00:01:00.496
A66: 3 | B66: Cláudio Dumont | C66: 30 | D66: 143 | E66: 00:01:00.496 | F66: 64,39km/h | K66: 17 | L66: 00:01:00.472 | M66: 00:01:00.863 | N66: 00:01:00.662
A67: 3 | B67: Cláudio Dumont | C67: 30 | D67: 143 | E67: 00:01:00.662 | F67: 64,21km/h | K67: 18 | L67: 00:01:00.512 | M67: 00:01:00.349 | N67: 00:01:00.493
A68: 3 | B68: Cláudio Dumont | C68: 30 | D68: 143 | E68: 00:01:00.493 | F68: 64,39km/h | K68: 19 | L68: 00:01:00.465 | M68: 00:01:00.420 | N68: 00:01:00.355
A69: 3 | B69: Cláudio Dumont | C69: 30 | D69: 143 | E69: 00:01:00.355 | F69: 64,54km/h | K69: 20 | L69: 00:01:00.551 | M69: 00:01:00.353 | N69: 00:01:00.506
A70: 3 | B70: Cláudio Dumont | C70: 30 | D70: 143 | E70: 00:01:00.506 | F70: 64,38km/h | K70: 21 | L70: 00:01:00.461 | M70: 00:01:00.411 | N70: 00:01:00.561
A71: 3 | B71: Cláudio Dumont | C71: 30 | D71: 143 | E71: 00:01:00.561 | F71: 64,32km/h | K71: 22 | L71: 00:01:00.467 | M71: 00:01:00.334 | N71: 00:01:00.474
A72: 3 | B72: Cláudio Dumont | C72: 30 | D72: 143 | E72: 00:01:00.474 | F72: 64,41km/h | K72: 23 | L72: 00:01:00.490 | M72: 00:01:00.399 | N72: 00:01:00.589
A73: 3 | B73: Cláudio Dumont | C73: 30 | D73: 143 | E73: 00:01:00.589 | F73: 64,29km/h | K73: 24 | L73: 00:01:00.599 | M73: 00:01:00.541 | N73: 00:01:00.618
A74: 3 | B74: Cláudio Dumont | C74: 30 | D74: 143 | E74: 00:01:00.618 | F74: 64,26km/h | K74: 25 | L74: 00:01:00.513 | M74: 00:01:00.453 | N74: 00:01:00.483
A75: 3 | B75: Cláudio Dumont | C75: 30 | D75: 143 | E75: 00:01:00.483 | F75: 64,4km/h | K75: 26 | L75: 00:01:00.709 | M75: 00:01:00.400 | N75: 00:01:00.468
A76: 3 | B76: Cláudio Dumont | C76: 30 | D76: 143 | E76: 00:01:00.468 | F76: 64,42km/h | K76: 27 | L76: 00:01:00.740 | M76: 00:01:00.646 | N76: 00:01:00.651
A77: 3 | B77: Cláudio Dumont | C77: 30 | D77: 143 | E77: 00:01:00.651 | F77: 64,22km/h | K77: 28 | L77: 00:01:00.696 | M77: 00:01:00.610 | N77: 00:01:00.628
A78: 3 | B78: Cláudio Dumont | C78: 30 | D78: 143 | E78: 00:01:00.628 | F78: 64,25km/h | K78: 29 | L78: 00:01:00.728 | M78: 00:01:00.616 | N78: 00:01:00.524
A79: 3 | B79: Cláudio Dumont | C79: 30 | D79: 143 | E79: 00:01:00.524 | F79: 64,36km/h | K79: 30 | L79: 00:01:00.629 | M79: 00:01:00.421 | N79: 00:01:00.528
A80: 3 | B80: Cláudio Dumont | C80: 30 | D80: 143 | E80: 00:01:00.528 | F80: 64,35km/h | K80: 31
A81: 3 | B81: Marcelo Campos | C81: 30 | D81: 147 | E81: 00:01:04.610 | F81: 60,29km/h | K81: 32
A82: 3 | B82: Marcelo Campos | C82: 30 | D82: 147 | E82: 00:01:02.233 | F82: 62,59km/h | K82: 33
A83: 3 | B83: Marcelo Campos | C83: 30 | D83: 147 | E83: 00:01:01.376 | F83: 63,46km/h | K83: 34
A84: 3 | B84: Marcelo Campos | C84: 30 | D84: 147 | E84: 00:01:00.910 | F84: 63,95km/h | K84: 35
A85: 3 | B85: Marcelo Campos | C85: 30 | D85: 147 | E85: 00:01:00.488 | F85: 64,4km/h | K85: 36
A86: 3 | B86: Marcelo Campos | C86: 30 | D86: 147 | E86: 00:01:00.410 | F86: 64,48km/h | K86: 37
A87: 3 | B87: Marcelo Campos | C87: 30 | D87: 147 | E87: 00:01:01.266 | F87: 63,58km/h | K87: 38
A88: 3 | B88: Marcelo Campos | C88: 30 | D88: 147 | E88: 00:01:00.961 | F88: 63,9km/h | K88: 39
A89: 3 | B89: Marcelo Campos | C89: 30 | D89: 147 | E89: 00:01:00.697 | F89: 64,17km/h | K89: 40
A90: 3 | B90: Marcelo Campos | C90: 30 | D90: 147 | E90: 00:01:00.662 | F90: 64,21km/h | K90: 41
A91: 3 | B91: Marcelo Campos | C91: 30 | D91: 147 | E91: 00:01:00.628 | F91: 64,25km/h | K91: 42
A92: 3 | B92: Marcelo Campos | C92: 30 | D92: 147 | E92: 00:01:00.519 | F92: 64,36km/h | K92: 43
A93: 3 | B93: Marcelo Campos | C93: 30 | D93: 147 | E93: 00:01:00.475 | F93: 64,41km/h | K93: 44
A94: 3 | B94: Marcelo Campos | C94: 30 | D94: 147 | E94: 00:01:00.543 | F94: 64,34km/h | K94: 45
A95: 3 | B95: Marcelo Campos | C95: 30 | D95: 147 | E95: 00:01:00.357 | F95: 64,54km/h | K95: 46
A96: 3 | B96: Marcelo Campos | C96: 30 | D96: 147 | E96: 00:01:00.375 | F96: 64,52km/h | K96: 47
A97: 3 | B97: Marcelo Campos | C97: 30 | D97: 147 | E97: 00:01:00.472 | F97: 64,41km/h | K97: 48
A98: 3 | B98: Marcelo Campos | C98: 30 | D98: 147 | E98: 00:01:00.512 | F98: 64,37km/h | K98: 49
A99: 3 | B99: Marcelo Campos | C99: 30 | D99: 147 | E99: 00:01:00.465 | F99: 64,42km/h | K99: 50
A100: 3 | B100: Marcelo Campos | C100: 30 | D100: 147 | E100: 00:01:00.551 | F100: 64,33km/h | K100: 51
A101: 3 | B101: Marcelo Campos | C101: 30 | D101: 147 | E101: 00:01:00.461 | F101: 64,43km/h | K101: 52
A102: 3 | B102: Marcelo Campos | C102: 30 | D102: 147 | E102: 00:01:00.467 | F102: 64,42km/h | K102: 53
A103: 3 | B103: Marcelo Campos | C103: 30 | D103: 147 | E103: 00:01:00.490 | F103: 64,39km/h | K103: 54
A104: 3 | B104: Marcelo Campos | C104: 30 | D104: 147 | E104: 00:01:00.599 | F104: 64,28km/h | K104: 55
A105: 3 | B105: Marcelo Campos | C105: 30 | D105: 147 | E105: 00:01:00.513 | F105: 64,37km/h | K105: 56
A106: 3 | B106: Marcelo Campos | C106: 30 | D106: 147 | E106: 00:01:00.709 | F106: 64,16km/h | K106: 57
A107: 3 | B107: Marcelo Campos | C107: 30 | D107: 147 | E107: 00:01:00.740 | F107: 64,13km/h | K107: 58
A108: 3 | B108: Marcelo Campos | C108: 30 | D108: 147 | E108: 00:01:00.696 | F108: 64,18km/h | K108: 59
A109: 3 | B109: Marcelo Campos | C109: 30 | D109: 147 | E109: 00:01:00.728 | F109: 64,14km/h | K109: 60
A110: 3 | B110: Marcelo Campos | C110: 30 | D110: 147 | E110: 00:01:00.629 | F110: 64,25km/h | K110: 61
A111: 3 | B111: Léo Oliveira | C111: 30 | D111: 141 | E111: 00:01:04.265 | F111: 60,61km/h | K111: 62
A112: 3 | B112: Léo Oliveira | C112: 30 | D112: 141 | E112: 00:01:01.935 | F112: 62,89km/h | K112: 63
A113: 3 | B113: Léo Oliveira | C113: 30 | D113: 141 | E113: 00:01:01.564 | F113: 63,27km/h
A114: 3 | B114: Léo Oliveira | C114: 30 | D114: 141 | E114: 00:01:01.867 | F114: 62,96km/h
A115: 3 | B115: Léo Oliveira | C115: 30 | D115: 141 | E115: 00:01:00.743 | F115: 64,13km/h
A116: 3 | B116: Léo Oliveira | C116: 30 | D116: 141 | E116: 00:01:00.477 | F116: 64,41km/h
A117: 3 | B117: Léo Oliveira | C117: 30 | D117: 141 | E117: 00:01:00.826 | F117: 64,04km/h
A118: 3 | B118: Léo Oliveira | C118: 30 | D118: 141 | E118: 00:01:00.608 | F118: 64,27km/h
A119: 3 | B119: Léo Oliveira | C119: 30 | D119: 141 | E119: 00:01:00.723 | F119: 64,15km/h
A120: 3 | B120: Léo Oliveira | C120: 30 | D120: 141 | E120: 00:01:00.590 | F120: 64,29km/h
A121: 3 | B121: Léo Oliveira | C121: 30 | D121: 141 | E121: 00:01:00.542 | F121: 64,34km/h
A122: 3 | B122: Léo Oliveira | C122: 30 | D122: 141 | E122: 00:01:00.517 | F122: 64,37km/h
A123: 3 | B123: Léo Oliveira | C123: 30 | D123: 141 | E123: 00:01:00.443 | F123: 64,44km/h
A124: 3 | B124: Léo Oliveira | C124: 30 | D124: 141 | E124: 00:01:00.235 | F124: 64,67km/h
A125: 3 | B125: Léo Oliveira | C125: 30 | D125: 141 | E125: 00:01:00.834 | F125: 64,03km/h
A126: 3 | B126: Léo Oliveira | C126: 30 | D126: 141 | E126: 00:01:00.247 | F126: 64,65km/h
A127: 3 | B127: Léo Oliveira | C127: 30 | D127: 141 | E127: 00:01:00.863 | F127: 64km/h
A128: 3 | B128: Léo Oliveira | C128: 30 | D128: 141 | E128: 00:01:00.349 | F128: 64,54km/h
A129: 3 | B129: Léo Oliveira | C129: 30 | D129: 141 | E129: 00:01:00.420 | F129: 64,47km/h
A130: 3 | B130: Léo Oliveira | C130: 30 | D130: 141 | E130: 00:01:00.353 | F130: 64,54km/h
A131: 3 | B131: Léo Oliveira | C131: 30 | D131: 141 | E131: 00:01:00.411 | F131: 64,48km/h
A132: 3 | B132: Léo Oliveira | C132: 30 | D132: 141 | E132: 00:01:00.334 | F132: 64,56km/h
A133: 3 | B133: Léo Oliveira | C133: 30 | D133: 141 | E133: 00:01:00.399 | F133: 64,49km/h
A134: 3 | B134: Léo Oliveira | C134: 30 | D134: 141 | E134: 00:01:00.541 | F134: 64,34km/h
A135: 3 | B135: Léo Oliveira | C135: 30 | D135: 141 | E135: 00:01:00.453 | F135: 64,43km/h
A136: 3 | B136: Léo Oliveira | C136: 30 | D136: 141 | E136: 00:01:00.400 | F136: 64,49km/h
A137: 3 | B137: Léo Oliveira | C137: 30 | D137: 141 | E137: 00:01:00.646 | F137: 64,23km/h
A138: 3 | B138: Léo Oliveira | C138: 30 | D138: 141 | E138: 00:01:00.610 | F138: 64,27km/h
A139: 3 | B139: Léo Oliveira | C139: 30 | D139: 141 | E139: 00:01:00.616 | F139: 64,26km/h
A140: 3 | B140: Léo Oliveira | C140: 30 | D140: 141 | E140: 00:01:00.421 | F140: 64,47km/h
A141: 3 | B141: Leonardo Bosco | C141: 30 | D141: 115 | E141: 00:01:05.326 | F141: 59,63km/h
A142: 3 | B142: Leonardo Bosco | C142: 30 | D142: 115 | E142: 00:01:01.463 | F142: 63,37km/h
A143: 3 | B143: Leonardo Bosco | C143: 30 | D143: 115 | E143: 00:01:02.264 | F143: 62,56km/h
A144: 3 | B144: Leonardo Bosco | C144: 30 | D144: 115 | E144: 00:01:00.856 | F144: 64,01km/h
A145: 3 | B145: Leonardo Bosco | C145: 30 | D145: 115 | E145: 00:01:00.943 | F145: 63,92km/h
A146: 3 | B146: Leonardo Bosco | C146: 30 | D146: 115 | E146: 00:01:00.704 | F146: 64,17km/h
A147: 3 | B147: Leonardo Bosco | C147: 30 | D147: 115 | E147: 00:01:00.834 | F147: 64,03km/h
A148: 3 | B148: Leonardo Bosco | C148: 30 | D148: 115 | E148: 00:01:00.568 | F148: 64,31km/h
A149: 3 | B149: Leonardo Bosco | C149: 30 | D149: 115 | E149: 00:01:00.382 | F149: 64,51km/h
A150: 3 | B150: Leonardo Bosco | C150: 30 | D150: 115 | E150: 00:01:00.584 | F150: 64,29km/h
A151: 3 | B151: Leonardo Bosco | C151: 30 | D151: 115 | E151: 00:01:01.080 | F151: 63,77km/h
A152: 3 | B152: Leonardo Bosco | C152: 30 | D152: 115 | E152: 00:01:00.969 | F152: 63,89km/h
A153: 3 | B153: Leonardo Bosco | C153: 30 | D153: 115 | E153: 00:01:00.817 | F153: 64,05km/h
A154: 3 | B154: Leonardo Bosco | C154: 30 | D154: 115 | E154: 00:01:00.898 | F154: 63,96km/h
A155: 3 | B155: Leonardo Bosco | C155: 30 | D155: 115 | E155: 00:01:00.782 | F155: 64,08km/h
A156: 3 | B156: Leonardo Bosco | C156: 30 | D156: 115 | E156: 00:01:00.408 | F156: 64,48km/h
A157: 3 | B157: Leonardo Bosco | C157: 30 | D157: 115 | E157: 00:01:01.121 | F157: 63,73km/h
A158: 3 | B158: Leonardo Bosco | C158: 30 | D158: 115 | E158: 00:01:00.353 | F158: 64,54km/h
A159: 3 | B159: Leonardo Bosco | C159: 30 | D159: 115 | E159: 00:01:00.429 | F159: 64,46km/h
A160: 3 | B160: Leonardo Bosco | C160: 30 | D160: 115 | E160: 00:01:00.490 | F160: 64,39km/h
A161: 3 | B161: Leonardo Bosco | C161: 30 | D161: 115 | E161: 00:01:00.241 | F161: 64,66km/h
A162: 3 | B162: Leonardo Bosco | C162: 30 | D162: 115 | E162: 00:01:00.495 | F162: 64,39km/h
A163: 3 | B163: Leonardo Bosco | C163: 30 | D163: 115 | E163: 00:01:00.529 | F163: 64,35km/h
A164: 3 | B164: Leonardo Bosco | C164: 30 | D164: 115 | E164: 00:01:00.454 | F164: 64,43km/h
A165: 3 | B165: Leonardo Bosco | C165: 30 | D165: 115 | E165: 00:01:00.473 | F165: 64,41km/h
A166: 3 | B166: Leonardo Bosco | C166: 30 | D166: 115 | E166: 00:01:00.355 | F166: 64,54km/h
A167: 3 | B167: Leonardo Bosco | C167: 30 | D167: 115 | E167: 00:01:00.602 | F167: 64,28km/h
A168: 3 | B168: Leonardo Bosco | C168: 30 | D168: 115 | E168: 00:01:00.619 | F168: 64,26km/h
A169: 3 | B169: Leonardo Bosco | C169: 30 | D169: 115 | E169: 00:01:00.473 | F169: 64,41km/h
A170: 3 | B170: Leonardo Bosco | C170: 30 | D170: 115 | E170: 00:01:01.091 | F170: 63,76km/h
A171: 3 | B171: Jean Paul | C171: 30 | D171: 126 | E171: 00:01:03.746 | F171: 61,11km/h
A172: 3 | B172: Jean Paul | C172: 30 | D172: 126 | E172: 00:01:01.873 | F172: 62,95km/h
A173: 3 | B173: Jean Paul | C173: 30 | D173: 126 | E173: 00:01:02.019 | F173: 62,81km/h
A174: 3 | B174: Jean Paul | C174: 30 | D174: 126 | E174: 00:01:01.610 | F174: 63,22km/h
A175: 3 | B175: Jean Paul | C175: 30 | D175: 126 | E175: 00:01:00.878 | F175: 63,98km/h
A176: 3 | B176: Jean Paul | C176: 30 | D176: 126 | E176: 00:01:00.786 | F176: 64,08km/h
A177: 3 | B177: Jean Paul | C177: 30 | D177: 126 | E177: 00:01:01.186 | F177: 63,66km/h
A178: 3 | B178: Jean Paul | C178: 30 | D178: 126 | E178: 00:01:01.403 | F178: 63,44km/h
A179: 3 | B179: Jean Paul | C179: 30 | D179: 126 | E179: 00:01:00.895 | F179: 63,97km/h
A180: 3 | B180: Jean Paul | C180: 30 | D180: 126 | E180: 00:01:00.616 | F180: 64,26km/h
A181: 3 | B181: Jean Paul | C181: 30 | D181: 126 | E181: 00:01:00.871 | F181: 63,99km/h
A182: 3 | B182: Jean Paul | C182: 30 | D182: 126 | E182: 00:01:00.871 | F182: 63,99km/h
A183: 3 | B183: Jean Paul | C183: 30 | D183: 126 | E183: 00:01:01.132 | F183: 63,72km/h
A184: 3 | B184: Jean Paul | C184: 30 | D184: 126 | E184: 00:01:00.951 | F184: 63,91km/h
A185: 3 | B185: Jean Paul | C185: 30 | D185: 126 | E185: 00:01:01.453 | F185: 63,39km/h
A186: 3 | B186: Jean Paul | C186: 30 | D186: 126 | E186: 00:01:00.518 | F186: 64,36km/h
A187: 3 | B187: Jean Paul | C187: 30 | D187: 126 | E187: 00:01:00.611 | F187: 64,27km/h
A188: 3 | B188: Jean Paul | C188: 30 | D188: 126 | E188: 00:01:01.010 | F188: 63,85km/h
A189: 3 | B189: Jean Paul | C189: 30 | D189: 126 | E189: 00:01:01.026 | F189: 63,83km/h
A190: 3 | B190: Jean Paul | C190: 30 | D190: 126 | E190: 00:01:01.708 | F190: 63,12km/h
A191: 3 | B191: Jean Paul | C191: 30 | D191: 126 | E191: 00:01:01.597 | F191: 63,24km/h
A192: 3 | B192: Jean Paul | C192: 30 | D192: 126 | E192: 00:01:00.978 | F192: 63,88km/h
A193: 3 | B193: Jean Paul | C193: 30 | D193: 126 | E193: 00:01:01.392 | F193: 63,45km/h
A194: 3 | B194: Jean Paul | C194: 30 | D194: 126 | E194: 00:01:01.558 | F194: 63,28km/h
A195: 3 | B195: Jean Paul | C195: 30 | D195: 126 | E195: 00:01:01.411 | F195: 63,43km/h
A196: 3 | B196: Jean Paul | C196: 30 | D196: 126 | E196: 00:01:01.099 | F196: 63,75km/h
A197: 3 | B197: Jean Paul | C197: 30 | D197: 126 | E197: 00:01:01.617 | F197: 63,22km/h
A198: 3 | B198: Jean Paul | C198: 30 | D198: 126 | E198: 00:01:01.309 | F198: 63,53km/h
A199: 3 | B199: Jean Paul | C199: 30 | D199: 126 | E199: 00:01:01.213 | F199: 63,63km/h
A200: 3 | B200: Jean Paul | C200: 30 | D200: 126 | E200: 00:01:01.845 | F200: 62,98km/h
A201: 3 | B201: Wesley Bambirra | C201: 30 | D201: 139 | E201: 00:01:04.480 | F201: 60,41km/h
A202: 3 | B202: Wesley Bambirra | C202: 30 | D202: 139 | E202: 00:01:02.292 | F202: 62,53km/h
A203: 3 | B203: Wesley Bambirra | C203: 30 | D203: 139 | E203: 00:01:01.983 | F203: 62,84km/h
A204: 3 | B204: Wesley Bambirra | C204: 30 | D204: 139 | E204: 00:01:02.396 | F204: 62,43km/h
A205: 3 | B205: Wesley Bambirra | C205: 30 | D205: 139 | E205: 00:01:01.165 | F205: 63,68km/h
A206: 3 | B206: Wesley Bambirra | C206: 30 | D206: 139 | E206: 00:01:01.574 | F206: 63,26km/h
A207: 3 | B207: Wesley Bambirra | C207: 30 | D207: 139 | E207: 00:01:01.773 | F207: 63,06km/h
A208: 3 | B208: Wesley Bambirra | C208: 30 | D208: 139 | E208: 00:01:00.878 | F208: 63,98km/h
A209: 3 | B209: Wesley Bambirra | C209: 30 | D209: 139 | E209: 00:01:00.895 | F209: 63,97km/h
A210: 3 | B210: Wesley Bambirra | C210: 30 | D210: 139 | E210: 00:01:00.775 | F210: 64,09km/h
A211: 3 | B211: Wesley Bambirra | C211: 30 | D211: 139 | E211: 00:01:00.819 | F211: 64,05km/h
A212: 3 | B212: Wesley Bambirra | C212: 30 | D212: 139 | E212: 00:01:00.736 | F212: 64,13km/h
A213: 3 | B213: Wesley Bambirra | C213: 30 | D213: 139 | E213: 00:01:00.876 | F213: 63,99km/h
A214: 3 | B214: Wesley Bambirra | C214: 30 | D214: 139 | E214: 00:01:00.786 | F214: 64,08km/h
A215: 3 | B215: Wesley Bambirra | C215: 30 | D215: 139 | E215: 00:01:00.729 | F215: 64,14km/h
... 794 more rows

Sheet ETAPA 1 (2)
A1: Obs.: 1. Selecione o nome de um Piloto, 2. Com a tecla Ctrl pressionada, Selecione o seu nome e 3. Clique sobre o Gráfico (Habilite a macro) Para as demais comparações Selecione o nome do Piloto e Clique sobre o Gráfico | G1: PILOTO | H1: =L$48 -> Fernando Medeiros | I1: =M$48 -> Daniel Nahum | J1: =A2 -> 0 | M1: 00:00:01
G2: MÉDIA | H2: =AVERAGE(L$49:L$105) -> 00:01:00.518 | I2: =AVERAGE(M$49:M$105) -> 00:01:00.750 | J2: =AVERAGE(N$49:N$105) -> 00:01:00.341 | M2: =M1 -> 00:00:01
G3: MAXIMA | H3: =LARGE(L$49:L$105,1) -> 00:01:05.835 | I3: =LARGE(M$49:M$105,1) -> 00:01:06.530 | J3: =LARGE(N$49:N$105,1) -> 00:01:05.179
G4: MÍNIMA | H4: =SMALL(L$49:L$105,1) -> 00:00:59.732 | I4: =SMALL(M$49:M$105,1) -> 00:00:59.806 | J4: =SMALL(N$49:N$105,1) -> 00:00:59.751
G5: Desvio Padrão | H5: =_xlfn.STDEV.S(L$50:L$130) -> 00:00:01.101 | I5: =_xlfn.STDEV.S(M$50:M$130) -> 00:00:01.210 | J5: =_xlfn.STDEV.S(N$50:N$130) -> 00:00:01.005
G6: TEMPO TOTAL | H6: =SUM(L$49:L$105,1) -> 1.021013021 | I6: =SUM(M$49:M$105,1) -> 1.021093646 | J6: =SUM(N$49:N$105,1) -> 1.020951725
J13: =SMALL(H4:J4,1)-K13 -> 00:00:59.482 | K13: 00:00:00.250
J14: =LARGE(H3:J3,1)+K13 -> 00:01:06.780
L48: Fernando Medeiros | M48: Daniel Nahum | N48: Leonardo Oliveira
K49: NÚMERO VOLTAS | L49: Fernando Medeiros | M49: Daniel Nahum | N49: Leonardo Oliveira
A50: ETAPA | B50: PILOTO | C50: NÚMERO VOLTAS | D50: KART | E50: Volta Tm | F50: velocidade Media | K50: 1 | L50: 00:01:05.835 | M50: 00:01:06.530 | N50: 00:01:05.179
K51: 2 | L51: 00:01:01.084 | M51: 00:01:01.438 | N51: 00:01:01.801
K52: 3 | L52: 00:01:00.986 | M52: 00:01:01.596 | N52: 00:01:00.717
K53: 4 | L53: 00:01:01.129 | M53: 00:01:01.075 | N53: 00:01:01.024
K54: 5 | L54: 00:01:01.363 | M54: 00:01:01.280 | N54: 00:01:00.763
K55: 6 | L55: 00:01:00.711 | M55: 00:01:00.500 | N55: 00:01:00.143
K56: 7 | L56: 00:01:00.699 | M56: 00:01:00.622 | N56: 00:01:00.105
K57: 8 | L57: 00:01:00.474 | M57: 00:01:00.542 | N57: 00:01:00.112
K58: 9 | L58: 00:01:00.542 | M58: 00:01:00.861 | N58: 00:01:00.210
K59: 10 | L59: 00:01:00.206 | M59: 00:01:00.274 | N59: 00:00:59.772
K60: 11 | L60: 00:01:01.171 | M60: 00:01:01.280 | N60: 00:01:00.119
K61: 12 | L61: 00:01:00.410 | M61: 00:01:00.166 | N61: 00:00:59.790
K62: 13 | L62: 00:01:00.370 | M62: 00:01:00.606 | N62: 00:01:00.124
K63: 14 | L63: 00:01:00.331 | M63: 00:01:00.362 | N63: 00:01:00.168
K64: 15 | L64: 00:01:00.147 | M64: 00:01:00.098 | N64: 00:01:00.160
K65: 16 | L65: 00:00:59.884 | M65: 00:01:00.056 | N65: 00:00:59.881
K66: 17 | L66: 00:01:00.263 | M66: 00:00:59.975 | N66: 00:01:00.157
K67: 18 | L67: 00:01:00.058 | M67: 00:01:00.178 | N67: 00:01:00.082
K68: 19 | L68: 00:00:59.902 | M68: 00:00:59.806 | N68: 00:00:59.937
K69: 20 | L69: 00:01:00.191 | M69: 00:01:00.097 | N69: 00:01:00.021
K70: 21 | L70: 00:00:59.755 | M70: 00:00:59.958 | N70: 00:00:59.952
K71: 22 | L71: 00:00:59.732 | M71: 00:00:59.978 | N71: 00:00:59.751
K72: 23 | L72: 00:01:00.072 | M72: 00:01:00.480 | N72: 00:01:00.077
K73: 24 | L73: 00:00:59.809 | M73: 00:01:00.219 | N73: 00:00:59.806
K74: 25 | L74: 00:00:59.907 | M74: 00:01:00.248 | N74: 00:00:59.902
K75: 26 | L75: 00:00:59.902 | M75: 00:01:00.314 | N75: 00:00:59.912
K76: 27 | L76: 00:01:00.078 | M76: 00:01:00.384 | N76: 00:01:00.075
K77: 28 | L77: 00:01:00.198 | M77: 00:01:01.145 | N77: 00:01:00.188
K78: 29 | L78: 00:00:59.960 | M78: 00:01:01.670 | N78: 00:00:59.969
K79: 30 | L79: 00:01:00.356 | M79: 00:01:00.753 | N79: 00:01:00.332
A80: 2 | B80: Leonardo Oliveira | C80: 30 | D80: 109 | E80: 00:01:00.332 | F80: 64,56km/h | K80: 31
A81: 2 | B81: Fernando Medeiros | C81: 30 | D81: 103 | E81: 00:01:05.835 | F81: 59,17km/h | K81: 32
A82: 2 | B82: Fernando Medeiros | C82: 30 | D82: 103 | E82: 00:01:01.084 | F82: 63,77km/h | K82: 33
A83: 2 | B83: Fernando Medeiros | C83: 30 | D83: 103 | E83: 00:01:00.986 | F83: 63,87km/h | K83: 34
A84: 2 | B84: Fernando Medeiros | C84: 30 | D84: 103 | E84: 00:01:01.129 | F84: 63,72km/h | K84: 35
A85: 2 | B85: Fernando Medeiros | C85: 30 | D85: 103 | E85: 00:01:01.363 | F85: 63,48km/h | K85: 36
A86: 2 | B86: Fernando Medeiros | C86: 30 | D86: 103 | E86: 00:01:00.711 | F86: 64,16km/h | K86: 37
A87: 2 | B87: Fernando Medeiros | C87: 30 | D87: 103 | E87: 00:01:00.699 | F87: 64,17km/h | K87: 38
A88: 2 | B88: Fernando Medeiros | C88: 30 | D88: 103 | E88: 00:01:00.474 | F88: 64,41km/h | K88: 39
A89: 2 | B89: Fernando Medeiros | C89: 30 | D89: 103 | E89: 00:01:00.542 | F89: 64,34km/h | K89: 40
A90: 2 | B90: Fernando Medeiros | C90: 30 | D90: 103 | E90: 00:01:00.206 | F90: 64,7km/h | K90: 41
A91: 2 | B91: Fernando Medeiros | C91: 30 | D91: 103 | E91: 00:01:01.171 | F91: 63,68km/h | K91: 42
A92: 2 | B92: Fernando Medeiros | C92: 30 | D92: 103 | E92: 00:01:00.410 | F92: 64,48km/h | K92: 43
A93: 2 | B93: Fernando Medeiros | C93: 30 | D93: 103 | E93: 00:01:00.370 | F93: 64,52km/h | K93: 44
A94: 2 | B94: Fernando Medeiros | C94: 30 | D94: 103 | E94: 00:01:00.331 | F94: 64,56km/h | K94: 45
A95: 2 | B95: Fernando Medeiros | C95: 30 | D95: 103 | E95: 00:01:00.147 | F95: 64,76km/h | K95: 46
A96: 2 | B96: Fernando Medeiros | C96: 30 | D96: 103 | E96: 00:00:59.884 | F96: 65,05km/h | K96: 47
A97: 2 | B97: Fernando Medeiros | C97: 30 | D97: 103 | E97: 00:01:00.263 | F97: 64,64km/h | K97: 48
A98: 2 | B98: Fernando Medeiros | C98: 30 | D98: 103 | E98: 00:01:00.058 | F98: 64,86km/h | K98: 49
A99: 2 | B99: Fernando Medeiros | C99: 30 | D99: 103 | E99: 00:00:59.902 | F99: 65,03km/h | K99: 50
A100: 2 | B100: Fernando Medeiros | C100: 30 | D100: 103 | E100: 00:01:00.191 | F100: 64,71km/h | K100: 51
A101: 2 | B101: Fernando Medeiros | C101: 30 | D101: 103 | E101: 00:00:59.755 | F101: 65,19km/h | K101: 52
A102: 2 | B102: Fernando Medeiros | C102: 30 | D102: 103 | E102: 00:00:59.732 | F102: 65,21km/h | K102: 53
A103: 2 | B103: Fernando Medeiros | C103: 30 | D103: 103 | E103: 00:01:00.072 | F103: 64,84km/h | K103: 54
A104: 2 | B104: Fernando Medeiros | C104: 30 | D104: 103 | E104: 00:00:59.809 | F104: 65,13km/h | K104: 55
A105: 2 | B105: Fernando Medeiros | C105: 30 | D105: 103 | E105: 00:00:59.907 | F105: 65,02km/h | K105: 56
A106: 2 | B106: Fernando Medeiros | C106: 30 | D106: 103 | E106: 00:00:59.902 | F106: 65,03km/h | K106: 57
A107: 2 | B107: Fernando Medeiros | C107: 30 | D107: 103 | E107: 00:01:00.078 | F107: 64,84km/h | K107: 58
A108: 2 | B108: Fernando Medeiros | C108: 30 | D108: 103 | E108: 00:01:00.198 | F108: 64,71km/h | K108: 59
A109: 2 | B109: Fernando Medeiros | C109: 30 | D109: 103 | E109: 00:00:59.960 | F109: 64,96km/h | K109: 60
A110: 2 | B110: Fernando Medeiros | C110: 30 | D110: 103 | E110: 00:01:00.356 | F110: 64,54km/h | K110: 61
A111: 2 | B111: Daniel Nahum | C111: 30 | D111: 138 | E111: 00:01:06.530 | F111: 58,55km/h | K111: 62
A112: 2 | B112: Daniel Nahum | C112: 30 | D112: 138 | E112: 00:01:01.438 | F112: 63,4km/h | K112: 63
O854: Volta Tm
O855: 0.0008206134259
O856: 0.0007603125
O857: 0.0007559722222
O858: 0.0008003009259
O859: 0.0007392361111
O860: 0.0007357986111
O861: 0.000751087963
O862: 0.0007409375
O863: 0.0007393171296
O864: 0.0007308333333
O865: 0.0007356481481
O866: 0.0007506597222
O867: 0.0007328125
O868: 0.0007349189815
O869: 0.000730474537
O870: 0.0007278935185
O871: 0.0007267708333
O872: 0.0007258564815
O873: 0.0007236226852
O874: 0.0007239814815
O875: 0.0007256597222
O876: 0.0007302430556
O877: 0.0007422800926
O878: 0.0007349305556
O879: 0.00074625
O880: 0.0007368981481
O881: 0.0007358680556
O882: 0.000745787037
L1682: Volta Tm | M1682: Volta Tm
A2014: PILOTO | B2014: ULTRAPASSAGENS | E2014: Volta Tm
A2015: Wilson Cristofani | B2015: 0 | E2015: 00:01:20.779
A2016: DIEGO RODRIGUES | B2016: 0 | E2016: 00:01:16.448
A2017: Joanês Golveia | B2017: 1 | E2017: 00:01:17.289
A2018: Alexandre Melillo | B2018: 2 | E2018: 00:01:16.127
A2019: Andreson Souza | B2019: 0 | E2019: 00:01:16.755
A2020: Rafael Miranda | B2020: 2 | E2020: 00:01:16.080
A2021: Anderson Teixeira | B2021: 3 | E2021: 00:01:15.857
A2022: Luciano Brandão | B2022: 2 | E2022: 00:01:16.520
A2023: Lúcio Santos | B2023: 7 | E2023: 00:01:16.357
A2024: Leandro Leite | B2024: 3 | E2024: 00:01:15.750
A2025: Guilherme Gonsalves | B2025: 2 | E2025: 00:01:15.782
A2026: Gladystone Reis | B2026: 0 | E2026: 00:01:16.504
A2027: Aparecido Faria | B2027: 5 | E2027: 00:01:16.205
A2028: José Filho | B2028: 7 | E2028: 00:01:15.674
A2029: João Ferreira | B2029: 7 | E2029: 00:01:15.438
B2030: 7 | E2030: 00:01:16.746
E2031: 00:01:15.691
E2032: 00:01:15.329
E2033: 00:01:15.616
E2034: 00:01:15.483
E2035: 00:01:15.715
E2036: 00:01:24.109
E2037: 00:01:29.259
E2038: 00:01:34.959
E2039: 00:01:03.824
E2040: 00:01:04.490
E2041: 00:01:05.192
E2042: 00:01:03.579
E2043: 00:01:04.659
E2044: 0.0006221527778
E2045: 0.0006206018519
E2046: 0.0006208912037
E2047: 0.0006191666667
E2048: 0.0006287847222
E2049: 0.0006292476852
E2050: 0.0006317824074
E2051: 0.0006310648148

Sheet ETAPA 1
A1: Obs.: 1. Selecione o nome de um Piloto, 2. Com a tecla Ctrl pressionada, Selecione o seu nome e 3. Clique sobre o Gráfico (Habilite a macro) Para as demais comparações Selecione o nome do Piloto e Clique sobre o Gráfico | G1: PILOTO | H1: =L$48 -> Fernando Medeiros | I1: =M$48 -> Daniel Nahum | J1: =A2 -> Leonardo Oliveira | M1: 00:00:01
A2: Leonardo Oliveira | G2: MÉDIA | H2: =AVERAGE(L$49:L$105) -> 00:01:00.518 | I2: =AVERAGE(M$49:M$105) -> 00:01:00.750 | J2: =AVERAGE(N$49:N$105) -> 00:01:00.341 | M2: =M1 -> 00:00:01
A3: Fernando Medeiros | G3: MAXIMA | H3: =LARGE(L$49:L$105,1) -> 00:01:05.835 | I3: =LARGE(M$49:M$105,1) -> 00:01:06.530 | J3: =LARGE(N$49:N$105,1) -> 00:01:05.179
A4: Daniel Nahum | G4: MÍNIMA | H4: =SMALL(L$49:L$105,1) -> 00:00:59.732 | I4: =SMALL(M$49:M$105,1) -> 00:00:59.806 | J4: =SMALL(N$49:N$105,1) -> 00:00:59.751
A5: Marcelo Pereira | G5: Desvio Padrão | H5: =_xlfn.STDEV.S(L$50:L$130) -> 00:00:01.101 | I5: =_xlfn.STDEV.S(M$50:M$130) -> 00:00:01.210 | J5: =_xlfn.STDEV.S(N$50:N$130) -> 00:00:01.005
A6: Wesley Bambirra | G6: TEMPO TOTAL | H6: =SUM(L$49:L$105,1) -> 1.021013021 | I6: =SUM(M$49:M$105,1) -> 1.021093646 | J6: =SUM(N$49:N$105,1) -> 1.020951725
A7: Guilherme Alves
A8: Rafael Alves
A9: GABRIEL BOTELHO
A10: Marcelo Sant'anna
A11: Diego Silva
A12: Daniel Paranhos
A13: Rafael Cantoni | J13: =SMALL(H4:J4,1)-K13 -> 00:00:59.482 | K13: 00:00:00.250
A14: Leonardo Bastos | J14: =LARGE(H3:J3,1)+K13 -> 00:01:06.780
A15: Leonaddo Bosco
A16: Alexandre Melillo
A17: Eduardo Henrique
A18: Heimar Mata
A19: Eduardo Dias
A20: Raphael Reis
A21: Jarbas Reis
A22: Pedro Mello
A23: Luis Almeida
A24: Saulo Chagas
A25: Cláudio Dumont
A26: Jean Paul
A27: Neylon Silva
A28: Wesley Camargos
A29: Hugo Bambirra
A30: Renato Cardoso
A31: Marcelo Campos
L48: Fernando Medeiros | M48: Daniel Nahum | N48: Leonardo Oliveira
K49: NÚMERO VOLTAS | L49: Fernando Medeiros | M49: Daniel Nahum | N49: Leonardo Oliveira
A50: ETAPA | B50: PILOTO | C50: NÚMERO VOLTAS | D50: KART | E50: Volta Tm | F50: velocidade Media | K50: 1 | L50: 00:01:05.835 | M50: 00:01:06.530 | N50: 00:01:05.179
A51: 2 | B51: Leonardo Oliveira | C51: 30 | D51: 109 | E51: 00:01:05.179 | F51: 59,76km/h | K51: 2 | L51: 00:01:01.084 | M51: 00:01:01.438 | N51: 00:01:01.801
A52: 2 | B52: Leonardo Oliveira | C52: 30 | D52: 109 | E52: 00:01:01.801 | F52: 63,03km/h | K52: 3 | L52: 00:01:00.986 | M52: 00:01:01.596 | N52: 00:01:00.717
A53: 2 | B53: Leonardo Oliveira | C53: 30 | D53: 109 | E53: 00:01:00.717 | F53: 64,15km/h | K53: 4 | L53: 00:01:01.129 | M53: 00:01:01.075 | N53: 00:01:01.024
A54: 2 | B54: Leonardo Oliveira | C54: 30 | D54: 109 | E54: 00:01:01.024 | F54: 63,83km/h | K54: 5 | L54: 00:01:01.363 | M54: 00:01:01.280 | N54: 00:01:00.763
A55: 2 | B55: Leonardo Oliveira | C55: 30 | D55: 109 | E55: 00:01:00.763 | F55: 64,1km/h | K55: 6 | L55: 00:01:00.711 | M55: 00:01:00.500 | N55: 00:01:00.143
A56: 2 | B56: Leonardo Oliveira | C56: 30 | D56: 109 | E56: 00:01:00.143 | F56: 64,77km/h | K56: 7 | L56: 00:01:00.699 | M56: 00:01:00.622 | N56: 00:01:00.105
A57: 2 | B57: Leonardo Oliveira | C57: 30 | D57: 109 | E57: 00:01:00.105 | F57: 64,81km/h | K57: 8 | L57: 00:01:00.474 | M57: 00:01:00.542 | N57: 00:01:00.112
A58: 2 | B58: Leonardo Oliveira | C58: 30 | D58: 109 | E58: 00:01:00.112 | F58: 64,8km/h | K58: 9 | L58: 00:01:00.542 | M58: 00:01:00.861 | N58: 00:01:00.210
A59: 2 | B59: Leonardo Oliveira | C59: 30 | D59: 109 | E59: 00:01:00.210 | F59: 64,69km/h | K59: 10 | L59: 00:01:00.206 | M59: 00:01:00.274 | N59: 00:00:59.772
A60: 2 | B60: Leonardo Oliveira | C60: 30 | D60: 109 | E60: 00:00:59.772 | F60: 65,17km/h | K60: 11 | L60: 00:01:01.171 | M60: 00:01:01.280 | N60: 00:01:00.119
A61: 2 | B61: Leonardo Oliveira | C61: 30 | D61: 109 | E61: 00:01:00.119 | F61: 64,79km/h | K61: 12 | L61: 00:01:00.410 | M61: 00:01:00.166 | N61: 00:00:59.790
A62: 2 | B62: Leonardo Oliveira | C62: 30 | D62: 109 | E62: 00:00:59.790 | F62: 65,15km/h | K62: 13 | L62: 00:01:00.370 | M62: 00:01:00.606 | N62: 00:01:00.124
A63: 2 | B63: Leonardo Oliveira | C63: 30 | D63: 109 | E63: 00:01:00.124 | F63: 64,79km/h | K63: 14 | L63: 00:01:00.331 | M63: 00:01:00.362 | N63: 00:01:00.168
A64: 2 | B64: Leonardo Oliveira | C64: 30 | D64: 109 | E64: 00:01:00.168 | F64: 64,74km/h | K64: 15 | L64: 00:01:00.147 | M64: 00:01:00.098 | N64: 00:01:00.160
A65: 2 | B65: Leonardo Oliveira | C65: 30 | D65: 109 | E65: 00:01:00.160 | F65: 64,75km/h | K65: 16 | L65: 00:00:59.884 | M65: 00:01:00.056 | N65: 00:00:59.881
A66: 2 | B66: Leonardo Oliveira | C66: 30 | D66: 109 | E66: 00:00:59.881 | F66: 65,05km/h | K66: 17 | L66: 00:01:00.263 | M66: 00:00:59.975 | N66: 00:01:00.157
A67: 2 | B67: Leonardo Oliveira | C67: 30 | D67: 109 | E67: 00:01:00.157 | F67: 64,75km/h | K67: 18 | L67: 00:01:00.058 | M67: 00:01:00.178 | N67: 00:01:00.082
A68: 2 | B68: Leonardo Oliveira | C68: 30 | D68: 109 | E68: 00:01:00.082 | F68: 64,83km/h | K68: 19 | L68: 00:00:59.902 | M68: 00:00:59.806 | N68: 00:00:59.937
A69: 2 | B69: Leonardo Oliveira | C69: 30 | D69: 109 | E69: 00:00:59.937 | F69: 64,99km/h | K69: 20 | L69: 00:01:00.191 | M69: 00:01:00.097 | N69: 00:01:00.021
A70: 2 | B70: Leonardo Oliveira | C70: 30 | D70: 109 | E70: 00:01:00.021 | F70: 64,9km/h | K70: 21 | L70: 00:00:59.755 | M70: 00:00:59.958 | N70: 00:00:59.952
A71: 2 | B71: Leonardo Oliveira | C71: 30 | D71: 109 | E71: 00:00:59.952 | F71: 64,97km/h | K71: 22 | L71: 00:00:59.732 | M71: 00:00:59.978 | N71: 00:00:59.751
A72: 2 | B72: Leonardo Oliveira | C72: 30 | D72: 109 | E72: 00:00:59.751 | F72: 65,19km/h | K72: 23 | L72: 00:01:00.072 | M72: 00:01:00.480 | N72: 00:01:00.077
A73: 2 | B73: Leonardo Oliveira | C73: 30 | D73: 109 | E73: 00:01:00.077 | F73: 64,84km/h | K73: 24 | L73: 00:00:59.809 | M73: 00:01:00.219 | N73: 00:00:59.806
A74: 2 | B74: Leonardo Oliveira | C74: 30 | D74: 109 | E74: 00:00:59.806 | F74: 65,13km/h | K74: 25 | L74: 00:00:59.907 | M74: 00:01:00.248 | N74: 00:00:59.902
A75: 2 | B75: Leonardo Oliveira | C75: 30 | D75: 109 | E75: 00:00:59.902 | F75: 65,03km/h | K75: 26 | L75: 00:00:59.902 | M75: 00:01:00.314 | N75: 00:00:59.912
A76: 2 | B76: Leonardo Oliveira | C76: 30 | D76: 109 | E76: 00:00:59.912 | F76: 65,02km/h | K76: 27 | L76: 00:01:00.078 | M76: 00:01:00.384 | N76: 00:01:00.075
A77: 2 | B77: Leonardo Oliveira | C77: 30 | D77: 109 | E77: 00:01:00.075 | F77: 64,84km/h | K77: 28 | L77: 00:01:00.198 | M77: 00:01:01.145 | N77: 00:01:00.188
A78: 2 | B78: Leonardo Oliveira | C78: 30 | D78: 109 | E78: 00:01:00.188 | F78: 64,72km/h | K78: 29 | L78: 00:00:59.960 | M78: 00:01:01.670 | N78: 00:00:59.969
A79: 2 | B79: Leonardo Oliveira | C79: 30 | D79: 109 | E79: 00:00:59.969 | F79: 64,95km/h | K79: 30 | L79: 00:01:00.356 | M79: 00:01:00.753 | N79: 00:01:00.332
A80: 2 | B80: Leonardo Oliveira | C80: 30 | D80: 109 | E80: 00:01:00.332 | F80: 64,56km/h | K80: 31
A81: 2 | B81: Fernando Medeiros | C81: 30 | D81: 103 | E81: 00:01:05.835 | F81: 59,17km/h | K81: 32
A82: 2 | B82: Fernando Medeiros | C82: 30 | D82: 103 | E82: 00:01:01.084 | F82: 63,77km/h | K82: 33
A83: 2 | B83: Fernando Medeiros | C83: 30 | D83: 103 | E83: 00:01:00.986 | F83: 63,87km/h | K83: 34
A84: 2 | B84: Fernando Medeiros | C84: 30 | D84: 103 | E84: 00:01:01.129 | F84: 63,72km/h | K84: 35
A85: 2 | B85: Fernando Medeiros | C85: 30 | D85: 103 | E85: 00:01:01.363 | F85: 63,48km/h | K85: 36
A86: 2 | B86: Fernando Medeiros | C86: 30 | D86: 103 | E86: 00:01:00.711 | F86: 64,16km/h | K86: 37
A87: 2 | B87: Fernando Medeiros | C87: 30 | D87: 103 | E87: 00:01:00.699 | F87: 64,17km/h | K87: 38
A88: 2 | B88: Fernando Medeiros | C88: 30 | D88: 103 | E88: 00:01:00.474 | F88: 64,41km/h | K88: 39
A89: 2 | B89: Fernando Medeiros | C89: 30 | D89: 103 | E89: 00:01:00.542 | F89: 64,34km/h | K89: 40
A90: 2 | B90: Fernando Medeiros | C90: 30 | D90: 103 | E90: 00:01:00.206 | F90: 64,7km/h | K90: 41
A91: 2 | B91: Fernando Medeiros | C91: 30 | D91: 103 | E91: 00:01:01.171 | F91: 63,68km/h | K91: 42
A92: 2 | B92: Fernando Medeiros | C92: 30 | D92: 103 | E92: 00:01:00.410 | F92: 64,48km/h | K92: 43
A93: 2 | B93: Fernando Medeiros | C93: 30 | D93: 103 | E93: 00:01:00.370 | F93: 64,52km/h | K93: 44
A94: 2 | B94: Fernando Medeiros | C94: 30 | D94: 103 | E94: 00:01:00.331 | F94: 64,56km/h | K94: 45
A95: 2 | B95: Fernando Medeiros | C95: 30 | D95: 103 | E95: 00:01:00.147 | F95: 64,76km/h | K95: 46
A96: 2 | B96: Fernando Medeiros | C96: 30 | D96: 103 | E96: 00:00:59.884 | F96: 65,05km/h | K96: 47
A97: 2 | B97: Fernando Medeiros | C97: 30 | D97: 103 | E97: 00:01:00.263 | F97: 64,64km/h | K97: 48
A98: 2 | B98: Fernando Medeiros | C98: 30 | D98: 103 | E98: 00:01:00.058 | F98: 64,86km/h | K98: 49
A99: 2 | B99: Fernando Medeiros | C99: 30 | D99: 103 | E99: 00:00:59.902 | F99: 65,03km/h | K99: 50
A100: 2 | B100: Fernando Medeiros | C100: 30 | D100: 103 | E100: 00:01:00.191 | F100: 64,71km/h | K100: 51
A101: 2 | B101: Fernando Medeiros | C101: 30 | D101: 103 | E101: 00:00:59.755 | F101: 65,19km/h | K101: 52
A102: 2 | B102: Fernando Medeiros | C102: 30 | D102: 103 | E102: 00:00:59.732 | F102: 65,21km/h | K102: 53
A103: 2 | B103: Fernando Medeiros | C103: 30 | D103: 103 | E103: 00:01:00.072 | F103: 64,84km/h | K103: 54
A104: 2 | B104: Fernando Medeiros | C104: 30 | D104: 103 | E104: 00:00:59.809 | F104: 65,13km/h | K104: 55
A105: 2 | B105: Fernando Medeiros | C105: 30 | D105: 103 | E105: 00:00:59.907 | F105: 65,02km/h | K105: 56
A106: 2 | B106: Fernando Medeiros | C106: 30 | D106: 103 | E106: 00:00:59.902 | F106: 65,03km/h | K106: 57
A107: 2 | B107: Fernando Medeiros | C107: 30 | D107: 103 | E107: 00:01:00.078 | F107: 64,84km/h | K107: 58
A108: 2 | B108: Fernando Medeiros | C108: 30 | D108: 103 | E108: 00:01:00.198 | F108: 64,71km/h | K108: 59
A109: 2 | B109: Fernando Medeiros | C109: 30 | D109: 103 | E109: 00:00:59.960 | F109: 64,96km/h | K109: 60
A110: 2 | B110: Fernando Medeiros | C110: 30 | D110: 103 | E110: 00:01:00.356 | F110: 64,54km/h | K110: 61
A111: 2 | B111: Daniel Nahum | C111: 30 | D111: 138 | E111: 00:01:06.530 | F111: 58,55km/h | K111: 62
A112: 2 | B112: Daniel Nahum | C112: 30 | D112: 138 | E112: 00:01:01.438 | F112: 63,4km/h | K112: 63
A113: 2 | B113: Daniel Nahum | C113: 30 | D113: 138 | E113: 00:01:01.596 | F113: 63,24km/h
A114: 2 | B114: Daniel Nahum | C114: 30 | D114: 138 | E114: 00:01:01.075 | F114: 63,78km/h
A115: 2 | B115: Daniel Nahum | C115: 30 | D115: 138 | E115: 00:01:01.280 | F115: 63,56km/h
A116: 2 | B116: Daniel Nahum | C116: 30 | D116: 138 | E116: 00:01:00.500 | F116: 64,38km/h
A117: 2 | B117: Daniel Nahum | C117: 30 | D117: 138 | E117: 00:01:00.622 | F117: 64,25km/h
A118: 2 | B118: Daniel Nahum | C118: 30 | D118: 138 | E118: 00:01:00.542 | F118: 64,34km/h
A119: 2 | B119: Daniel Nahum | C119: 30 | D119: 138 | E119: 00:01:00.861 | F119: 64km/h
A120: 2 | B120: Daniel Nahum | C120: 30 | D120: 138 | E120: 00:01:00.274 | F120: 64,62km/h
A121: 2 | B121: Daniel Nahum | C121: 30 | D121: 138 | E121: 00:01:01.280 | F121: 63,56km/h
A122: 2 | B122: Daniel Nahum | C122: 30 | D122: 138 | E122: 00:01:00.166 | F122: 64,74km/h
A123: 2 | B123: Daniel Nahum | C123: 30 | D123: 138 | E123: 00:01:00.606 | F123: 64,27km/h
A124: 2 | B124: Daniel Nahum | C124: 30 | D124: 138 | E124: 00:01:00.362 | F124: 64,53km/h
A125: 2 | B125: Daniel Nahum | C125: 30 | D125: 138 | E125: 00:01:00.098 | F125: 64,81km/h
A126: 2 | B126: Daniel Nahum | C126: 30 | D126: 138 | E126: 00:01:00.056 | F126: 64,86km/h
A127: 2 | B127: Daniel Nahum | C127: 30 | D127: 138 | E127: 00:00:59.975 | F127: 64,95km/h
A128: 2 | B128: Daniel Nahum | C128: 30 | D128: 138 | E128: 00:01:00.178 | F128: 64,73km/h
A129: 2 | B129: Daniel Nahum | C129: 30 | D129: 138 | E129: 00:00:59.806 | F129: 65,13km/h
A130: 2 | B130: Daniel Nahum | C130: 30 | D130: 138 | E130: 00:01:00.097 | F130: 64,82km/h
A131: 2 | B131: Daniel Nahum | C131: 30 | D131: 138 | E131: 00:00:59.958 | F131: 64,97km/h
A132: 2 | B132: Daniel Nahum | C132: 30 | D132: 138 | E132: 00:00:59.978 | F132: 64,94km/h
A133: 2 | B133: Daniel Nahum | C133: 30 | D133: 138 | E133: 00:01:00.480 | F133: 64,4km/h
A134: 2 | B134: Daniel Nahum | C134: 30 | D134: 138 | E134: 00:01:00.219 | F134: 64,68km/h
A135: 2 | B135: Daniel Nahum | C135: 30 | D135: 138 | E135: 00:01:00.248 | F135: 64,65km/h
A136: 2 | B136: Daniel Nahum | C136: 30 | D136: 138 | E136: 00:01:00.314 | F136: 64,58km/h
A137: 2 | B137: Daniel Nahum | C137: 30 | D137: 138 | E137: 00:01:00.384 | F137: 64,51km/h
A138: 2 | B138: Daniel Nahum | C138: 30 | D138: 138 | E138: 00:01:01.145 | F138: 63,7km/h
A139: 2 | B139: Daniel Nahum | C139: 30 | D139: 138 | E139: 00:01:01.670 | F139: 63,16km/h
A140: 2 | B140: Daniel Nahum | C140: 30 | D140: 138 | E140: 00:01:00.753 | F140: 64,12km/h
A141: 2 | B141: Marcelo Pereira | C141: 30 | D141: 124 | E141: 00:01:05.494 | F141: 59,47km/h
A142: 2 | B142: Marcelo Pereira | C142: 30 | D142: 124 | E142: 00:01:02.806 | F142: 62,02km/h
A143: 2 | B143: Marcelo Pereira | C143: 30 | D143: 124 | E143: 00:01:00.658 | F143: 64,22km/h
A144: 2 | B144: Marcelo Pereira | C144: 30 | D144: 124 | E144: 00:01:00.483 | F144: 64,4km/h
A145: 2 | B145: Marcelo Pereira | C145: 30 | D145: 124 | E145: 00:01:00.487 | F145: 64,4km/h
A146: 2 | B146: Marcelo Pereira | C146: 30 | D146: 124 | E146: 00:01:00.710 | F146: 64,16km/h
A147: 2 | B147: Marcelo Pereira | C147: 30 | D147: 124 | E147: 00:01:00.294 | F147: 64,6km/h
A148: 2 | B148: Marcelo Pereira | C148: 30 | D148: 124 | E148: 00:01:01.020 | F148: 63,83km/h
A149: 2 | B149: Marcelo Pereira | C149: 30 | D149: 124 | E149: 00:01:00.953 | F149: 63,9km/h
A150: 2 | B150: Marcelo Pereira | C150: 30 | D150: 124 | E150: 00:01:00.514 | F150: 64,37km/h
A151: 2 | B151: Marcelo Pereira | C151: 30 | D151: 124 | E151: 00:01:00.511 | F151: 64,37km/h
A152: 2 | B152: Marcelo Pereira | C152: 30 | D152: 124 | E152: 00:01:00.403 | F152: 64,49km/h
A153: 2 | B153: Marcelo Pereira | C153: 30 | D153: 124 | E153: 00:00:59.924 | F153: 65km/h
A154: 2 | B154: Marcelo Pereira | C154: 30 | D154: 124 | E154: 00:00:59.892 | F154: 65,04km/h
A155: 2 | B155: Marcelo Pereira | C155: 30 | D155: 124 | E155: 00:01:00.106 | F155: 64,81km/h
A156: 2 | B156: Marcelo Pereira | C156: 30 | D156: 124 | E156: 00:00:59.759 | F156: 65,18km/h
A157: 2 | B157: Marcelo Pereira | C157: 30 | D157: 124 | E157: 00:01:01.122 | F157: 63,73km/h
A158: 2 | B158: Marcelo Pereira | C158: 30 | D158: 124 | E158: 00:01:00.030 | F158: 64,89km/h
A159: 2 | B159: Marcelo Pereira | C159: 30 | D159: 124 | E159: 00:01:00.142 | F159: 64,77km/h
A160: 2 | B160: Marcelo Pereira | C160: 30 | D160: 124 | E160: 00:01:00.196 | F160: 64,71km/h
A161: 2 | B161: Marcelo Pereira | C161: 30 | D161: 124 | E161: 00:00:59.991 | F161: 64,93km/h
A162: 2 | B162: Marcelo Pereira | C162: 30 | D162: 124 | E162: 00:01:00.113 | F162: 64,8km/h
A163: 2 | B163: Marcelo Pereira | C163: 30 | D163: 124 | E163: 00:01:00.318 | F163: 64,58km/h
A164: 2 | B164: Marcelo Pereira | C164: 30 | D164: 124 | E164: 00:01:00.426 | F164: 64,46km/h
A165: 2 | B165: Marcelo Pereira | C165: 30 | D165: 124 | E165: 00:01:00.013 | F165: 64,91km/h
A166: 2 | B166: Marcelo Pereira | C166: 30 | D166: 124 | E166: 00:01:00.143 | F166: 64,77km/h
A167: 2 | B167: Marcelo Pereira | C167: 30 | D167: 124 | E167: 00:00:59.999 | F167: 64,92km/h
A168: 2 | B168: Marcelo Pereira | C168: 30 | D168: 124 | E168: 00:01:00.165 | F168: 64,74km/h
A169: 2 | B169: Marcelo Pereira | C169: 30 | D169: 124 | E169: 00:01:00.006 | F169: 64,91km/h
A170: 2 | B170: Marcelo Pereira | C170: 30 | D170: 124 | E170: 00:01:00.337 | F170: 64,56km/h
A171: 2 | B171: Wesley Bambirra | C171: 30 | D171: 128 | E171: 00:01:06.880 | F171: 58,24km/h
A172: 2 | B172: Wesley Bambirra | C172: 30 | D172: 128 | E172: 00:01:02.834 | F172: 61,99km/h
A173: 2 | B173: Wesley Bambirra | C173: 30 | D173: 128 | E173: 00:01:01.283 | F173: 63,56km/h
A174: 2 | B174: Wesley Bambirra | C174: 30 | D174: 128 | E174: 00:01:01.625 | F174: 63,21km/h
A175: 2 | B175: Wesley Bambirra | C175: 30 | D175: 128 | E175: 00:01:00.479 | F175: 64,41km/h
A176: 2 | B176: Wesley Bambirra | C176: 30 | D176: 128 | E176: 00:01:00.490 | F176: 64,39km/h
A177: 2 | B177: Wesley Bambirra | C177: 30 | D177: 128 | E177: 00:01:00.955 | F177: 63,9km/h
A178: 2 | B178: Wesley Bambirra | C178: 30 | D178: 128 | E178: 00:01:00.284 | F178: 64,61km/h
A179: 2 | B179: Wesley Bambirra | C179: 30 | D179: 128 | E179: 00:01:01.532 | F179: 63,3km/h
A180: 2 | B180: Wesley Bambirra | C180: 30 | D180: 128 | E180: 00:01:00.395 | F180: 64,5km/h
A181: 2 | B181: Wesley Bambirra | C181: 30 | D181: 128 | E181: 00:01:00.450 | F181: 64,44km/h
A182: 2 | B182: Wesley Bambirra | C182: 30 | D182: 128 | E182: 00:01:00.660 | F182: 64,21km/h
A183: 2 | B183: Wesley Bambirra | C183: 30 | D183: 128 | E183: 00:01:00.346 | F183: 64,55km/h
A184: 2 | B184: Wesley Bambirra | C184: 30 | D184: 128 | E184: 00:01:01.023 | F184: 63,83km/h
A185: 2 | B185: Wesley Bambirra | C185: 30 | D185: 128 | E185: 00:01:00.179 | F185: 64,73km/h
A186: 2 | B186: Wesley Bambirra | C186: 30 | D186: 128 | E186: 00:01:00.093 | F186: 64,82km/h
A187: 2 | B187: Wesley Bambirra | C187: 30 | D187: 128 | E187: 00:00:59.950 | F187: 64,97km/h
A188: 2 | B188: Wesley Bambirra | C188: 30 | D188: 128 | E188: 00:01:00.001 | F188: 64,92km/h
A189: 2 | B189: Wesley Bambirra | C189: 30 | D189: 128 | E189: 00:00:59.897 | F189: 65,03km/h
A190: 2 | B190: Wesley Bambirra | C190: 30 | D190: 128 | E190: 00:01:00.197 | F190: 64,71km/h
A191: 2 | B191: Wesley Bambirra | C191: 30 | D191: 128 | E191: 00:01:00.025 | F191: 64,89km/h
A192: 2 | B192: Wesley Bambirra | C192: 30 | D192: 128 | E192: 00:00:59.998 | F192: 64,92km/h
A193: 2 | B193: Wesley Bambirra | C193: 30 | D193: 128 | E193: 00:01:00.089 | F193: 64,82km/h
A194: 2 | B194: Wesley Bambirra | C194: 30 | D194: 128 | E194: 00:01:00.159 | F194: 64,75km/h
A195: 2 | B195: Wesley Bambirra | C195: 30 | D195: 128 | E195: 00:01:00.289 | F195: 64,61km/h
A196: 2 | B196: Wesley Bambirra | C196: 30 | D196: 128 | E196: 00:01:00.076 | F196: 64,84km/h
A197: 2 | B197: Wesley Bambirra | C197: 30 | D197: 128 | E197: 00:01:00.485 | F197: 64,4km/h
A198: 2 | B198: Wesley Bambirra | C198: 30 | D198: 128 | E198: 00:01:00.068 | F198: 64,85km/h
A199: 2 | B199: Wesley Bambirra | C199: 30 | D199: 128 | E199: 00:01:00.478 | F199: 64,41km/h
A200: 2 | B200: Wesley Bambirra | C200: 30 | D200: 128 | E200: 00:01:00.431 | F200: 64,46km/h
A201: 2 | B201: Guilherme Alves | C201: 30 | D201: 119 | E201: 00:01:05.743 | F201: 59,25km/h
A202: 2 | B202: Guilherme Alves | C202: 30 | D202: 119 | E202: 00:01:02.765 | F202: 62,06km/h
A203: 2 | B203: Guilherme Alves | C203: 30 | D203: 119 | E203: 00:01:01.937 | F203: 62,89km/h
A204: 2 | B204: Guilherme Alves | C204: 30 | D204: 119 | E204: 00:01:00.952 | F204: 63,91km/h
A205: 2 | B205: Guilherme Alves | C205: 30 | D205: 119 | E205: 00:01:01.490 | F205: 63,35km/h
A206: 2 | B206: Guilherme Alves | C206: 30 | D206: 119 | E206: 00:01:00.641 | F206: 64,23km/h
A207: 2 | B207: Guilherme Alves | C207: 30 | D207: 119 | E207: 00:01:00.701 | F207: 64,17km/h
A208: 2 | B208: Guilherme Alves | C208: 30 | D208: 119 | E208: 00:01:01.451 | F208: 63,39km/h
A209: 2 | B209: Guilherme Alves | C209: 30 | D209: 119 | E209: 00:01:01.090 | F209: 63,76km/h
A210: 2 | B210: Guilherme Alves | C210: 30 | D210: 119 | E210: 00:01:00.840 | F210: 64,02km/h
A211: 2 | B211: Guilherme Alves | C211: 30 | D211: 119 | E211: 00:01:00.558 | F211: 64,32km/h
A212: 2 | B212: Guilherme Alves | C212: 30 | D212: 119 | E212: 00:01:00.626 | F212: 64,25km/h
A213: 2 | B213: Guilherme Alves | C213: 30 | D213: 119 | E213: 00:01:00.578 | F213: 64,3km/h
A214: 2 | B214: Guilherme Alves | C214: 30 | D214: 119 | E214: 00:01:00.906 | F214: 63,95km/h
A215: 2 | B215: Guilherme Alves | C215: 30 | D215: 119 | E215: 00:01:00.773 | F215: 64,09km/h
A216: 2 | B216: Guilherme Alves | C216: 30 | D216: 119 | E216: 00:01:00.165 | F216: 64,74km/h
... 705 more rows
